Workbook

Sheet Startseite
C3: Immobilien Kalkulationstool
C5: by www.paullassak.de
C9: Vielen Dank für den Download dieser Excel-Datei und dem damit verbundenen Kalkulationstool. Diese Datei darf ohne Zustimmung von Paul Lassak in keiner Weise vervielfältigt, weitergegeben oder zugänglich gemacht werden. Das Produkt Microsoft Excel ist Eigentum der Firma Microsoft. Paul Lassak steht in keinerlei rechtlicher Beziehung zu Microsoft und handelt ebenso nicht im Namen von Microsoft. Die Firma Paul Lassak leistet keine Steuer- oder Rechtsberatung. Die in diesem Tool geschilderten Rechtslagen und Berechnungen sind von Paul Lassak vereinfacht dargestellt. Die abgegebenen Empfehlungen und Ratschläge ersetzen keine auf einen speziellen Einzelfall angewendete Finanz-, Steuer- und/oder Rechtsberatung. Alle Empfehlungen und Ratschläge sind außschließlich auf die Erfahrungen von Paul Lassak zu beziehen. Die Empfehlungen und Ratschläge von Paul Lassak sind mit größter Sorgfalt und intensiver Recherchetätigkeit entwickelt worden. Eine Erfolgsgarantie und/oder Haftung für den Einzelfall wird kategorisch ausgeschlossen. Sämtliche Kalkulationen im Tool wurden mehrfach und intensiv auf Richtigkeit geprüft. Dennoch wird keinerlei Haftung und/oder juristische Verantwortung für die Richtigkeit des Tools übernommen. Sollten Fehler auftreten, kontaktieren Sie Paul Lassak. Wir werden den Fehler schnellstmöglich beheben. Zur Vermeidung von Fehlern empfehlen wir Ihnen eine eigenständige Rechnung zur Kontrolle der Angaben durchzuführen und ggf. von Ihrem Steuer- oder Rechtsberater durchführen zu lassen
C45: Karriere- und Finanzexperte Paul Lassak
C46: https://www.paullassak.de info@paullassak.de
C47: Copyright 2020

Sheet Ihre Übersicht
C3: Investitionsobjekt | O3: Finanzierung
C5: Objektdaten | I5: Anfängliche Investitionskosten | O5: Gesamtfinanzierung | U5: Darlehen 2
C6: Adresse | D6: Musterstraße 1, 12345 Musterstadt | I6: Gegenstand | J6: Kosten | K6: Steuer | L6: Wertsteigerung | O6: Eigenkapital | U6: Darlehenssumme
C7: Kaufdatum | D7: 2019-04-01 | I7: Küche | O7: benötigte Darlehenssumme | R7: =IF(OR(K18="",K18=0)=TRUE,"",K18-R6) ->  | U7: Zinssatz
C8: Wohnfläche | I8: Türen | O8: noch fehlender Investitionsbetrag | R8: =IF(SUM(K18)-SUM(R15,X14,X6,R6)<=0,"",SUM(K18)-SUM(R15,X14,X6,R6)) ->  | U8: Zinsfestschreibung
C9: Grundstücksfläche | I9: Sonstiges | O9: Zinssatz | R9: =IF(AND(OR(R15=0,R15="")=TRUE,OR(X6=0,X6="")=TRUE),"",(R15*R16+X6*X7)/(R15+X6)) ->  | U9: anfängl. Tilgung
C10: Stellplätze | I10: Sonstiges | O10: anfängl. Tilgung | R10: =IF(AND(OR(R15=0,R15="")=TRUE,OR(X6=0,X6="")=TRUE),"",(R15*R18+X6*X9)/(R15+X6)) ->  | U10: monatl. Kapitaldienst | X10: =X6*(X9+X7)/12 -> 0
I11: Summe | J11: =SUM(J7:J10) -> 0 | K11: Summe | L11: =SUM(L7:M10) -> 0 | O11: monatl. Kapitaldienst | R11: =IF(AND(OR(R15=0,R15="")=TRUE,OR(X6=0,X6="")=TRUE,OR(X14=0,X14="")=TRUE),"",(R10+R9)*(R15+X6+X14)/12) ->  | U11: Vollst. Getilgt im Jahr | X11: =IF(OR(X6=0,X6="")=TRUE,"",D7+(NPER(X7/12,X10,-X6,,0)/12)*365) -> 
C12: Kaufpreis & Anschaffungsnebenkosten | I12: 15% Grenze | J12: =E13*0.15 -> 0 | K12: Neuer Wert | L12: =E13+L11 -> 0
C13: Kaufpreis | O13: Darlehen 1 | U13: Darlehen 3
C14: Preis pro m² | E14: =IF(G8="","",E13/G8) ->  | I14: Gesamtbetrachtung | O14: Darlehenssumme in % von Kaufpreis | U14: Darlehenssumme
C15: Maklercourtage | E15: 4.76% | F15: =E15*$E$13 -> 0 | I15: Kaufpreis | J15: =E13 -> 0 | O15: Darlehenssumme | R15: =R14*E13 -> 0 | U15: Zinssatz
C16: Notarkosten | E16: 1.50% | F16: =E16*$E$13 -> 0 | I16: ANK | J16: =F19 -> 0 | O16: Zinssatz | U16: Zinsfestschreibung
C17: Eintragung Grundbuch | E17: 0.50% | F17: =E17*$E$13 -> 0 | I17: Anfänglich Investionsk. | K17: =J11 -> 0 | O17: Zinsfestschreibung | U17: anfängl. Tilgung
C18: Grunderwerbssteuer | E18: 6.50% | F18: =E18*$E$13 -> 0 | I18: Gesamtinvestition | K18: =IF(K17+J16+J15=0,"",K17+J16+J15) ->  | O18: anfängl. Tilgung | U18: monatl. Kapitaldienst | X18: =X14*(X17+X15)/12 -> 0
C19: Summe Nebenkosten | E19: =SUM(E15:E18) -> 13.26% | F19: =E19*$E$13 -> 0 | O19: monatl. Kapitaldienst | R19: =R15*(R18+R16)/12 -> 0 | U19: Vollst. Getilgt im Jahr | X19: =IF(OR(X14=0,X14="")=TRUE,"",D7+(NPER(X15/12,X18,-X14,,0)/12)*365) -> 
C20: Summe Anschaffungsk. | E20: =F19+E13 -> 0 | O20: Vollst. Getilgt im Jahr | R20: =IF(R15=0,"",D7+(NPER(R16/12,R19,-R15,,0)/12)*365) -> 
C24: Miete, Steuern & Rücklagen | O24: Laufende Kosten
C26: Erwartete Mieteinnahmen | I26: Steuerliche Aspekte | O26: Hausgeld | U26: Laufende Kosten pro Monat
C27: Kaltmiete pro m² Wohnfläche | I27: AfA Satz | L27: 2.0% | O27: Hausgeld | R27: =R31+R36 -> 0 | U27: Umlagefähiger Anteil | X27: =R33 -> 0
C28: Kaltmiete Absolut | F28: =IF(Sheet3!X4="NEIN",IF(F27="","",F27*$G$8),$G$8*'Kalkulation Mehrfamilienhaus'!F10) ->  | I28: Anteil Gebäude an Kaufpreis | U28: Nicht umlagefähiger Anteil | X28: =R41 -> 0
C29: Stellplatzmiete pro Stellplatz | I29: Basis für langfristige Abschreibung | L29: =(E20*L28+SUMIFS(J7:J10,K7:K10,"steuerl. aktiv.")) -> 0 | O29: monatliche umlagefähige Kosten | U29: entspricht % der Nettokaltmiete | X29: =IF(OR(F31="",F31=0)=TRUE,"",X28/F31) -> 
C30: Sonstige Mietzuschläge | O30: Grundsteuer | U30: Summe | X30: =X28+X27 -> 0
C31: Nettokaltmiete | F31: =SUM(F28,F29*G10,F30) -> 0 | I31: Miet- & Kostenprognose | O31: Hausgeld (umlagefähiger Anteil)
C32: Umlagefähige NK pro m² Wohnfläche | F32: =IF(OR(F33="",F33=0,G8="",G8=0)=TRUE,"",F33/G8) ->  | I32: Kostensteigerung p.a. | L32: 3% | O32: Sonstiges
C33: Umlagefähige NK Absolut | F33: =R33 -> 0 | I33: Mietsteigerung p.a. | L33: 2% | O33: Summe | R33: =R32+R31+R30 -> 0
C34: Warmmiete | F34: =F33+F31 -> 0 | I34: Wertsteigerung p.a. | L34: 2%
O35: monatliche nicht umlagefähige Kosten
C36: Rücklagen | O36: Hausgeld (nicht umlagefähiger Anteil)
C37: kalkulatorischer Mietausfall | F37: 3% | O37: davon WEG Rücklage
C38: Eig. Instandhaltungsrückl. pro m² p.m. | F38: 0.80 € | O38: Eigene Instandhaltungsrücklage | R38: =F38*G8 -> 0
C39: Kalkulierte monatl. eigene Rücklagen | F39: =F38*G8+F37*F34 -> 0 | O39: kalkulatorischer Mietausfall | R39: =F37*F34 -> 0
C40: Empfohlene monatl. Rücklagen | F40: =((L28*E13)*(1/80*1.5)-(12*R37))/12 -> 0 | O40: Sonstiges | R40: 0
O41: Summe | R41: =SUM(R36,R38,R39,R40) -> 0
C46: Kennzahlen
C48: Cashflow pro Monat (Überschussrechnung) | L48: Miet- & Kostenprognose | R48: Break-Even-Betrachtung
C49: Zeitpunkt | F49: Heute | I49: in 10 Jahren (ø) | L49: Nettokaltmiete p.a. | O49: =F31*12 -> 0 | R49: Cashflow n. St. positiv ab: | V49: =IFERROR(OFFSET('Ihre Kennzahlen im Verlauf'!E93,0,MATCH(TRUE,INDEX('Ihre Kennzahlen im Verlauf'!$F$102:$BC$102>0,0),0)),"-") -> -
C50: Warmmiete | F50: =F34 -> 0 | I50: =F31*(1+L33)^I49+F33*(1+L32)^I49 -> 0 | L50: Bruttomietrendite | O50: =IF(OR(K18="",K18=0,O49="",O49=0)=TRUE,"",O49/K18) ->  | R50: kum. Cashflow bis Break Even | V50: =IFERROR(HLOOKUP(V49,'Ihre Kennzahlen im Verlauf'!F93:BC103,11,FALSE),"") -> 
C51: laufende Kosten | F51: =-X30 -> 0 | I51: =-X30*(1+L32)^I49 -> 0 | L51: Faktor | O51: =IF(OR(O50="",O50=0)=TRUE,"",1/O50) ->  | R51: kum. Cashflow erstmals positiv | V51: =IFERROR(OFFSET('Ihre Kennzahlen im Verlauf'!E93,0,MATCH(TRUE,INDEX('Ihre Kennzahlen im Verlauf'!$F$103:$BC$103>0,0),0)),"-") -> -
C52: Zinsen | F52: =-(R15*R16+X7*X6+X14*X15)/12 -> 0 | I52: =IFERROR(-HLOOKUP(I49+'Ihre Kennzahlen im Verlauf'!F6,'Ihre Kennzahlen im Verlauf'!F6:BC20,6,FALSE)/12,"") ->  | L52: Nettomietrendite | O52: =IF(OR(K18="",K18=0)=TRUE,"",(F31-X28)*12/K18) ->  | R52: Break-Even inkl. Eigenkapital | V52: =IFERROR(OFFSET('Ihre Kennzahlen im Verlauf'!E93,0,MATCH(TRUE,INDEX('Ihre Kennzahlen im Verlauf'!$F$104:$BC$104>0,0),0)),"-") -> -
C53: Tilgung | F53: =-(R15*R18+X6*X9+X14*X17)/12 -> 0 | I53: =IFERROR(-HLOOKUP(I49+'Ihre Kennzahlen im Verlauf'!F6,'Ihre Kennzahlen im Verlauf'!F6:BC20,9,FALSE)/12,"") -> 
C54: Cashflow vor Steuer | F54: =SUM(F50:G53) -> 0 | I54: =SUM(I50:J53) -> 0 | L54: Vermögenszuwachs am Ende des 1. Jahres
C55: Steuern | F55: =-F66 -> 0 | I55: =-I66 -> 0 | L55: inkl. Wertsteigerung | O55: =F56*Sheet3!D6+'Ihre Kennzahlen im Verlauf'!F74+Sheet3!F44+Sheet3!M44 -> 0
C56: Cashflow nach Steuer | F56: =F54+F55 -> 0 | I56: =I54+I55 -> 0 | L56: exkl. Wertsteigerung | O56: =F56*Sheet3!D6+Sheet3!F44+Sheet3!M44 -> 0
C58: Berechnung Steuer auf Monatsbasis | L58: Eigenkapitalrendite im 1. Jahr
C59: Zeitpunkt | F59: Heute | I59: =I49 -> in 10 Jahren (ø) | L59: EK-Rendite inkl. Wertstg. | O59: =IF(OR(O55="",O55=0,R6="",R6=0)=TRUE,"",O55/R6) -> 
C60: Warmmiete | F60: =F50 -> 0 | I60: =I50 -> 0 | L60: EK-Rendite exkl. Wertstg. | O60: =IF(OR(O56="",O56=0,R6="",R6=0)=TRUE,"",O56/R6) -> 
C61: laufende Kosten | F61: =F51+F39 -> 0 | I61: =F61*(1+L32)^I49 -> 0
C62: Zinsen | F62: =F52 -> 0 | I62: =I52 -> 
C63: Abschreibung AfA | F63: =-(($E$20*$L$28)+$J$11)*$L$27/12 -> 0 | I63: =IF(I49<=1/L27,-(($E$20*$L$28)+SUMIFS(J7:J10,K7:K10,"steuerl. aktiv."))*$L$27/12,"") -> 0
C64: zu versteuernder Cashflow | F64: =SUM(F60:G63) -> 0 | I64: =SUM(I60:J63) -> 0
C65: pers. Grenzsteuersatz | F65: 40% | I65: =HLOOKUP(YEAR(D7)+I59,'Ihre Kennzahlen im Verlauf'!F107:BC115,7,FALSE) -> 40%
C66: Steuern | F66: =F64*F65 -> 0 | I66: =I64*I65 -> 0

Sheet Ihre Kennzahlen im Verlauf
C3: ANZEIGEN
C5: DARLEHEN 1
F6: =YEAR('Ihre Übersicht'!D$7) -> 2019 | G6: =F6+1 -> 2020 | H6: =G6+1 -> 2021 | I6: 2022 | J6: 2023 | K6: 2024 | L6: 2025 | M6: 2026 | N6: 2027 | O6: 2028 | P6: 2029 | Q6: =P6+1 -> 2030 | R6: =Q6+1 -> 2031 | S6: =R6+1 -> 2032 | T6: =S6+1 -> 2033 | U6: =T6+1 -> 2034 | V6: =U6+1 -> 2035 | W6: =V6+1 -> 2036 | X6: =W6+1 -> 2037 | Y6: =X6+1 -> 2038 | Z6: =Y6+1 -> 2039 | AA6: =Z6+1 -> 2040 | AB6: =AA6+1 -> 2041 | AC6: =AB6+1 -> 2042 | AD6: =AC6+1 -> 2043 | AE6: =AD6+1 -> 2044 | AF6: =AE6+1 -> 2045 | AG6: =AF6+1 -> 2046 | AH6: =AG6+1 -> 2047 | AI6: =AH6+1 -> 2048 | AJ6: =AI6+1 -> 2049 | AK6: =AJ6+1 -> 2050 | AL6: =AK6+1 -> 2051 | AM6: =AL6+1 -> 2052 | AN6: =AM6+1 -> 2053 | AO6: =AN6+1 -> 2054 | AP6: =AO6+1 -> 2055 | AQ6: =AP6+1 -> 2056 | AR6: =AQ6+1 -> 2057 | AS6: =AR6+1 -> 2058 | AT6: =AS6+1 -> 2059 | AU6: =AT6+1 -> 2060 | AV6: =AU6+1 -> 2061 | AW6: =AV6+1 -> 2062 | AX6: =AW6+1 -> 2063 | AY6: =AX6+1 -> 2064 | AZ6: =AY6+1 -> 2065 | BA6: =AZ6+1 -> 2066 | BB6: =BA6+1 -> 2067 | BC6: =BB6+1 -> 2068
C7: Zinsanpassung
C8: gültiger Zinssatz | F8: =IF(OR(F10=0,F10="")=TRUE,"",IF(F6<=YEAR('Ihre Übersicht'!$D$7)+'Ihre Übersicht'!$R$17,'Ihre Übersicht'!$R$16,IF('Ihre Kennzahlen im Verlauf'!F7="",'Ihre Kennzahlen im Verlauf'!E8,'Ihre Kennzahlen im Verlauf'!F7))) ->  | G8: =IF(OR(F19<=0,F19="")=TRUE,"",IF(G6<=YEAR('Ihre Übersicht'!$D$7)+'Ihre Übersicht'!$R$17,'Ihre Übersicht'!$R$16,IF('Ihre Kennzahlen im Verlauf'!G7="",'Ihre Kennzahlen im Verlauf'!F8,'Ihre Kennzahlen im Verlauf'!G7))) ->  | H8: =IF(OR(G19<=0,G19="")=TRUE,"",IF(H6<=YEAR('Ihre Übersicht'!$D$7)+'Ihre Übersicht'!$R$17,'Ihre Übersicht'!$R$16,IF('Ihre Kennzahlen im Verlauf'!H7="",'Ihre Kennzahlen im Verlauf'!G8,'Ihre Kennzahlen im Verlauf'!H7))) ->  | I8: =IF(OR(H19<=0,H19="")=TRUE,"",IF(I6<=YEAR('Ihre Übersicht'!$D$7)+'Ihre Übersicht'!$R$17,'Ihre Übersicht'!$R$16,IF('Ihre Kennzahlen im Verlauf'!I7="",'Ihre Kennzahlen im Verlauf'!H8,'Ihre Kennzahlen im Verlauf'!I7))) ->  | J8: =IF(OR(I19<=0,I19="")=TRUE,"",IF(J6<=YEAR('Ihre Übersicht'!$D$7)+'Ihre Übersicht'!$R$17,'Ihre Übersicht'!$R$16,IF('Ihre Kennzahlen im Verlauf'!J7="",'Ihre Kennzahlen im Verlauf'!I8,'Ihre Kennzahlen im Verlauf'!J7))) ->  | K8: =IF(OR(J19<=0,J19="")=TRUE,"",IF(K6<=YEAR('Ihre Übersicht'!$D$7)+'Ihre Übersicht'!$R$17,'Ihre Übersicht'!$R$16,IF('Ihre Kennzahlen im Verlauf'!K7="",'Ihre Kennzahlen im Verlauf'!J8,'Ihre Kennzahlen im Verlauf'!K7))) ->  | L8: =IF(OR(K19<=0,K19="")=TRUE,"",IF(L6<=YEAR('Ihre Übersicht'!$D$7)+'Ihre Übersicht'!$R$17,'Ihre Übersicht'!$R$16,IF('Ihre Kennzahlen im Verlauf'!L7="",'Ihre Kennzahlen im Verlauf'!K8,'Ihre Kennzahlen im Verlauf'!L7))) ->  | M8: =IF(OR(L19<=0,L19="")=TRUE,"",IF(M6<=YEAR('Ihre Übersicht'!$D$7)+'Ihre Übersicht'!$R$17,'Ihre Übersicht'!$R$16,IF('Ihre Kennzahlen im Verlauf'!M7="",'Ihre Kennzahlen im Verlauf'!L8,'Ihre Kennzahlen im Verlauf'!M7))) ->  | N8: =IF(OR(M19<=0,M19="")=TRUE,"",IF(N6<=YEAR('Ihre Übersicht'!$D$7)+'Ihre Übersicht'!$R$17,'Ihre Übersicht'!$R$16,IF('Ihre Kennzahlen im Verlauf'!N7="",'Ihre Kennzahlen im Verlauf'!M8,'Ihre Kennzahlen im Verlauf'!N7))) ->  | O8: =IF(OR(N19<=0,N19="")=TRUE,"",IF(O6<=YEAR('Ihre Übersicht'!$D$7)+'Ihre Übersicht'!$R$17,'Ihre Übersicht'!$R$16,IF('Ihre Kennzahlen im Verlauf'!O7="",'Ihre Kennzahlen im Verlauf'!N8,'Ihre Kennzahlen im Verlauf'!O7))) ->  | P8: =IF(OR(O19<=0,O19="")=TRUE,"",IF(P6<=YEAR('Ihre Übersicht'!$D$7)+'Ihre Übersicht'!$R$17,'Ihre Übersicht'!$R$16,IF('Ihre Kennzahlen im Verlauf'!P7="",'Ihre Kennzahlen im Verlauf'!O8,'Ihre Kennzahlen im Verlauf'!P7))) ->  | Q8: =IF(OR(P19<=0,P19="")=TRUE,"",IF(Q6<=YEAR('Ihre Übersicht'!$D$7)+'Ihre Übersicht'!$R$17,'Ihre Übersicht'!$R$16,IF('Ihre Kennzahlen im Verlauf'!Q7="",'Ihre Kennzahlen im Verlauf'!P8,'Ihre Kennzahlen im Verlauf'!Q7))) ->  | R8: =IF(OR(Q19<=0,Q19="")=TRUE,"",IF(R6<=YEAR('Ihre Übersicht'!$D$7)+'Ihre Übersicht'!$R$17,'Ihre Übersicht'!$R$16,IF('Ihre Kennzahlen im Verlauf'!R7="",'Ihre Kennzahlen im Verlauf'!Q8,'Ihre Kennzahlen im Verlauf'!R7))) ->  | S8: =IF(OR(R19<=0,R19="")=TRUE,"",IF(S6<=YEAR('Ihre Übersicht'!$D$7)+'Ihre Übersicht'!$R$17,'Ihre Übersicht'!$R$16,IF('Ihre Kennzahlen im Verlauf'!S7="",'Ihre Kennzahlen im Verlauf'!R8,'Ihre Kennzahlen im Verlauf'!S7))) ->  | T8: =IF(OR(S19<=0,S19="")=TRUE,"",IF(T6<=YEAR('Ihre Übersicht'!$D$7)+'Ihre Übersicht'!$R$17,'Ihre Übersicht'!$R$16,IF('Ihre Kennzahlen im Verlauf'!T7="",'Ihre Kennzahlen im Verlauf'!S8,'Ihre Kennzahlen im Verlauf'!T7))) ->  | U8: =IF(OR(T19<=0,T19="")=TRUE,"",IF(U6<=YEAR('Ihre Übersicht'!$D$7)+'Ihre Übersicht'!$R$17,'Ihre Übersicht'!$R$16,IF('Ihre Kennzahlen im Verlauf'!U7="",'Ihre Kennzahlen im Verlauf'!T8,'Ihre Kennzahlen im Verlauf'!U7))) ->  | V8: =IF(OR(U19<=0,U19="")=TRUE,"",IF(V6<=YEAR('Ihre Übersicht'!$D$7)+'Ihre Übersicht'!$R$17,'Ihre Übersicht'!$R$16,IF('Ihre Kennzahlen im Verlauf'!V7="",'Ihre Kennzahlen im Verlauf'!U8,'Ihre Kennzahlen im Verlauf'!V7))) ->  | W8: =IF(OR(V19<=0,V19="")=TRUE,"",IF(W6<=YEAR('Ihre Übersicht'!$D$7)+'Ihre Übersicht'!$R$17,'Ihre Übersicht'!$R$16,IF('Ihre Kennzahlen im Verlauf'!W7="",'Ihre Kennzahlen im Verlauf'!V8,'Ihre Kennzahlen im Verlauf'!W7))) ->  | X8: =IF(OR(W19<=0,W19="")=TRUE,"",IF(X6<=YEAR('Ihre Übersicht'!$D$7)+'Ihre Übersicht'!$R$17,'Ihre Übersicht'!$R$16,IF('Ihre Kennzahlen im Verlauf'!X7="",'Ihre Kennzahlen im Verlauf'!W8,'Ihre Kennzahlen im Verlauf'!X7))) ->  | Y8: =IF(OR(X19<=0,X19="")=TRUE,"",IF(Y6<=YEAR('Ihre Übersicht'!$D$7)+'Ihre Übersicht'!$R$17,'Ihre Übersicht'!$R$16,IF('Ihre Kennzahlen im Verlauf'!Y7="",'Ihre Kennzahlen im Verlauf'!X8,'Ihre Kennzahlen im Verlauf'!Y7))) ->  | Z8: =IF(OR(Y19<=0,Y19="")=TRUE,"",IF(Z6<=YEAR('Ihre Übersicht'!$D$7)+'Ihre Übersicht'!$R$17,'Ihre Übersicht'!$R$16,IF('Ihre Kennzahlen im Verlauf'!Z7="",'Ihre Kennzahlen im Verlauf'!Y8,'Ihre Kennzahlen im Verlauf'!Z7))) ->  | AA8: =IF(OR(Z19<=0,Z19="")=TRUE,"",IF(AA6<=YEAR('Ihre Übersicht'!$D$7)+'Ihre Übersicht'!$R$17,'Ihre Übersicht'!$R$16,IF('Ihre Kennzahlen im Verlauf'!AA7="",'Ihre Kennzahlen im Verlauf'!Z8,'Ihre Kennzahlen im Verlauf'!AA7))) ->  | AB8: =IF(OR(AA19<=0,AA19="")=TRUE,"",IF(AB6<=YEAR('Ihre Übersicht'!$D$7)+'Ihre Übersicht'!$R$17,'Ihre Übersicht'!$R$16,IF('Ihre Kennzahlen im Verlauf'!AB7="",'Ihre Kennzahlen im Verlauf'!AA8,'Ihre Kennzahlen im Verlauf'!AB7))) ->  | AC8: =IF(OR(AB19<=0,AB19="")=TRUE,"",IF(AC6<=YEAR('Ihre Übersicht'!$D$7)+'Ihre Übersicht'!$R$17,'Ihre Übersicht'!$R$16,IF('Ihre Kennzahlen im Verlauf'!AC7="",'Ihre Kennzahlen im Verlauf'!AB8,'Ihre Kennzahlen im Verlauf'!AC7))) ->  | AD8: =IF(OR(AC19<=0,AC19="")=TRUE,"",IF(AD6<=YEAR('Ihre Übersicht'!$D$7)+'Ihre Übersicht'!$R$17,'Ihre Übersicht'!$R$16,IF('Ihre Kennzahlen im Verlauf'!AD7="",'Ihre Kennzahlen im Verlauf'!AC8,'Ihre Kennzahlen im Verlauf'!AD7))) ->  | AE8: =IF(OR(AD19<=0,AD19="")=TRUE,"",IF(AE6<=YEAR('Ihre Übersicht'!$D$7)+'Ihre Übersicht'!$R$17,'Ihre Übersicht'!$R$16,IF('Ihre Kennzahlen im Verlauf'!AE7="",'Ihre Kennzahlen im Verlauf'!AD8,'Ihre Kennzahlen im Verlauf'!AE7))) ->  | AF8: =IF(OR(AE19<=0,AE19="")=TRUE,"",IF(AF6<=YEAR('Ihre Übersicht'!$D$7)+'Ihre Übersicht'!$R$17,'Ihre Übersicht'!$R$16,IF('Ihre Kennzahlen im Verlauf'!AF7="",'Ihre Kennzahlen im Verlauf'!AE8,'Ihre Kennzahlen im Verlauf'!AF7))) ->  | AG8: =IF(OR(AF19<=0,AF19="")=TRUE,"",IF(AG6<=YEAR('Ihre Übersicht'!$D$7)+'Ihre Übersicht'!$R$17,'Ihre Übersicht'!$R$16,IF('Ihre Kennzahlen im Verlauf'!AG7="",'Ihre Kennzahlen im Verlauf'!AF8,'Ihre Kennzahlen im Verlauf'!AG7))) ->  | AH8: =IF(OR(AG19<=0,AG19="")=TRUE,"",IF(AH6<=YEAR('Ihre Übersicht'!$D$7)+'Ihre Übersicht'!$R$17,'Ihre Übersicht'!$R$16,IF('Ihre Kennzahlen im Verlauf'!AH7="",'Ihre Kennzahlen im Verlauf'!AG8,'Ihre Kennzahlen im Verlauf'!AH7))) ->  | AI8: =IF(OR(AH19<=0,AH19="")=TRUE,"",IF(AI6<=YEAR('Ihre Übersicht'!$D$7)+'Ihre Übersicht'!$R$17,'Ihre Übersicht'!$R$16,IF('Ihre Kennzahlen im Verlauf'!AI7="",'Ihre Kennzahlen im Verlauf'!AH8,'Ihre Kennzahlen im Verlauf'!AI7))) ->  | AJ8: =IF(OR(AI19<=0,AI19="")=TRUE,"",IF(AJ6<=YEAR('Ihre Übersicht'!$D$7)+'Ihre Übersicht'!$R$17,'Ihre Übersicht'!$R$16,IF('Ihre Kennzahlen im Verlauf'!AJ7="",'Ihre Kennzahlen im Verlauf'!AI8,'Ihre Kennzahlen im Verlauf'!AJ7))) ->  | AK8: =IF(OR(AJ19<=0,AJ19="")=TRUE,"",IF(AK6<=YEAR('Ihre Übersicht'!$D$7)+'Ihre Übersicht'!$R$17,'Ihre Übersicht'!$R$16,IF('Ihre Kennzahlen im Verlauf'!AK7="",'Ihre Kennzahlen im Verlauf'!AJ8,'Ihre Kennzahlen im Verlauf'!AK7))) ->  | AL8: =IF(OR(AK19<=0,AK19="")=TRUE,"",IF(AL6<=YEAR('Ihre Übersicht'!$D$7)+'Ihre Übersicht'!$R$17,'Ihre Übersicht'!$R$16,IF('Ihre Kennzahlen im Verlauf'!AL7="",'Ihre Kennzahlen im Verlauf'!AK8,'Ihre Kennzahlen im Verlauf'!AL7))) ->  | AM8: =IF(OR(AL19<=0,AL19="")=TRUE,"",IF(AM6<=YEAR('Ihre Übersicht'!$D$7)+'Ihre Übersicht'!$R$17,'Ihre Übersicht'!$R$16,IF('Ihre Kennzahlen im Verlauf'!AM7="",'Ihre Kennzahlen im Verlauf'!AL8,'Ihre Kennzahlen im Verlauf'!AM7))) ->  | AN8: =IF(OR(AM19<=0,AM19="")=TRUE,"",IF(AN6<=YEAR('Ihre Übersicht'!$D$7)+'Ihre Übersicht'!$R$17,'Ihre Übersicht'!$R$16,IF('Ihre Kennzahlen im Verlauf'!AN7="",'Ihre Kennzahlen im Verlauf'!AM8,'Ihre Kennzahlen im Verlauf'!AN7))) ->  | AO8: =IF(OR(AN19<=0,AN19="")=TRUE,"",IF(AO6<=YEAR('Ihre Übersicht'!$D$7)+'Ihre Übersicht'!$R$17,'Ihre Übersicht'!$R$16,IF('Ihre Kennzahlen im Verlauf'!AO7="",'Ihre Kennzahlen im Verlauf'!AN8,'Ihre Kennzahlen im Verlauf'!AO7))) ->  | AP8: =IF(OR(AO19<=0,AO19="")=TRUE,"",IF(AP6<=YEAR('Ihre Übersicht'!$D$7)+'Ihre Übersicht'!$R$17,'Ihre Übersicht'!$R$16,IF('Ihre Kennzahlen im Verlauf'!AP7="",'Ihre Kennzahlen im Verlauf'!AO8,'Ihre Kennzahlen im Verlauf'!AP7))) ->  | AQ8: =IF(OR(AP19<=0,AP19="")=TRUE,"",IF(AQ6<=YEAR('Ihre Übersicht'!$D$7)+'Ihre Übersicht'!$R$17,'Ihre Übersicht'!$R$16,IF('Ihre Kennzahlen im Verlauf'!AQ7="",'Ihre Kennzahlen im Verlauf'!AP8,'Ihre Kennzahlen im Verlauf'!AQ7))) ->  | AR8: =IF(OR(AQ19<=0,AQ19="")=TRUE,"",IF(AR6<=YEAR('Ihre Übersicht'!$D$7)+'Ihre Übersicht'!$R$17,'Ihre Übersicht'!$R$16,IF('Ihre Kennzahlen im Verlauf'!AR7="",'Ihre Kennzahlen im Verlauf'!AQ8,'Ihre Kennzahlen im Verlauf'!AR7))) ->  | AS8: =IF(OR(AR19<=0,AR19="")=TRUE,"",IF(AS6<=YEAR('Ihre Übersicht'!$D$7)+'Ihre Übersicht'!$R$17,'Ihre Übersicht'!$R$16,IF('Ihre Kennzahlen im Verlauf'!AS7="",'Ihre Kennzahlen im Verlauf'!AR8,'Ihre Kennzahlen im Verlauf'!AS7))) ->  | AT8: =IF(OR(AS19<=0,AS19="")=TRUE,"",IF(AT6<=YEAR('Ihre Übersicht'!$D$7)+'Ihre Übersicht'!$R$17,'Ihre Übersicht'!$R$16,IF('Ihre Kennzahlen im Verlauf'!AT7="",'Ihre Kennzahlen im Verlauf'!AS8,'Ihre Kennzahlen im Verlauf'!AT7))) ->  | AU8: =IF(OR(AT19<=0,AT19="")=TRUE,"",IF(AU6<=YEAR('Ihre Übersicht'!$D$7)+'Ihre Übersicht'!$R$17,'Ihre Übersicht'!$R$16,IF('Ihre Kennzahlen im Verlauf'!AU7="",'Ihre Kennzahlen im Verlauf'!AT8,'Ihre Kennzahlen im Verlauf'!AU7))) ->  | AV8: =IF(OR(AU19<=0,AU19="")=TRUE,"",IF(AV6<=YEAR('Ihre Übersicht'!$D$7)+'Ihre Übersicht'!$R$17,'Ihre Übersicht'!$R$16,IF('Ihre Kennzahlen im Verlauf'!AV7="",'Ihre Kennzahlen im Verlauf'!AU8,'Ihre Kennzahlen im Verlauf'!AV7))) ->  | AW8: =IF(OR(AV19<=0,AV19="")=TRUE,"",IF(AW6<=YEAR('Ihre Übersicht'!$D$7)+'Ihre Übersicht'!$R$17,'Ihre Übersicht'!$R$16,IF('Ihre Kennzahlen im Verlauf'!AW7="",'Ihre Kennzahlen im Verlauf'!AV8,'Ihre Kennzahlen im Verlauf'!AW7))) ->  | AX8: =IF(OR(AW19<=0,AW19="")=TRUE,"",IF(AX6<=YEAR('Ihre Übersicht'!$D$7)+'Ihre Übersicht'!$R$17,'Ihre Übersicht'!$R$16,IF('Ihre Kennzahlen im Verlauf'!AX7="",'Ihre Kennzahlen im Verlauf'!AW8,'Ihre Kennzahlen im Verlauf'!AX7))) ->  | AY8: =IF(OR(AX19<=0,AX19="")=TRUE,"",IF(AY6<=YEAR('Ihre Übersicht'!$D$7)+'Ihre Übersicht'!$R$17,'Ihre Übersicht'!$R$16,IF('Ihre Kennzahlen im Verlauf'!AY7="",'Ihre Kennzahlen im Verlauf'!AX8,'Ihre Kennzahlen im Verlauf'!AY7))) ->  | AZ8: =IF(OR(AY19<=0,AY19="")=TRUE,"",IF(AZ6<=YEAR('Ihre Übersicht'!$D$7)+'Ihre Übersicht'!$R$17,'Ihre Übersicht'!$R$16,IF('Ihre Kennzahlen im Verlauf'!AZ7="",'Ihre Kennzahlen im Verlauf'!AY8,'Ihre Kennzahlen im Verlauf'!AZ7))) ->  | BA8: =IF(OR(AZ19<=0,AZ19="")=TRUE,"",IF(BA6<=YEAR('Ihre Übersicht'!$D$7)+'Ihre Übersicht'!$R$17,'Ihre Übersicht'!$R$16,IF('Ihre Kennzahlen im Verlauf'!BA7="",'Ihre Kennzahlen im Verlauf'!AZ8,'Ihre Kennzahlen im Verlauf'!BA7))) ->  | BB8: =IF(OR(BA19<=0,BA19="")=TRUE,"",IF(BB6<=YEAR('Ihre Übersicht'!$D$7)+'Ihre Übersicht'!$R$17,'Ihre Übersicht'!$R$16,IF('Ihre Kennzahlen im Verlauf'!BB7="",'Ihre Kennzahlen im Verlauf'!BA8,'Ihre Kennzahlen im Verlauf'!BB7))) ->  | BC8: =IF(OR(BB19<=0,BB19="")=TRUE,"",IF(BC6<=YEAR('Ihre Übersicht'!$D$7)+'Ihre Übersicht'!$R$17,'Ihre Übersicht'!$R$16,IF('Ihre Kennzahlen im Verlauf'!BC7="",'Ihre Kennzahlen im Verlauf'!BB8,'Ihre Kennzahlen im Verlauf'!BC7))) -> 
C10: Restschuld zu Periodenbeginn | F10: ='Ihre Übersicht'!R15 -> 0 | G10: =IF(F19=0,"",F19) ->  | Q10: =IF(P19=0,"",P19) ->  | R10: =IF(Q19=0,"",Q19) ->  | S10: =IF(R19=0,"",R19) ->  | T10: =IF(S19=0,"",S19) ->  | U10: =IF(T19=0,"",T19) ->  | V10: =IF(U19=0,"",U19) ->  | W10: =IF(V19=0,"",V19) ->  | X10: =IF(W19=0,"",W19) ->  | Y10: =IF(X19=0,"",X19) ->  | Z10: =IF(Y19=0,"",Y19) ->  | AA10: =IF(Z19=0,"",Z19) ->  | AB10: =IF(AA19=0,"",AA19) ->  | AC10: =IF(AB19=0,"",AB19) ->  | AD10: =IF(AC19=0,"",AC19) ->  | AE10: =IF(AD19=0,"",AD19) ->  | AF10: =IF(AE19=0,"",AE19) ->  | AG10: =IF(AF19=0,"",AF19) ->  | AH10: =IF(AG19=0,"",AG19) ->  | AI10: =IF(AH19=0,"",AH19) ->  | AJ10: =IF(AI19=0,"",AI19) ->  | AK10: =IF(AJ19=0,"",AJ19) ->  | AL10: =IF(AK19=0,"",AK19) ->  | AM10: =IF(AL19=0,"",AL19) ->  | AN10: =IF(AM19=0,"",AM19) ->  | AO10: =IF(AN19=0,"",AN19) ->  | AP10: =IF(AO19=0,"",AO19) ->  | AQ10: =IF(AP19=0,"",AP19) ->  | AR10: =IF(AQ19=0,"",AQ19) ->  | AS10: =IF(AR19=0,"",AR19) ->  | AT10: =IF(AS19=0,"",AS19) ->  | AU10: =IF(AT19=0,"",AT19) ->  | AV10: =IF(AU19=0,"",AU19) ->  | AW10: =IF(AV19=0,"",AV19) ->  | AX10: =IF(AW19=0,"",AW19) ->  | AY10: =IF(AX19=0,"",AX19) ->  | AZ10: =IF(AY19=0,"",AY19) ->  | BA10: =IF(AZ19=0,"",AZ19) ->  | BB10: =IF(BA19=0,"",BA19) ->  | BC10: =IF(BB19=0,"",BB19) -> 
C11: Zinsen p.a. | F11: =IF(F8="","",IF(DATE('Ihre Kennzahlen im Verlauf'!F6,1,1)<Sheet3!E6,Sheet3!E23,F10*F8)) ->  | G11: =IF(G10="","",G10*G8) ->  | H11: =IF(H10="","",H10*H8) ->  | I11: =IF(I10="","",I10*I8) ->  | J11: =IF(J10="","",J10*J8) ->  | K11: =IF(K10="","",K10*K8) ->  | L11: =IF(L10="","",L10*L8) ->  | M11: =IF(M10="","",M10*M8) ->  | N11: =IF(N10="","",N10*N8) ->  | O11: =IF(O10="","",O10*O8) ->  | P11: =IF(P10="","",P10*P8) -> 
C13: Neue Soll-Tilgung p.a.
C14: Effektive-Tilgung | F14: ='Ihre Übersicht'!R15*'Ihre Übersicht'!R18 -> 0 | G14: =IF(OR(F19=0,F19="")=TRUE,"",IF(G6-$F6>1,MIN(F19,IF(G13<>"",G13,MAX(F17-G11,0))),MIN(F19,IF(G13<>"",G13,MAX((F8+F15)*F10-G11,0))))) ->  | H14: =IF(OR(G19=0,G19="")=TRUE,"",IF(H6-$F6>1,MIN(G19,IF(H13<>"",H13,MAX(G17-H11,0))),MIN(G19,IF(H13,MAX(((G15+G8)*G10)-G10*G8),0)))) ->  | I14: =IF(OR(H19=0,H19="")=TRUE,"",MIN(H19,IF(I13<>"",I13,MAX(H17-I11,0)))) ->  | J14: =IF(OR(I19=0,I19="")=TRUE,"",MIN(I19,IF(J13<>"",J13,MAX(I17-J11,0)))) ->  | K14: =IF(OR(J19=0,J19="")=TRUE,"",MIN(J19,IF(K13<>"",K13,MAX(J17-K11,0)))) ->  | L14: =IF(OR(K19=0,K19="")=TRUE,"",MIN(K19,IF(L13<>"",L13,MAX(K17-L11,0)))) ->  | M14: =IF(OR(L19=0,L19="")=TRUE,"",MIN(L19,IF(M13<>"",M13,MAX(L17-M11,0)))) ->  | BC14: =IF(OR(BB19=0,BB19="")=TRUE,"",MIN(BB19,IF(BC13<>"",BC13,MAX(BB17-BC11,0)))) -> 
C15: entspricht Tilgungssatz von | F15: =IF(OR(F10=0,F10="")=TRUE,"",F14/F10) ->  | G15: =IF(G14="","",G14/G10) ->  | H15: =IF(H14="","",H14/H10) ->  | I15: =IF(I14="","",I14/I10) ->  | J15: =IF(J14="","",J14/J10) ->  | K15: =IF(K14="","",K14/K10) ->  | L15: =IF(L14="","",L14/L10) ->  | M15: =IF(M14="","",M14/M10) ->  | N15: =IF(N14="","",N14/N10) ->  | O15: =IF(O14="","",O14/O10) ->  | P15: =IF(P14="","",P14/P10) -> 
C17: Kapitaldienst p.a. | F17: =IF(OR(F10="",F10=0)=TRUE,"",F10-F19+F11) ->  | G17: =IF(G10="","",G10-G19+G11) ->  | Q17: =IF(Q10="","",Q10-Q19+Q11) -> 
C18: Einmalige Sondertilgung
C19: Restschuld zu Periodenende | F19: =IF('Ihre Übersicht'!D7>DATE('Ihre Kennzahlen im Verlauf'!F6,1,1),F10-Sheet3!F23-F18,F10-F14-F18) -> 0 | G19: =IF(G10="","",IF(G10-G14-G18<=0,0,G10-G14-G18)) ->  | H19: =IF(H10="","",IF(H10-H14-H18<=0,0,H10-H14-H18)) ->  | I19: =IF(I10="","",IF(I10-I14-I18<=0,0,I10-I14-I18)) ->  | J19: =IF(J10="","",IF(J10-J14-J18<=0,0,J10-J14-J18)) ->  | K19: =IF(K10="","",IF(K10-K14-K18<=0,0,K10-K14-K18)) ->  | L19: =IF(L10="","",IF(L10-L14-L18<=0,0,L10-L14-L18)) ->  | M19: =IF(M10="","",IF(M10-M14-M18<=0,0,M10-M14-M18)) ->  | N19: =IF(N10="","",IF(N10-N14-N18<=0,0,N10-N14-N18)) ->  | O19: =IF(O10="","",IF(O10-O14-O18<=0,0,O10-O14-O18)) ->  | P19: =IF(P10="","",IF(P10-P14-P18<=0,0,P10-P14-P18)) -> 
C20: Ø Kapitaldienst p.m. | F20: =IF(OR(F10=0,F10="")=TRUE,"",(F10-F19+F11)/Sheet3!D6) ->  | G20: =IF(G10="","",(G10-G19+G11)/12) ->  | H20: =IF(H10="","",(H10-H19+H11)/12) ->  | I20: =IF(I10="","",(I10-I19+I11)/12) ->  | J20: =IF(J10="","",(J10-J19+J11)/12) ->  | K20: =IF(K10="","",(K10-K19+K11)/12) ->  | L20: =IF(L10="","",(L10-L19+L11)/12) ->  | M20: =IF(M10="","",(M10-M19+M11)/12) ->  | N20: =IF(N10="","",(N10-N19+N11)/12) ->  | O20: =IF(O10="","",(O10-O19+O11)/12) ->  | P20: =IF(P10="","",(P10-P19+P11)/12) -> 
C22: DARLEHEN 2
F23: =YEAR('Ihre Übersicht'!D$7) -> 2019 | G23: =F23+1 -> 2020 | H23: =G23+1 -> 2021 | I23: =H23+1 -> 2022 | J23: =I23+1 -> 2023 | K23: =J23+1 -> 2024 | L23: =K23+1 -> 2025 | M23: =L23+1 -> 2026 | N23: =M23+1 -> 2027 | O23: =N23+1 -> 2028 | P23: =O23+1 -> 2029 | Q23: =P23+1 -> 2030 | R23: =Q23+1 -> 2031 | S23: =R23+1 -> 2032 | T23: =S23+1 -> 2033 | U23: =T23+1 -> 2034 | V23: =U23+1 -> 2035 | W23: =V23+1 -> 2036 | X23: =W23+1 -> 2037 | Y23: =X23+1 -> 2038 | Z23: =Y23+1 -> 2039 | AA23: =Z23+1 -> 2040 | AB23: =AA23+1 -> 2041 | AC23: =AB23+1 -> 2042 | AD23: =AC23+1 -> 2043 | AE23: =AD23+1 -> 2044 | AF23: =AE23+1 -> 2045 | AG23: =AF23+1 -> 2046 | AH23: =AG23+1 -> 2047 | AI23: =AH23+1 -> 2048 | AJ23: =AI23+1 -> 2049 | AK23: =AJ23+1 -> 2050 | AL23: =AK23+1 -> 2051 | AM23: =AL23+1 -> 2052 | AN23: =AM23+1 -> 2053 | AO23: =AN23+1 -> 2054 | AP23: =AO23+1 -> 2055 | AQ23: =AP23+1 -> 2056 | AR23: =AQ23+1 -> 2057 | AS23: =AR23+1 -> 2058 | AT23: =AS23+1 -> 2059 | AU23: =AT23+1 -> 2060 | AV23: =AU23+1 -> 2061 | AW23: =AV23+1 -> 2062 | AX23: =AW23+1 -> 2063 | AY23: =AX23+1 -> 2064 | AZ23: =AY23+1 -> 2065 | BA23: =AZ23+1 -> 2066 | BB23: =BA23+1 -> 2067 | BC23: =BB23+1 -> 2068
C24: Zinsanpassung
C25: gültiger Zinssatz | F25: =IF(OR(F27=0,F27="")=TRUE,0,IF(F23<=YEAR('Ihre Übersicht'!$D$7)+'Ihre Übersicht'!$X$8,'Ihre Übersicht'!$X$7,IF('Ihre Kennzahlen im Verlauf'!F24="",'Ihre Kennzahlen im Verlauf'!E25,'Ihre Kennzahlen im Verlauf'!F24))) -> 0.00% | G25: =IF(OR(F36<=0,F36="")=TRUE,"",IF(G23<=YEAR('Ihre Übersicht'!$D$7)+'Ihre Übersicht'!$X$8,'Ihre Übersicht'!$X$7,IF('Ihre Kennzahlen im Verlauf'!G24="",'Ihre Kennzahlen im Verlauf'!F25,'Ihre Kennzahlen im Verlauf'!G24))) ->  | H25: =IF(OR(G36<=0,G36="")=TRUE,"",IF(H23<=YEAR('Ihre Übersicht'!$D$7)+'Ihre Übersicht'!$X$8,'Ihre Übersicht'!$X$7,IF('Ihre Kennzahlen im Verlauf'!H24="",'Ihre Kennzahlen im Verlauf'!G25,'Ihre Kennzahlen im Verlauf'!H24))) ->  | I25: =IF(OR(H36<=0,H36="")=TRUE,"",IF(I23<=YEAR('Ihre Übersicht'!$D$7)+'Ihre Übersicht'!$X$8,'Ihre Übersicht'!$X$7,IF('Ihre Kennzahlen im Verlauf'!I24="",'Ihre Kennzahlen im Verlauf'!H25,'Ihre Kennzahlen im Verlauf'!I24))) ->  | J25: =IF(OR(I36<=0,I36="")=TRUE,"",IF(J23<=YEAR('Ihre Übersicht'!$D$7)+'Ihre Übersicht'!$X$8,'Ihre Übersicht'!$X$7,IF('Ihre Kennzahlen im Verlauf'!J24="",'Ihre Kennzahlen im Verlauf'!I25,'Ihre Kennzahlen im Verlauf'!J24))) ->  | K25: =IF(OR(J36<=0,J36="")=TRUE,"",IF(K23<=YEAR('Ihre Übersicht'!$D$7)+'Ihre Übersicht'!$X$8,'Ihre Übersicht'!$X$7,IF('Ihre Kennzahlen im Verlauf'!K24="",'Ihre Kennzahlen im Verlauf'!J25,'Ihre Kennzahlen im Verlauf'!K24))) ->  | L25: =IF(OR(K36<=0,K36="")=TRUE,"",IF(L23<=YEAR('Ihre Übersicht'!$D$7)+'Ihre Übersicht'!$X$8,'Ihre Übersicht'!$X$7,IF('Ihre Kennzahlen im Verlauf'!L24="",'Ihre Kennzahlen im Verlauf'!K25,'Ihre Kennzahlen im Verlauf'!L24))) ->  | M25: =IF(OR(L36<=0,L36="")=TRUE,"",IF(M23<=YEAR('Ihre Übersicht'!$D$7)+'Ihre Übersicht'!$X$8,'Ihre Übersicht'!$X$7,IF('Ihre Kennzahlen im Verlauf'!M24="",'Ihre Kennzahlen im Verlauf'!L25,'Ihre Kennzahlen im Verlauf'!M24))) ->  | N25: =IF(OR(M36<=0,M36="")=TRUE,"",IF(N23<=YEAR('Ihre Übersicht'!$D$7)+'Ihre Übersicht'!$X$8,'Ihre Übersicht'!$X$7,IF('Ihre Kennzahlen im Verlauf'!N24="",'Ihre Kennzahlen im Verlauf'!M25,'Ihre Kennzahlen im Verlauf'!N24))) ->  | O25: =IF(OR(N36<=0,N36="")=TRUE,"",IF(O23<=YEAR('Ihre Übersicht'!$D$7)+'Ihre Übersicht'!$X$8,'Ihre Übersicht'!$X$7,IF('Ihre Kennzahlen im Verlauf'!O24="",'Ihre Kennzahlen im Verlauf'!N25,'Ihre Kennzahlen im Verlauf'!O24))) ->  | P25: =IF(OR(O36<=0,O36="")=TRUE,"",IF(P23<=YEAR('Ihre Übersicht'!$D$7)+'Ihre Übersicht'!$X$8,'Ihre Übersicht'!$X$7,IF('Ihre Kennzahlen im Verlauf'!P24="",'Ihre Kennzahlen im Verlauf'!O25,'Ihre Kennzahlen im Verlauf'!P24))) ->  | Q25: =IF(OR(P36<=0,P36="")=TRUE,"",IF(Q23<=YEAR('Ihre Übersicht'!$D$7)+'Ihre Übersicht'!$X$8,'Ihre Übersicht'!$X$7,IF('Ihre Kennzahlen im Verlauf'!Q24="",'Ihre Kennzahlen im Verlauf'!P25,'Ihre Kennzahlen im Verlauf'!Q24))) ->  | R25: =IF(OR(Q36<=0,Q36="")=TRUE,"",IF(R23<=YEAR('Ihre Übersicht'!$D$7)+'Ihre Übersicht'!$X$8,'Ihre Übersicht'!$X$7,IF('Ihre Kennzahlen im Verlauf'!R24="",'Ihre Kennzahlen im Verlauf'!Q25,'Ihre Kennzahlen im Verlauf'!R24))) ->  | S25: =IF(OR(R36<=0,R36="")=TRUE,"",IF(S23<=YEAR('Ihre Übersicht'!$D$7)+'Ihre Übersicht'!$X$8,'Ihre Übersicht'!$X$7,IF('Ihre Kennzahlen im Verlauf'!S24="",'Ihre Kennzahlen im Verlauf'!R25,'Ihre Kennzahlen im Verlauf'!S24))) ->  | T25: =IF(OR(S36<=0,S36="")=TRUE,"",IF(T23<=YEAR('Ihre Übersicht'!$D$7)+'Ihre Übersicht'!$X$8,'Ihre Übersicht'!$X$7,IF('Ihre Kennzahlen im Verlauf'!T24="",'Ihre Kennzahlen im Verlauf'!S25,'Ihre Kennzahlen im Verlauf'!T24))) ->  | U25: =IF(OR(T36<=0,T36="")=TRUE,"",IF(U23<=YEAR('Ihre Übersicht'!$D$7)+'Ihre Übersicht'!$X$8,'Ihre Übersicht'!$X$7,IF('Ihre Kennzahlen im Verlauf'!U24="",'Ihre Kennzahlen im Verlauf'!T25,'Ihre Kennzahlen im Verlauf'!U24))) ->  | V25: =IF(OR(U36<=0,U36="")=TRUE,"",IF(V23<=YEAR('Ihre Übersicht'!$D$7)+'Ihre Übersicht'!$X$8,'Ihre Übersicht'!$X$7,IF('Ihre Kennzahlen im Verlauf'!V24="",'Ihre Kennzahlen im Verlauf'!U25,'Ihre Kennzahlen im Verlauf'!V24))) ->  | W25: =IF(OR(V36<=0,V36="")=TRUE,"",IF(W23<=YEAR('Ihre Übersicht'!$D$7)+'Ihre Übersicht'!$X$8,'Ihre Übersicht'!$X$7,IF('Ihre Kennzahlen im Verlauf'!W24="",'Ihre Kennzahlen im Verlauf'!V25,'Ihre Kennzahlen im Verlauf'!W24))) ->  | X25: =IF(OR(W36<=0,W36="")=TRUE,"",IF(X23<=YEAR('Ihre Übersicht'!$D$7)+'Ihre Übersicht'!$X$8,'Ihre Übersicht'!$X$7,IF('Ihre Kennzahlen im Verlauf'!X24="",'Ihre Kennzahlen im Verlauf'!W25,'Ihre Kennzahlen im Verlauf'!X24))) ->  | Y25: =IF(OR(X36<=0,X36="")=TRUE,"",IF(Y23<=YEAR('Ihre Übersicht'!$D$7)+'Ihre Übersicht'!$X$8,'Ihre Übersicht'!$X$7,IF('Ihre Kennzahlen im Verlauf'!Y24="",'Ihre Kennzahlen im Verlauf'!X25,'Ihre Kennzahlen im Verlauf'!Y24))) ->  | Z25: =IF(OR(Y36<=0,Y36="")=TRUE,"",IF(Z23<=YEAR('Ihre Übersicht'!$D$7)+'Ihre Übersicht'!$X$8,'Ihre Übersicht'!$X$7,IF('Ihre Kennzahlen im Verlauf'!Z24="",'Ihre Kennzahlen im Verlauf'!Y25,'Ihre Kennzahlen im Verlauf'!Z24))) ->  | AA25: =IF(OR(Z36<=0,Z36="")=TRUE,"",IF(AA23<=YEAR('Ihre Übersicht'!$D$7)+'Ihre Übersicht'!$X$8,'Ihre Übersicht'!$X$7,IF('Ihre Kennzahlen im Verlauf'!AA24="",'Ihre Kennzahlen im Verlauf'!Z25,'Ihre Kennzahlen im Verlauf'!AA24))) ->  | AB25: =IF(OR(AA36<=0,AA36="")=TRUE,"",IF(AB23<=YEAR('Ihre Übersicht'!$D$7)+'Ihre Übersicht'!$X$8,'Ihre Übersicht'!$X$7,IF('Ihre Kennzahlen im Verlauf'!AB24="",'Ihre Kennzahlen im Verlauf'!AA25,'Ihre Kennzahlen im Verlauf'!AB24))) ->  | AC25: =IF(OR(AB36<=0,AB36="")=TRUE,"",IF(AC23<=YEAR('Ihre Übersicht'!$D$7)+'Ihre Übersicht'!$X$8,'Ihre Übersicht'!$X$7,IF('Ihre Kennzahlen im Verlauf'!AC24="",'Ihre Kennzahlen im Verlauf'!AB25,'Ihre Kennzahlen im Verlauf'!AC24))) ->  | AD25: =IF(OR(AC36<=0,AC36="")=TRUE,"",IF(AD23<=YEAR('Ihre Übersicht'!$D$7)+'Ihre Übersicht'!$X$8,'Ihre Übersicht'!$X$7,IF('Ihre Kennzahlen im Verlauf'!AD24="",'Ihre Kennzahlen im Verlauf'!AC25,'Ihre Kennzahlen im Verlauf'!AD24))) ->  | AE25: =IF(OR(AD36<=0,AD36="")=TRUE,"",IF(AE23<=YEAR('Ihre Übersicht'!$D$7)+'Ihre Übersicht'!$X$8,'Ihre Übersicht'!$X$7,IF('Ihre Kennzahlen im Verlauf'!AE24="",'Ihre Kennzahlen im Verlauf'!AD25,'Ihre Kennzahlen im Verlauf'!AE24))) ->  | AF25: =IF(OR(AE36<=0,AE36="")=TRUE,"",IF(AF23<=YEAR('Ihre Übersicht'!$D$7)+'Ihre Übersicht'!$X$8,'Ihre Übersicht'!$X$7,IF('Ihre Kennzahlen im Verlauf'!AF24="",'Ihre Kennzahlen im Verlauf'!AE25,'Ihre Kennzahlen im Verlauf'!AF24))) ->  | AG25: =IF(OR(AF36<=0,AF36="")=TRUE,"",IF(AG23<=YEAR('Ihre Übersicht'!$D$7)+'Ihre Übersicht'!$X$8,'Ihre Übersicht'!$X$7,IF('Ihre Kennzahlen im Verlauf'!AG24="",'Ihre Kennzahlen im Verlauf'!AF25,'Ihre Kennzahlen im Verlauf'!AG24))) ->  | AH25: =IF(OR(AG36<=0,AG36="")=TRUE,"",IF(AH23<=YEAR('Ihre Übersicht'!$D$7)+'Ihre Übersicht'!$X$8,'Ihre Übersicht'!$X$7,IF('Ihre Kennzahlen im Verlauf'!AH24="",'Ihre Kennzahlen im Verlauf'!AG25,'Ihre Kennzahlen im Verlauf'!AH24))) ->  | AI25: =IF(OR(AH36<=0,AH36="")=TRUE,"",IF(AI23<=YEAR('Ihre Übersicht'!$D$7)+'Ihre Übersicht'!$X$8,'Ihre Übersicht'!$X$7,IF('Ihre Kennzahlen im Verlauf'!AI24="",'Ihre Kennzahlen im Verlauf'!AH25,'Ihre Kennzahlen im Verlauf'!AI24))) ->  | AJ25: =IF(OR(AI36<=0,AI36="")=TRUE,"",IF(AJ23<=YEAR('Ihre Übersicht'!$D$7)+'Ihre Übersicht'!$X$8,'Ihre Übersicht'!$X$7,IF('Ihre Kennzahlen im Verlauf'!AJ24="",'Ihre Kennzahlen im Verlauf'!AI25,'Ihre Kennzahlen im Verlauf'!AJ24))) ->  | AK25: =IF(OR(AJ36<=0,AJ36="")=TRUE,"",IF(AK23<=YEAR('Ihre Übersicht'!$D$7)+'Ihre Übersicht'!$X$8,'Ihre Übersicht'!$X$7,IF('Ihre Kennzahlen im Verlauf'!AK24="",'Ihre Kennzahlen im Verlauf'!AJ25,'Ihre Kennzahlen im Verlauf'!AK24))) ->  | AL25: =IF(OR(AK36<=0,AK36="")=TRUE,"",IF(AL23<=YEAR('Ihre Übersicht'!$D$7)+'Ihre Übersicht'!$X$8,'Ihre Übersicht'!$X$7,IF('Ihre Kennzahlen im Verlauf'!AL24="",'Ihre Kennzahlen im Verlauf'!AK25,'Ihre Kennzahlen im Verlauf'!AL24))) ->  | AM25: =IF(OR(AL36<=0,AL36="")=TRUE,"",IF(AM23<=YEAR('Ihre Übersicht'!$D$7)+'Ihre Übersicht'!$X$8,'Ihre Übersicht'!$X$7,IF('Ihre Kennzahlen im Verlauf'!AM24="",'Ihre Kennzahlen im Verlauf'!AL25,'Ihre Kennzahlen im Verlauf'!AM24))) ->  | AN25: =IF(OR(AM36<=0,AM36="")=TRUE,"",IF(AN23<=YEAR('Ihre Übersicht'!$D$7)+'Ihre Übersicht'!$X$8,'Ihre Übersicht'!$X$7,IF('Ihre Kennzahlen im Verlauf'!AN24="",'Ihre Kennzahlen im Verlauf'!AM25,'Ihre Kennzahlen im Verlauf'!AN24))) ->  | AO25: =IF(OR(AN36<=0,AN36="")=TRUE,"",IF(AO23<=YEAR('Ihre Übersicht'!$D$7)+'Ihre Übersicht'!$X$8,'Ihre Übersicht'!$X$7,IF('Ihre Kennzahlen im Verlauf'!AO24="",'Ihre Kennzahlen im Verlauf'!AN25,'Ihre Kennzahlen im Verlauf'!AO24))) ->  | AP25: =IF(OR(AO36<=0,AO36="")=TRUE,"",IF(AP23<=YEAR('Ihre Übersicht'!$D$7)+'Ihre Übersicht'!$X$8,'Ihre Übersicht'!$X$7,IF('Ihre Kennzahlen im Verlauf'!AP24="",'Ihre Kennzahlen im Verlauf'!AO25,'Ihre Kennzahlen im Verlauf'!AP24))) ->  | AQ25: =IF(OR(AP36<=0,AP36="")=TRUE,"",IF(AQ23<=YEAR('Ihre Übersicht'!$D$7)+'Ihre Übersicht'!$X$8,'Ihre Übersicht'!$X$7,IF('Ihre Kennzahlen im Verlauf'!AQ24="",'Ihre Kennzahlen im Verlauf'!AP25,'Ihre Kennzahlen im Verlauf'!AQ24))) ->  | AR25: =IF(OR(AQ36<=0,AQ36="")=TRUE,"",IF(AR23<=YEAR('Ihre Übersicht'!$D$7)+'Ihre Übersicht'!$X$8,'Ihre Übersicht'!$X$7,IF('Ihre Kennzahlen im Verlauf'!AR24="",'Ihre Kennzahlen im Verlauf'!AQ25,'Ihre Kennzahlen im Verlauf'!AR24))) ->  | AS25: =IF(OR(AR36<=0,AR36="")=TRUE,"",IF(AS23<=YEAR('Ihre Übersicht'!$D$7)+'Ihre Übersicht'!$X$8,'Ihre Übersicht'!$X$7,IF('Ihre Kennzahlen im Verlauf'!AS24="",'Ihre Kennzahlen im Verlauf'!AR25,'Ihre Kennzahlen im Verlauf'!AS24))) ->  | AT25: =IF(OR(AS36<=0,AS36="")=TRUE,"",IF(AT23<=YEAR('Ihre Übersicht'!$D$7)+'Ihre Übersicht'!$X$8,'Ihre Übersicht'!$X$7,IF('Ihre Kennzahlen im Verlauf'!AT24="",'Ihre Kennzahlen im Verlauf'!AS25,'Ihre Kennzahlen im Verlauf'!AT24))) ->  | AU25: =IF(OR(AT36<=0,AT36="")=TRUE,"",IF(AU23<=YEAR('Ihre Übersicht'!$D$7)+'Ihre Übersicht'!$X$8,'Ihre Übersicht'!$X$7,IF('Ihre Kennzahlen im Verlauf'!AU24="",'Ihre Kennzahlen im Verlauf'!AT25,'Ihre Kennzahlen im Verlauf'!AU24))) ->  | AV25: =IF(OR(AU36<=0,AU36="")=TRUE,"",IF(AV23<=YEAR('Ihre Übersicht'!$D$7)+'Ihre Übersicht'!$X$8,'Ihre Übersicht'!$X$7,IF('Ihre Kennzahlen im Verlauf'!AV24="",'Ihre Kennzahlen im Verlauf'!AU25,'Ihre Kennzahlen im Verlauf'!AV24))) ->  | AW25: =IF(OR(AV36<=0,AV36="")=TRUE,"",IF(AW23<=YEAR('Ihre Übersicht'!$D$7)+'Ihre Übersicht'!$X$8,'Ihre Übersicht'!$X$7,IF('Ihre Kennzahlen im Verlauf'!AW24="",'Ihre Kennzahlen im Verlauf'!AV25,'Ihre Kennzahlen im Verlauf'!AW24))) ->  | AX25: =IF(OR(AW36<=0,AW36="")=TRUE,"",IF(AX23<=YEAR('Ihre Übersicht'!$D$7)+'Ihre Übersicht'!$X$8,'Ihre Übersicht'!$X$7,IF('Ihre Kennzahlen im Verlauf'!AX24="",'Ihre Kennzahlen im Verlauf'!AW25,'Ihre Kennzahlen im Verlauf'!AX24))) ->  | AY25: =IF(OR(AX36<=0,AX36="")=TRUE,"",IF(AY23<=YEAR('Ihre Übersicht'!$D$7)+'Ihre Übersicht'!$X$8,'Ihre Übersicht'!$X$7,IF('Ihre Kennzahlen im Verlauf'!AY24="",'Ihre Kennzahlen im Verlauf'!AX25,'Ihre Kennzahlen im Verlauf'!AY24))) ->  | AZ25: =IF(OR(AY36<=0,AY36="")=TRUE,"",IF(AZ23<=YEAR('Ihre Übersicht'!$D$7)+'Ihre Übersicht'!$X$8,'Ihre Übersicht'!$X$7,IF('Ihre Kennzahlen im Verlauf'!AZ24="",'Ihre Kennzahlen im Verlauf'!AY25,'Ihre Kennzahlen im Verlauf'!AZ24))) ->  | BA25: =IF(OR(AZ36<=0,AZ36="")=TRUE,"",IF(BA23<=YEAR('Ihre Übersicht'!$D$7)+'Ihre Übersicht'!$X$8,'Ihre Übersicht'!$X$7,IF('Ihre Kennzahlen im Verlauf'!BA24="",'Ihre Kennzahlen im Verlauf'!AZ25,'Ihre Kennzahlen im Verlauf'!BA24))) ->  | BB25: =IF(OR(BA36<=0,BA36="")=TRUE,"",IF(BB23<=YEAR('Ihre Übersicht'!$D$7)+'Ihre Übersicht'!$X$8,'Ihre Übersicht'!$X$7,IF('Ihre Kennzahlen im Verlauf'!BB24="",'Ihre Kennzahlen im Verlauf'!BA25,'Ihre Kennzahlen im Verlauf'!BB24))) ->  | BC25: =IF(OR(BB36<=0,BB36="")=TRUE,"",IF(BC23<=YEAR('Ihre Übersicht'!$D$7)+'Ihre Übersicht'!$X$8,'Ihre Übersicht'!$X$7,IF('Ihre Kennzahlen im Verlauf'!BC24="",'Ihre Kennzahlen im Verlauf'!BB25,'Ihre Kennzahlen im Verlauf'!BC24))) -> 
C27: Restschuld zu Periodenbeginn | F27: ='Ihre Übersicht'!X6 -> 0 | G27: =IF(F36=0,"",F36) ->  | Q27: =IF(P36=0,"",P36) ->  | R27: =IF(Q36=0,"",Q36) ->  | S27: =IF(R36=0,"",R36) ->  | T27: =IF(S36=0,"",S36) ->  | U27: =IF(T36=0,"",T36) ->  | V27: =IF(U36=0,"",U36) ->  | W27: =IF(V36=0,"",V36) ->  | X27: =IF(W36=0,"",W36) ->  | Y27: =IF(X36=0,"",X36) ->  | Z27: =IF(Y36=0,"",Y36) ->  | AA27: =IF(Z36=0,"",Z36) ->  | AB27: =IF(AA36=0,"",AA36) ->  | AC27: =IF(AB36=0,"",AB36) ->  | AD27: =IF(AC36=0,"",AC36) ->  | AE27: =IF(AD36=0,"",AD36) ->  | AF27: =IF(AE36=0,"",AE36) ->  | AG27: =IF(AF36=0,"",AF36) ->  | AH27: =IF(AG36=0,"",AG36) ->  | AI27: =IF(AH36=0,"",AH36) ->  | AJ27: =IF(AI36=0,"",AI36) ->  | AK27: =IF(AJ36=0,"",AJ36) ->  | AL27: =IF(AK36=0,"",AK36) ->  | AM27: =IF(AL36=0,"",AL36) ->  | AN27: =IF(AM36=0,"",AM36) ->  | AO27: =IF(AN36=0,"",AN36) ->  | AP27: =IF(AO36=0,"",AO36) ->  | AQ27: =IF(AP36=0,"",AP36) ->  | AR27: =IF(AQ36=0,"",AQ36) ->  | AS27: =IF(AR36=0,"",AR36) ->  | AT27: =IF(AS36=0,"",AS36) ->  | AU27: =IF(AT36=0,"",AT36) ->  | AV27: =IF(AU36=0,"",AU36) ->  | AW27: =IF(AV36=0,"",AV36) ->  | AX27: =IF(AW36=0,"",AW36) ->  | AY27: =IF(AX36=0,"",AX36) ->  | AZ27: =IF(AY36=0,"",AY36) ->  | BA27: =IF(AZ36=0,"",AZ36) ->  | BB27: =IF(BA36=0,"",BA36) ->  | BC27: =IF(BB36=0,"",BB36) -> 
C28: Zinsen p.a. | F28: =IF(F25="","",IF(Sheet3!E6>DATE('Ihre Kennzahlen im Verlauf'!F23,1,1),Sheet3!L23,F27*F25)) -> 0 | G28: =IF(G27="","",G27*G25) ->  | Q28: =IF(Q27="","",Q27*Q25) -> 
C30: Neue Soll-Tilgung p.a.
C31: Effektive-Tilgung | F31: ='Ihre Übersicht'!X6*'Ihre Übersicht'!X9 -> 0 | G31: =IF(OR(F36=0,F36="")=TRUE,"",IF(G23-$F23>1,MIN(F36,IF(G30<>"",G30,MAX(F34-G28,0))),MIN(F36,IF(G30<>"",G30,MAX((F25+F32)*F27-G28,0))))) ->  | H31: =IF(OR(G36=0,G36="")=TRUE,"",MIN(G36,IF(H30<>"",H30,MAX(G34-H28,0)))) ->  | I31: =IF(OR(H36=0,H36="")=TRUE,"",MIN(H36,IF(I30<>"",I30,MAX(H34-I28,0)))) ->  | J31: =IF(OR(I36=0,I36="")=TRUE,"",MIN(I36,IF(J30<>"",J30,MAX(I34-J28,0)))) ->  | K31: =IF(OR(J36=0,J36="")=TRUE,"",MIN(J36,IF(K30<>"",K30,MAX(J34-K28,0)))) ->  | L31: =IF(OR(K36=0,K36="")=TRUE,"",MIN(K36,IF(L30<>"",L30,MAX(K34-L28,0)))) ->  | M31: =IF(OR(L36=0,L36="")=TRUE,"",MIN(L36,IF(M30<>"",M30,MAX(L34-M28,0)))) ->  | N31: =IF(OR(M36=0,M36="")=TRUE,"",MIN(M36,IF(N30<>"",N30,MAX(M34-N28,0)))) ->  | O31: =IF(OR(N36=0,N36="")=TRUE,"",MIN(N36,IF(O30<>"",O30,MAX(N34-O28,0)))) ->  | P31: =IF(OR(O36=0,O36="")=TRUE,"",MIN(O36,IF(P30<>"",P30,MAX(O34-P28,0)))) ->  | Q31: =IF(OR(P36=0,P36="")=TRUE,"",MIN(P36,IF(Q30<>"",Q30,MAX(P34-Q28,0)))) ->  | R31: =IF(OR(Q36=0,Q36="")=TRUE,"",MIN(Q36,IF(R30<>"",R30,MAX(Q34-R28,0)))) ->  | S31: =IF(OR(R36=0,R36="")=TRUE,"",MIN(R36,IF(S30<>"",S30,MAX(R34-S28,0)))) ->  | T31: =IF(OR(S36=0,S36="")=TRUE,"",MIN(S36,IF(T30<>"",T30,MAX(S34-T28,0)))) ->  | U31: =IF(OR(T36=0,T36="")=TRUE,"",MIN(T36,IF(U30<>"",U30,MAX(T34-U28,0)))) ->  | V31: =IF(OR(U36=0,U36="")=TRUE,"",MIN(U36,IF(V30<>"",V30,MAX(U34-V28,0)))) ->  | W31: =IF(OR(V36=0,V36="")=TRUE,"",MIN(V36,IF(W30<>"",W30,MAX(V34-W28,0)))) ->  | X31: =IF(OR(W36=0,W36="")=TRUE,"",MIN(W36,IF(X30<>"",X30,MAX(W34-X28,0)))) ->  | Y31: =IF(OR(X36=0,X36="")=TRUE,"",MIN(X36,IF(Y30<>"",Y30,MAX(X34-Y28,0)))) ->  | Z31: =IF(OR(Y36=0,Y36="")=TRUE,"",MIN(Y36,IF(Z30<>"",Z30,MAX(Y34-Z28,0)))) ->  | AA31: =IF(OR(Z36=0,Z36="")=TRUE,"",MIN(Z36,IF(AA30<>"",AA30,MAX(Z34-AA28,0)))) ->  | AB31: =IF(OR(AA36=0,AA36="")=TRUE,"",MIN(AA36,IF(AB30<>"",AB30,MAX(AA34-AB28,0)))) ->  | AC31: =IF(OR(AB36=0,AB36="")=TRUE,"",MIN(AB36,IF(AC30<>"",AC30,MAX(AB34-AC28,0)))) ->  | AD31: =IF(OR(AC36=0,AC36="")=TRUE,"",MIN(AC36,IF(AD30<>"",AD30,MAX(AC34-AD28,0)))) ->  | AE31: =IF(OR(AD36=0,AD36="")=TRUE,"",MIN(AD36,IF(AE30<>"",AE30,MAX(AD34-AE28,0)))) ->  | AF31: =IF(OR(AE36=0,AE36="")=TRUE,"",MIN(AE36,IF(AF30<>"",AF30,MAX(AE34-AF28,0)))) ->  | AG31: =IF(OR(AF36=0,AF36="")=TRUE,"",MIN(AF36,IF(AG30<>"",AG30,MAX(AF34-AG28,0)))) ->  | AH31: =IF(OR(AG36=0,AG36="")=TRUE,"",MIN(AG36,IF(AH30<>"",AH30,MAX(AG34-AH28,0)))) ->  | AI31: =IF(OR(AH36=0,AH36="")=TRUE,"",MIN(AH36,IF(AI30<>"",AI30,MAX(AH34-AI28,0)))) ->  | AJ31: =IF(OR(AI36=0,AI36="")=TRUE,"",MIN(AI36,IF(AJ30<>"",AJ30,MAX(AI34-AJ28,0)))) ->  | AK31: =IF(OR(AJ36=0,AJ36="")=TRUE,"",MIN(AJ36,IF(AK30<>"",AK30,MAX(AJ34-AK28,0)))) ->  | AL31: =IF(OR(AK36=0,AK36="")=TRUE,"",MIN(AK36,IF(AL30<>"",AL30,MAX(AK34-AL28,0)))) ->  | AM31: =IF(OR(AL36=0,AL36="")=TRUE,"",MIN(AL36,IF(AM30<>"",AM30,MAX(AL34-AM28,0)))) ->  | AN31: =IF(OR(AM36=0,AM36="")=TRUE,"",MIN(AM36,IF(AN30<>"",AN30,MAX(AM34-AN28,0)))) ->  | AO31: =IF(OR(AN36=0,AN36="")=TRUE,"",MIN(AN36,IF(AO30<>"",AO30,MAX(AN34-AO28,0)))) ->  | AP31: =IF(OR(AO36=0,AO36="")=TRUE,"",MIN(AO36,IF(AP30<>"",AP30,MAX(AO34-AP28,0)))) ->  | AQ31: =IF(OR(AP36=0,AP36="")=TRUE,"",MIN(AP36,IF(AQ30<>"",AQ30,MAX(AP34-AQ28,0)))) ->  | AR31: =IF(OR(AQ36=0,AQ36="")=TRUE,"",MIN(AQ36,IF(AR30<>"",AR30,MAX(AQ34-AR28,0)))) ->  | AS31: =IF(OR(AR36=0,AR36="")=TRUE,"",MIN(AR36,IF(AS30<>"",AS30,MAX(AR34-AS28,0)))) ->  | AT31: =IF(OR(AS36=0,AS36="")=TRUE,"",MIN(AS36,IF(AT30<>"",AT30,MAX(AS34-AT28,0)))) ->  | AU31: =IF(OR(AT36=0,AT36="")=TRUE,"",MIN(AT36,IF(AU30<>"",AU30,MAX(AT34-AU28,0)))) ->  | AV31: =IF(OR(AU36=0,AU36="")=TRUE,"",MIN(AU36,IF(AV30<>"",AV30,MAX(AU34-AV28,0)))) ->  | AW31: =IF(OR(AV36=0,AV36="")=TRUE,"",MIN(AV36,IF(AW30<>"",AW30,MAX(AV34-AW28,0)))) ->  | AX31: =IF(OR(AW36=0,AW36="")=TRUE,"",MIN(AW36,IF(AX30<>"",AX30,MAX(AW34-AX28,0)))) ->  | AY31: =IF(OR(AX36=0,AX36="")=TRUE,"",MIN(AX36,IF(AY30<>"",AY30,MAX(AX34-AY28,0)))) ->  | AZ31: =IF(OR(AY36=0,AY36="")=TRUE,"",MIN(AY36,IF(AZ30<>"",AZ30,MAX(AY34-AZ28,0)))) ->  | BA31: =IF(OR(AZ36=0,AZ36="")=TRUE,"",MIN(AZ36,IF(BA30<>"",BA30,MAX(AZ34-BA28,0)))) ->  | BB31: =IF(OR(BA36=0,BA36="")=TRUE,"",MIN(BA36,IF(BB30<>"",BB30,MAX(BA34-BB28,0)))) ->  | BC31: =IF(OR(BB36=0,BB36="")=TRUE,"",MIN(BB36,IF(BC30<>"",BC30,MAX(BB34-BC28,0)))) -> 
C32: entspricht Tilgungssatz von | F32: =IF(OR(F27=0,F27="")=TRUE,"",F31/F27) ->  | G32: =IF(OR(G27=0,G27="")=TRUE,"",G31/G27) ->  | Q32: =IF(OR(Q27=0,Q27="")=TRUE,"",Q31/Q27) -> 
C34: Kapitaldienst p.a. | F34: =IF(OR(F27="",F27=0)=TRUE,"",F27-F36+F28) ->  | G34: =IF(G27="","",G27-G36+G28) ->  | P34: =IF(P27="","",P27-P36+P28) ->  | Q34: =IF(Q27="","",Q27-Q36+Q28) -> 
C35: Einmalige Sondertilgung
C36: Restschuld zu Periodenende | F36: =IF('Ihre Übersicht'!D7>DATE('Ihre Kennzahlen im Verlauf'!F23,1,1),F27-Sheet3!M23-F35,F27-F31-F35) -> 0 | G36: =IF(G27="","",IF(G27-G31-G35<=0,0,G27-G31-G35)) ->  | Q36: =IF(Q27="","",IF(Q27-Q31-Q35<=0,0,Q27-Q31-Q35)) -> 
C37: Ø Kapitaldienst p.m. | F37: =IF(OR(F27=0,F27="")=TRUE,"",(F27-F36+F28)/Sheet3!K6) ->  | G37: =IF(G27="","",IF(G34<F34,(F37),(G27-G36+G28)/12)) ->  | Q37: =IF(Q27="","",IF(Q34<P34,(P37),(Q27-Q36+Q28)/12)) ->  | R37: =IF(R27="","",IF(R34<Q34,(Q37),(R27-R36+R28)/12)) ->  | S37: =IF(S27="","",IF(S34<R34,(R37),(S27-S36+S28)/12)) ->  | T37: =IF(T27="","",IF(T34<S34,(S37),(T27-T36+T28)/12)) ->  | U37: =IF(U27="","",IF(U34<T34,(T37),(U27-U36+U28)/12)) ->  | V37: =IF(V27="","",IF(V34<U34,(U37),(V27-V36+V28)/12)) ->  | W37: =IF(W27="","",IF(W34<V34,(V37),(W27-W36+W28)/12)) ->  | X37: =IF(X27="","",IF(X34<W34,(W37),(X27-X36+X28)/12)) ->  | Y37: =IF(Y27="","",IF(Y34<X34,(X37),(Y27-Y36+Y28)/12)) ->  | Z37: =IF(Z27="","",IF(Z34<Y34,(Y37),(Z27-Z36+Z28)/12)) ->  | AA37: =IF(AA27="","",IF(AA34<Z34,(Z37),(AA27-AA36+AA28)/12)) ->  | AB37: =IF(AB27="","",IF(AB34<AA34,(AA37),(AB27-AB36+AB28)/12)) ->  | AC37: =IF(AC27="","",IF(AC34<AB34,(AB37),(AC27-AC36+AC28)/12)) ->  | AD37: =IF(AD27="","",IF(AD34<AC34,(AC37),(AD27-AD36+AD28)/12)) ->  | AE37: =IF(AE27="","",IF(AE34<AD34,(AD37),(AE27-AE36+AE28)/12)) ->  | AF37: =IF(AF27="","",IF(AF34<AE34,(AE37),(AF27-AF36+AF28)/12)) ->  | AG37: =IF(AG27="","",IF(AG34<AF34,(AF37),(AG27-AG36+AG28)/12)) ->  | AH37: =IF(AH27="","",IF(AH34<AG34,(AG37),(AH27-AH36+AH28)/12)) ->  | AI37: =IF(AI27="","",IF(AI34<AH34,(AH37),(AI27-AI36+AI28)/12)) ->  | AJ37: =IF(AJ27="","",IF(AJ34<AI34,(AI37),(AJ27-AJ36+AJ28)/12)) ->  | AK37: =IF(AK27="","",IF(AK34<AJ34,(AJ37),(AK27-AK36+AK28)/12)) ->  | AL37: =IF(AL27="","",IF(AL34<AK34,(AK37),(AL27-AL36+AL28)/12)) ->  | AM37: =IF(AM27="","",IF(AM34<AL34,(AL37),(AM27-AM36+AM28)/12)) ->  | AN37: =IF(AN27="","",IF(AN34<AM34,(AM37),(AN27-AN36+AN28)/12)) ->  | AO37: =IF(AO27="","",IF(AO34<AN34,(AN37),(AO27-AO36+AO28)/12)) ->  | AP37: =IF(AP27="","",IF(AP34<AO34,(AO37),(AP27-AP36+AP28)/12)) ->  | AQ37: =IF(AQ27="","",IF(AQ34<AP34,(AP37),(AQ27-AQ36+AQ28)/12)) ->  | AR37: =IF(AR27="","",IF(AR34<AQ34,(AQ37),(AR27-AR36+AR28)/12)) ->  | AS37: =IF(AS27="","",IF(AS34<AR34,(AR37),(AS27-AS36+AS28)/12)) ->  | AT37: =IF(AT27="","",IF(AT34<AS34,(AS37),(AT27-AT36+AT28)/12)) ->  | AU37: =IF(AU27="","",IF(AU34<AT34,(AT37),(AU27-AU36+AU28)/12)) ->  | AV37: =IF(AV27="","",IF(AV34<AU34,(AU37),(AV27-AV36+AV28)/12)) ->  | AW37: =IF(AW27="","",IF(AW34<AV34,(AV37),(AW27-AW36+AW28)/12)) ->  | AX37: =IF(AX27="","",IF(AX34<AW34,(AW37),(AX27-AX36+AX28)/12)) ->  | AY37: =IF(AY27="","",IF(AY34<AX34,(AX37),(AY27-AY36+AY28)/12)) ->  | AZ37: =IF(AZ27="","",IF(AZ34<AY34,(AY37),(AZ27-AZ36+AZ28)/12)) ->  | BA37: =IF(BA27="","",IF(BA34<AZ34,(AZ37),(BA27-BA36+BA28)/12)) ->  | BB37: =IF(BB27="","",IF(BB34<BA34,(BA37),(BB27-BB36+BB28)/12)) ->  | BC37: =IF(BC27="","",IF(BC34<BB34,(BB37),(BC27-BC36+BC28)/12)) -> 
C39: DARLEHEN 3
F40: =YEAR('Ihre Übersicht'!D$7) -> 2019 | G40: =F40+1 -> 2020 | H40: =G40+1 -> 2021 | I40: =H40+1 -> 2022 | J40: =I40+1 -> 2023 | K40: =J40+1 -> 2024 | L40: =K40+1 -> 2025 | M40: =L40+1 -> 2026 | N40: =M40+1 -> 2027 | O40: =N40+1 -> 2028 | P40: =O40+1 -> 2029 | Q40: =P40+1 -> 2030 | R40: =Q40+1 -> 2031 | S40: =R40+1 -> 2032 | T40: =S40+1 -> 2033 | U40: =T40+1 -> 2034 | V40: =U40+1 -> 2035 | W40: =V40+1 -> 2036 | X40: =W40+1 -> 2037 | Y40: =X40+1 -> 2038 | Z40: =Y40+1 -> 2039 | AA40: =Z40+1 -> 2040 | AB40: =AA40+1 -> 2041 | AC40: =AB40+1 -> 2042 | AD40: =AC40+1 -> 2043 | AE40: =AD40+1 -> 2044 | AF40: =AE40+1 -> 2045 | AG40: =AF40+1 -> 2046 | AH40: =AG40+1 -> 2047 | AI40: =AH40+1 -> 2048 | AJ40: =AI40+1 -> 2049 | AK40: =AJ40+1 -> 2050 | AL40: =AK40+1 -> 2051 | AM40: =AL40+1 -> 2052 | AN40: =AM40+1 -> 2053 | AO40: =AN40+1 -> 2054 | AP40: =AO40+1 -> 2055 | AQ40: =AP40+1 -> 2056 | AR40: =AQ40+1 -> 2057 | AS40: =AR40+1 -> 2058 | AT40: =AS40+1 -> 2059 | AU40: =AT40+1 -> 2060 | AV40: =AU40+1 -> 2061 | AW40: =AV40+1 -> 2062 | AX40: =AW40+1 -> 2063 | AY40: =AX40+1 -> 2064 | AZ40: =AY40+1 -> 2065 | BA40: =AZ40+1 -> 2066 | BB40: =BA40+1 -> 2067 | BC40: =BB40+1 -> 2068
C41: Zinsanpassung
C42: gültiger Zinssatz | F42: =IF(OR(F44=0,F44="")=TRUE,0,IF(F40<=YEAR('Ihre Übersicht'!$D$7)+'Ihre Übersicht'!$X$16,'Ihre Übersicht'!$X$15,IF('Ihre Kennzahlen im Verlauf'!F41="",'Ihre Kennzahlen im Verlauf'!E42,'Ihre Kennzahlen im Verlauf'!F41))) -> 0.00% | G42: =IF(OR(F53<=0,F53="")=TRUE,"",IF(G40<=YEAR('Ihre Übersicht'!$D$7)+'Ihre Übersicht'!$X$16,'Ihre Übersicht'!$X$15,IF('Ihre Kennzahlen im Verlauf'!G41="",'Ihre Kennzahlen im Verlauf'!F42,'Ihre Kennzahlen im Verlauf'!G41))) ->  | H42: =IF(OR(G53<=0,G53="")=TRUE,"",IF(H40<=YEAR('Ihre Übersicht'!$D$7)+'Ihre Übersicht'!$X$16,'Ihre Übersicht'!$X$15,IF('Ihre Kennzahlen im Verlauf'!H41="",'Ihre Kennzahlen im Verlauf'!G42,'Ihre Kennzahlen im Verlauf'!H41))) ->  | I42: =IF(OR(H53<=0,H53="")=TRUE,"",IF(I40<=YEAR('Ihre Übersicht'!$D$7)+'Ihre Übersicht'!$X$16,'Ihre Übersicht'!$X$15,IF('Ihre Kennzahlen im Verlauf'!I41="",'Ihre Kennzahlen im Verlauf'!H42,'Ihre Kennzahlen im Verlauf'!I41))) ->  | J42: =IF(OR(I53<=0,I53="")=TRUE,"",IF(J40<=YEAR('Ihre Übersicht'!$D$7)+'Ihre Übersicht'!$X$16,'Ihre Übersicht'!$X$15,IF('Ihre Kennzahlen im Verlauf'!J41="",'Ihre Kennzahlen im Verlauf'!I42,'Ihre Kennzahlen im Verlauf'!J41))) ->  | K42: =IF(OR(J53<=0,J53="")=TRUE,"",IF(K40<=YEAR('Ihre Übersicht'!$D$7)+'Ihre Übersicht'!$X$16,'Ihre Übersicht'!$X$15,IF('Ihre Kennzahlen im Verlauf'!K41="",'Ihre Kennzahlen im Verlauf'!J42,'Ihre Kennzahlen im Verlauf'!K41))) ->  | L42: =IF(OR(K53<=0,K53="")=TRUE,"",IF(L40<=YEAR('Ihre Übersicht'!$D$7)+'Ihre Übersicht'!$X$16,'Ihre Übersicht'!$X$15,IF('Ihre Kennzahlen im Verlauf'!L41="",'Ihre Kennzahlen im Verlauf'!K42,'Ihre Kennzahlen im Verlauf'!L41))) ->  | M42: =IF(OR(L53<=0,L53="")=TRUE,"",IF(M40<=YEAR('Ihre Übersicht'!$D$7)+'Ihre Übersicht'!$X$16,'Ihre Übersicht'!$X$15,IF('Ihre Kennzahlen im Verlauf'!M41="",'Ihre Kennzahlen im Verlauf'!L42,'Ihre Kennzahlen im Verlauf'!M41))) ->  | N42: =IF(OR(M53<=0,M53="")=TRUE,"",IF(N40<=YEAR('Ihre Übersicht'!$D$7)+'Ihre Übersicht'!$X$16,'Ihre Übersicht'!$X$15,IF('Ihre Kennzahlen im Verlauf'!N41="",'Ihre Kennzahlen im Verlauf'!M42,'Ihre Kennzahlen im Verlauf'!N41))) ->  | O42: =IF(OR(N53<=0,N53="")=TRUE,"",IF(O40<=YEAR('Ihre Übersicht'!$D$7)+'Ihre Übersicht'!$X$16,'Ihre Übersicht'!$X$15,IF('Ihre Kennzahlen im Verlauf'!O41="",'Ihre Kennzahlen im Verlauf'!N42,'Ihre Kennzahlen im Verlauf'!O41))) ->  | P42: =IF(OR(O53<=0,O53="")=TRUE,"",IF(P40<=YEAR('Ihre Übersicht'!$D$7)+'Ihre Übersicht'!$X$16,'Ihre Übersicht'!$X$15,IF('Ihre Kennzahlen im Verlauf'!P41="",'Ihre Kennzahlen im Verlauf'!O42,'Ihre Kennzahlen im Verlauf'!P41))) ->  | Q42: =IF(OR(P53<=0,P53="")=TRUE,"",IF(Q40<=YEAR('Ihre Übersicht'!$D$7)+'Ihre Übersicht'!$X$16,'Ihre Übersicht'!$X$15,IF('Ihre Kennzahlen im Verlauf'!Q41="",'Ihre Kennzahlen im Verlauf'!P42,'Ihre Kennzahlen im Verlauf'!Q41))) ->  | R42: =IF(OR(Q53<=0,Q53="")=TRUE,"",IF(R40<=YEAR('Ihre Übersicht'!$D$7)+'Ihre Übersicht'!$X$16,'Ihre Übersicht'!$X$15,IF('Ihre Kennzahlen im Verlauf'!R41="",'Ihre Kennzahlen im Verlauf'!Q42,'Ihre Kennzahlen im Verlauf'!R41))) ->  | S42: =IF(OR(R53<=0,R53="")=TRUE,"",IF(S40<=YEAR('Ihre Übersicht'!$D$7)+'Ihre Übersicht'!$X$16,'Ihre Übersicht'!$X$15,IF('Ihre Kennzahlen im Verlauf'!S41="",'Ihre Kennzahlen im Verlauf'!R42,'Ihre Kennzahlen im Verlauf'!S41))) ->  | T42: =IF(OR(S53<=0,S53="")=TRUE,"",IF(T40<=YEAR('Ihre Übersicht'!$D$7)+'Ihre Übersicht'!$X$16,'Ihre Übersicht'!$X$15,IF('Ihre Kennzahlen im Verlauf'!T41="",'Ihre Kennzahlen im Verlauf'!S42,'Ihre Kennzahlen im Verlauf'!T41))) ->  | U42: =IF(OR(T53<=0,T53="")=TRUE,"",IF(U40<=YEAR('Ihre Übersicht'!$D$7)+'Ihre Übersicht'!$X$16,'Ihre Übersicht'!$X$15,IF('Ihre Kennzahlen im Verlauf'!U41="",'Ihre Kennzahlen im Verlauf'!T42,'Ihre Kennzahlen im Verlauf'!U41))) ->  | V42: =IF(OR(U53<=0,U53="")=TRUE,"",IF(V40<=YEAR('Ihre Übersicht'!$D$7)+'Ihre Übersicht'!$X$16,'Ihre Übersicht'!$X$15,IF('Ihre Kennzahlen im Verlauf'!V41="",'Ihre Kennzahlen im Verlauf'!U42,'Ihre Kennzahlen im Verlauf'!V41))) ->  | W42: =IF(OR(V53<=0,V53="")=TRUE,"",IF(W40<=YEAR('Ihre Übersicht'!$D$7)+'Ihre Übersicht'!$X$16,'Ihre Übersicht'!$X$15,IF('Ihre Kennzahlen im Verlauf'!W41="",'Ihre Kennzahlen im Verlauf'!V42,'Ihre Kennzahlen im Verlauf'!W41))) ->  | X42: =IF(OR(W53<=0,W53="")=TRUE,"",IF(X40<=YEAR('Ihre Übersicht'!$D$7)+'Ihre Übersicht'!$X$16,'Ihre Übersicht'!$X$15,IF('Ihre Kennzahlen im Verlauf'!X41="",'Ihre Kennzahlen im Verlauf'!W42,'Ihre Kennzahlen im Verlauf'!X41))) ->  | Y42: =IF(OR(X53<=0,X53="")=TRUE,"",IF(Y40<=YEAR('Ihre Übersicht'!$D$7)+'Ihre Übersicht'!$X$16,'Ihre Übersicht'!$X$15,IF('Ihre Kennzahlen im Verlauf'!Y41="",'Ihre Kennzahlen im Verlauf'!X42,'Ihre Kennzahlen im Verlauf'!Y41))) ->  | Z42: =IF(OR(Y53<=0,Y53="")=TRUE,"",IF(Z40<=YEAR('Ihre Übersicht'!$D$7)+'Ihre Übersicht'!$X$16,'Ihre Übersicht'!$X$15,IF('Ihre Kennzahlen im Verlauf'!Z41="",'Ihre Kennzahlen im Verlauf'!Y42,'Ihre Kennzahlen im Verlauf'!Z41))) ->  | AA42: =IF(OR(Z53<=0,Z53="")=TRUE,"",IF(AA40<=YEAR('Ihre Übersicht'!$D$7)+'Ihre Übersicht'!$X$16,'Ihre Übersicht'!$X$15,IF('Ihre Kennzahlen im Verlauf'!AA41="",'Ihre Kennzahlen im Verlauf'!Z42,'Ihre Kennzahlen im Verlauf'!AA41))) ->  | AB42: =IF(OR(AA53<=0,AA53="")=TRUE,"",IF(AB40<=YEAR('Ihre Übersicht'!$D$7)+'Ihre Übersicht'!$X$16,'Ihre Übersicht'!$X$15,IF('Ihre Kennzahlen im Verlauf'!AB41="",'Ihre Kennzahlen im Verlauf'!AA42,'Ihre Kennzahlen im Verlauf'!AB41))) ->  | AC42: =IF(OR(AB53<=0,AB53="")=TRUE,"",IF(AC40<=YEAR('Ihre Übersicht'!$D$7)+'Ihre Übersicht'!$X$16,'Ihre Übersicht'!$X$15,IF('Ihre Kennzahlen im Verlauf'!AC41="",'Ihre Kennzahlen im Verlauf'!AB42,'Ihre Kennzahlen im Verlauf'!AC41))) ->  | AD42: =IF(OR(AC53<=0,AC53="")=TRUE,"",IF(AD40<=YEAR('Ihre Übersicht'!$D$7)+'Ihre Übersicht'!$X$16,'Ihre Übersicht'!$X$15,IF('Ihre Kennzahlen im Verlauf'!AD41="",'Ihre Kennzahlen im Verlauf'!AC42,'Ihre Kennzahlen im Verlauf'!AD41))) ->  | AE42: =IF(OR(AD53<=0,AD53="")=TRUE,"",IF(AE40<=YEAR('Ihre Übersicht'!$D$7)+'Ihre Übersicht'!$X$16,'Ihre Übersicht'!$X$15,IF('Ihre Kennzahlen im Verlauf'!AE41="",'Ihre Kennzahlen im Verlauf'!AD42,'Ihre Kennzahlen im Verlauf'!AE41))) ->  | AF42: =IF(OR(AE53<=0,AE53="")=TRUE,"",IF(AF40<=YEAR('Ihre Übersicht'!$D$7)+'Ihre Übersicht'!$X$16,'Ihre Übersicht'!$X$15,IF('Ihre Kennzahlen im Verlauf'!AF41="",'Ihre Kennzahlen im Verlauf'!AE42,'Ihre Kennzahlen im Verlauf'!AF41))) ->  | AG42: =IF(OR(AF53<=0,AF53="")=TRUE,"",IF(AG40<=YEAR('Ihre Übersicht'!$D$7)+'Ihre Übersicht'!$X$16,'Ihre Übersicht'!$X$15,IF('Ihre Kennzahlen im Verlauf'!AG41="",'Ihre Kennzahlen im Verlauf'!AF42,'Ihre Kennzahlen im Verlauf'!AG41))) ->  | AH42: =IF(OR(AG53<=0,AG53="")=TRUE,"",IF(AH40<=YEAR('Ihre Übersicht'!$D$7)+'Ihre Übersicht'!$X$16,'Ihre Übersicht'!$X$15,IF('Ihre Kennzahlen im Verlauf'!AH41="",'Ihre Kennzahlen im Verlauf'!AG42,'Ihre Kennzahlen im Verlauf'!AH41))) ->  | AI42: =IF(OR(AH53<=0,AH53="")=TRUE,"",IF(AI40<=YEAR('Ihre Übersicht'!$D$7)+'Ihre Übersicht'!$X$16,'Ihre Übersicht'!$X$15,IF('Ihre Kennzahlen im Verlauf'!AI41="",'Ihre Kennzahlen im Verlauf'!AH42,'Ihre Kennzahlen im Verlauf'!AI41))) ->  | AJ42: =IF(OR(AI53<=0,AI53="")=TRUE,"",IF(AJ40<=YEAR('Ihre Übersicht'!$D$7)+'Ihre Übersicht'!$X$16,'Ihre Übersicht'!$X$15,IF('Ihre Kennzahlen im Verlauf'!AJ41="",'Ihre Kennzahlen im Verlauf'!AI42,'Ihre Kennzahlen im Verlauf'!AJ41))) ->  | AK42: =IF(OR(AJ53<=0,AJ53="")=TRUE,"",IF(AK40<=YEAR('Ihre Übersicht'!$D$7)+'Ihre Übersicht'!$X$16,'Ihre Übersicht'!$X$15,IF('Ihre Kennzahlen im Verlauf'!AK41="",'Ihre Kennzahlen im Verlauf'!AJ42,'Ihre Kennzahlen im Verlauf'!AK41))) ->  | AL42: =IF(OR(AK53<=0,AK53="")=TRUE,"",IF(AL40<=YEAR('Ihre Übersicht'!$D$7)+'Ihre Übersicht'!$X$16,'Ihre Übersicht'!$X$15,IF('Ihre Kennzahlen im Verlauf'!AL41="",'Ihre Kennzahlen im Verlauf'!AK42,'Ihre Kennzahlen im Verlauf'!AL41))) ->  | AM42: =IF(OR(AL53<=0,AL53="")=TRUE,"",IF(AM40<=YEAR('Ihre Übersicht'!$D$7)+'Ihre Übersicht'!$X$16,'Ihre Übersicht'!$X$15,IF('Ihre Kennzahlen im Verlauf'!AM41="",'Ihre Kennzahlen im Verlauf'!AL42,'Ihre Kennzahlen im Verlauf'!AM41))) ->  | AN42: =IF(OR(AM53<=0,AM53="")=TRUE,"",IF(AN40<=YEAR('Ihre Übersicht'!$D$7)+'Ihre Übersicht'!$X$16,'Ihre Übersicht'!$X$15,IF('Ihre Kennzahlen im Verlauf'!AN41="",'Ihre Kennzahlen im Verlauf'!AM42,'Ihre Kennzahlen im Verlauf'!AN41))) ->  | AO42: =IF(OR(AN53<=0,AN53="")=TRUE,"",IF(AO40<=YEAR('Ihre Übersicht'!$D$7)+'Ihre Übersicht'!$X$16,'Ihre Übersicht'!$X$15,IF('Ihre Kennzahlen im Verlauf'!AO41="",'Ihre Kennzahlen im Verlauf'!AN42,'Ihre Kennzahlen im Verlauf'!AO41))) ->  | AP42: =IF(OR(AO53<=0,AO53="")=TRUE,"",IF(AP40<=YEAR('Ihre Übersicht'!$D$7)+'Ihre Übersicht'!$X$16,'Ihre Übersicht'!$X$15,IF('Ihre Kennzahlen im Verlauf'!AP41="",'Ihre Kennzahlen im Verlauf'!AO42,'Ihre Kennzahlen im Verlauf'!AP41))) ->  | AQ42: =IF(OR(AP53<=0,AP53="")=TRUE,"",IF(AQ40<=YEAR('Ihre Übersicht'!$D$7)+'Ihre Übersicht'!$X$16,'Ihre Übersicht'!$X$15,IF('Ihre Kennzahlen im Verlauf'!AQ41="",'Ihre Kennzahlen im Verlauf'!AP42,'Ihre Kennzahlen im Verlauf'!AQ41))) ->  | AR42: =IF(OR(AQ53<=0,AQ53="")=TRUE,"",IF(AR40<=YEAR('Ihre Übersicht'!$D$7)+'Ihre Übersicht'!$X$16,'Ihre Übersicht'!$X$15,IF('Ihre Kennzahlen im Verlauf'!AR41="",'Ihre Kennzahlen im Verlauf'!AQ42,'Ihre Kennzahlen im Verlauf'!AR41))) ->  | AS42: =IF(OR(AR53<=0,AR53="")=TRUE,"",IF(AS40<=YEAR('Ihre Übersicht'!$D$7)+'Ihre Übersicht'!$X$16,'Ihre Übersicht'!$X$15,IF('Ihre Kennzahlen im Verlauf'!AS41="",'Ihre Kennzahlen im Verlauf'!AR42,'Ihre Kennzahlen im Verlauf'!AS41))) ->  | AT42: =IF(OR(AS53<=0,AS53="")=TRUE,"",IF(AT40<=YEAR('Ihre Übersicht'!$D$7)+'Ihre Übersicht'!$X$16,'Ihre Übersicht'!$X$15,IF('Ihre Kennzahlen im Verlauf'!AT41="",'Ihre Kennzahlen im Verlauf'!AS42,'Ihre Kennzahlen im Verlauf'!AT41))) ->  | AU42: =IF(OR(AT53<=0,AT53="")=TRUE,"",IF(AU40<=YEAR('Ihre Übersicht'!$D$7)+'Ihre Übersicht'!$X$16,'Ihre Übersicht'!$X$15,IF('Ihre Kennzahlen im Verlauf'!AU41="",'Ihre Kennzahlen im Verlauf'!AT42,'Ihre Kennzahlen im Verlauf'!AU41))) ->  | AV42: =IF(OR(AU53<=0,AU53="")=TRUE,"",IF(AV40<=YEAR('Ihre Übersicht'!$D$7)+'Ihre Übersicht'!$X$16,'Ihre Übersicht'!$X$15,IF('Ihre Kennzahlen im Verlauf'!AV41="",'Ihre Kennzahlen im Verlauf'!AU42,'Ihre Kennzahlen im Verlauf'!AV41))) ->  | AW42: =IF(OR(AV53<=0,AV53="")=TRUE,"",IF(AW40<=YEAR('Ihre Übersicht'!$D$7)+'Ihre Übersicht'!$X$16,'Ihre Übersicht'!$X$15,IF('Ihre Kennzahlen im Verlauf'!AW41="",'Ihre Kennzahlen im Verlauf'!AV42,'Ihre Kennzahlen im Verlauf'!AW41))) ->  | AX42: =IF(OR(AW53<=0,AW53="")=TRUE,"",IF(AX40<=YEAR('Ihre Übersicht'!$D$7)+'Ihre Übersicht'!$X$16,'Ihre Übersicht'!$X$15,IF('Ihre Kennzahlen im Verlauf'!AX41="",'Ihre Kennzahlen im Verlauf'!AW42,'Ihre Kennzahlen im Verlauf'!AX41))) ->  | AY42: =IF(OR(AX53<=0,AX53="")=TRUE,"",IF(AY40<=YEAR('Ihre Übersicht'!$D$7)+'Ihre Übersicht'!$X$16,'Ihre Übersicht'!$X$15,IF('Ihre Kennzahlen im Verlauf'!AY41="",'Ihre Kennzahlen im Verlauf'!AX42,'Ihre Kennzahlen im Verlauf'!AY41))) ->  | AZ42: =IF(OR(AY53<=0,AY53="")=TRUE,"",IF(AZ40<=YEAR('Ihre Übersicht'!$D$7)+'Ihre Übersicht'!$X$16,'Ihre Übersicht'!$X$15,IF('Ihre Kennzahlen im Verlauf'!AZ41="",'Ihre Kennzahlen im Verlauf'!AY42,'Ihre Kennzahlen im Verlauf'!AZ41))) ->  | BA42: =IF(OR(AZ53<=0,AZ53="")=TRUE,"",IF(BA40<=YEAR('Ihre Übersicht'!$D$7)+'Ihre Übersicht'!$X$16,'Ihre Übersicht'!$X$15,IF('Ihre Kennzahlen im Verlauf'!BA41="",'Ihre Kennzahlen im Verlauf'!AZ42,'Ihre Kennzahlen im Verlauf'!BA41))) ->  | BB42: =IF(OR(BA53<=0,BA53="")=TRUE,"",IF(BB40<=YEAR('Ihre Übersicht'!$D$7)+'Ihre Übersicht'!$X$16,'Ihre Übersicht'!$X$15,IF('Ihre Kennzahlen im Verlauf'!BB41="",'Ihre Kennzahlen im Verlauf'!BA42,'Ihre Kennzahlen im Verlauf'!BB41))) ->  | BC42: =IF(OR(BB53<=0,BB53="")=TRUE,"",IF(BC40<=YEAR('Ihre Übersicht'!$D$7)+'Ihre Übersicht'!$X$16,'Ihre Übersicht'!$X$15,IF('Ihre Kennzahlen im Verlauf'!BC41="",'Ihre Kennzahlen im Verlauf'!BB42,'Ihre Kennzahlen im Verlauf'!BC41))) -> 
C44: Restschuld zu Periodenbeginn | F44: ='Ihre Übersicht'!X14 -> 0 | G44: =IF(F53=0,"",F53) ->  | H44: =IF(G53=0,"",G53) ->  | I44: =IF(H53=0,"",H53) ->  | J44: =IF(I53=0,"",I53) ->  | K44: =IF(J53=0,"",J53) ->  | L44: =IF(K53=0,"",K53) ->  | M44: =IF(L53=0,"",L53) ->  | N44: =IF(M53=0,"",M53) ->  | O44: =IF(N53=0,"",N53) ->  | P44: =IF(O53=0,"",O53) ->  | Q44: =IF(P53=0,"",P53) ->  | R44: =IF(Q53=0,"",Q53) ->  | S44: =IF(R53=0,"",R53) ->  | T44: =IF(S53=0,"",S53) ->  | U44: =IF(T53=0,"",T53) ->  | V44: =IF(U53=0,"",U53) ->  | W44: =IF(V53=0,"",V53) ->  | X44: =IF(W53=0,"",W53) ->  | Y44: =IF(X53=0,"",X53) ->  | Z44: =IF(Y53=0,"",Y53) ->  | AA44: =IF(Z53=0,"",Z53) ->  | AB44: =IF(AA53=0,"",AA53) ->  | AC44: =IF(AB53=0,"",AB53) ->  | AD44: =IF(AC53=0,"",AC53) ->  | AE44: =IF(AD53=0,"",AD53) ->  | AF44: =IF(AE53=0,"",AE53) ->  | AG44: =IF(AF53=0,"",AF53) ->  | AH44: =IF(AG53=0,"",AG53) ->  | AI44: =IF(AH53=0,"",AH53) ->  | AJ44: =IF(AI53=0,"",AI53) ->  | AK44: =IF(AJ53=0,"",AJ53) ->  | AL44: =IF(AK53=0,"",AK53) ->  | AM44: =IF(AL53=0,"",AL53) ->  | AN44: =IF(AM53=0,"",AM53) ->  | AO44: =IF(AN53=0,"",AN53) ->  | AP44: =IF(AO53=0,"",AO53) ->  | AQ44: =IF(AP53=0,"",AP53) ->  | AR44: =IF(AQ53=0,"",AQ53) ->  | AS44: =IF(AR53=0,"",AR53) ->  | AT44: =IF(AS53=0,"",AS53) ->  | AU44: =IF(AT53=0,"",AT53) ->  | AV44: =IF(AU53=0,"",AU53) ->  | AW44: =IF(AV53=0,"",AV53) ->  | AX44: =IF(AW53=0,"",AW53) ->  | AY44: =IF(AX53=0,"",AX53) ->  | AZ44: =IF(AY53=0,"",AY53) ->  | BA44: =IF(AZ53=0,"",AZ53) ->  | BB44: =IF(BA53=0,"",BA53) ->  | BC44: =IF(BB53=0,"",BB53) -> 
C45: Zinsen p.a. | F45: =IF(F42="","",IF(Sheet3!S6>DATE('Ihre Kennzahlen im Verlauf'!F40,1,1),Sheet3!S23,F44*F42)) -> 0 | G45: =IF(G44="","",G44*G42) ->  | Q45: =IF(Q44="","",Q44*Q42) -> 
C47: Neue Soll-Tilgung p.a.
C48: Effektive-Tilgung | F48: ='Ihre Übersicht'!X14*'Ihre Übersicht'!X17 -> 0 | G48: =IF(OR(F53=0,F53="")=TRUE,"",IF(G40-$F40>1,MIN(F53,IF(G47<>"",G47,MAX(F51-G45,0))),MIN(F53,IF(G47<>"",G47,MAX((F42+F49)*F44-G45,0))))) ->  | H48: =IF(OR(G53=0,G53="")=TRUE,"",MIN(G53,IF(H47<>"",H47,MAX(G51-H45,0)))) ->  | I48: =IF(OR(H53=0,H53="")=TRUE,"",MIN(H53,IF(I47<>"",I47,MAX(H51-I45,0)))) ->  | J48: =IF(OR(I53=0,I53="")=TRUE,"",MIN(I53,IF(J47<>"",J47,MAX(I51-J45,0)))) ->  | K48: =IF(OR(J53=0,J53="")=TRUE,"",MIN(J53,IF(K47<>"",K47,MAX(J51-K45,0)))) ->  | L48: =IF(OR(K53=0,K53="")=TRUE,"",MIN(K53,IF(L47<>"",L47,MAX(K51-L45,0)))) ->  | M48: =IF(OR(L53=0,L53="")=TRUE,"",MIN(L53,IF(M47<>"",M47,MAX(L51-M45,0)))) ->  | N48: =IF(OR(M53=0,M53="")=TRUE,"",MIN(M53,IF(N47<>"",N47,MAX(M51-N45,0)))) ->  | O48: =IF(OR(N53=0,N53="")=TRUE,"",MIN(N53,IF(O47<>"",O47,MAX(N51-O45,0)))) ->  | P48: =IF(OR(O53=0,O53="")=TRUE,"",MIN(O53,IF(P47<>"",P47,MAX(O51-P45,0)))) ->  | Q48: =IF(OR(P53=0,P53="")=TRUE,"",MIN(P53,IF(Q47<>"",Q47,MAX(P51-Q45,0)))) ->  | R48: =IF(OR(Q53=0,Q53="")=TRUE,"",MIN(Q53,IF(R47<>"",R47,MAX(Q51-R45,0)))) ->  | S48: =IF(OR(R53=0,R53="")=TRUE,"",MIN(R53,IF(S47<>"",S47,MAX(R51-S45,0)))) ->  | T48: =IF(OR(S53=0,S53="")=TRUE,"",MIN(S53,IF(T47<>"",T47,MAX(S51-T45,0)))) ->  | U48: =IF(OR(T53=0,T53="")=TRUE,"",MIN(T53,IF(U47<>"",U47,MAX(T51-U45,0)))) ->  | V48: =IF(OR(U53=0,U53="")=TRUE,"",MIN(U53,IF(V47<>"",V47,MAX(U51-V45,0)))) ->  | W48: =IF(OR(V53=0,V53="")=TRUE,"",MIN(V53,IF(W47<>"",W47,MAX(V51-W45,0)))) ->  | X48: =IF(OR(W53=0,W53="")=TRUE,"",MIN(W53,IF(X47<>"",X47,MAX(W51-X45,0)))) ->  | Y48: =IF(OR(X53=0,X53="")=TRUE,"",MIN(X53,IF(Y47<>"",Y47,MAX(X51-Y45,0)))) ->  | Z48: =IF(OR(Y53=0,Y53="")=TRUE,"",MIN(Y53,IF(Z47<>"",Z47,MAX(Y51-Z45,0)))) ->  | AA48: =IF(OR(Z53=0,Z53="")=TRUE,"",MIN(Z53,IF(AA47<>"",AA47,MAX(Z51-AA45,0)))) ->  | AB48: =IF(OR(AA53=0,AA53="")=TRUE,"",MIN(AA53,IF(AB47<>"",AB47,MAX(AA51-AB45,0)))) ->  | AC48: =IF(OR(AB53=0,AB53="")=TRUE,"",MIN(AB53,IF(AC47<>"",AC47,MAX(AB51-AC45,0)))) ->  | AD48: =IF(OR(AC53=0,AC53="")=TRUE,"",MIN(AC53,IF(AD47<>"",AD47,MAX(AC51-AD45,0)))) ->  | AE48: =IF(OR(AD53=0,AD53="")=TRUE,"",MIN(AD53,IF(AE47<>"",AE47,MAX(AD51-AE45,0)))) ->  | AF48: =IF(OR(AE53=0,AE53="")=TRUE,"",MIN(AE53,IF(AF47<>"",AF47,MAX(AE51-AF45,0)))) ->  | AG48: =IF(OR(AF53=0,AF53="")=TRUE,"",MIN(AF53,IF(AG47<>"",AG47,MAX(AF51-AG45,0)))) ->  | AH48: =IF(OR(AG53=0,AG53="")=TRUE,"",MIN(AG53,IF(AH47<>"",AH47,MAX(AG51-AH45,0)))) ->  | AI48: =IF(OR(AH53=0,AH53="")=TRUE,"",MIN(AH53,IF(AI47<>"",AI47,MAX(AH51-AI45,0)))) ->  | AJ48: =IF(OR(AI53=0,AI53="")=TRUE,"",MIN(AI53,IF(AJ47<>"",AJ47,MAX(AI51-AJ45,0)))) ->  | AK48: =IF(OR(AJ53=0,AJ53="")=TRUE,"",MIN(AJ53,IF(AK47<>"",AK47,MAX(AJ51-AK45,0)))) ->  | AL48: =IF(OR(AK53=0,AK53="")=TRUE,"",MIN(AK53,IF(AL47<>"",AL47,MAX(AK51-AL45,0)))) ->  | AM48: =IF(OR(AL53=0,AL53="")=TRUE,"",MIN(AL53,IF(AM47<>"",AM47,MAX(AL51-AM45,0)))) ->  | AN48: =IF(OR(AM53=0,AM53="")=TRUE,"",MIN(AM53,IF(AN47<>"",AN47,MAX(AM51-AN45,0)))) ->  | AO48: =IF(OR(AN53=0,AN53="")=TRUE,"",MIN(AN53,IF(AO47<>"",AO47,MAX(AN51-AO45,0)))) ->  | AP48: =IF(OR(AO53=0,AO53="")=TRUE,"",MIN(AO53,IF(AP47<>"",AP47,MAX(AO51-AP45,0)))) ->  | AQ48: =IF(OR(AP53=0,AP53="")=TRUE,"",MIN(AP53,IF(AQ47<>"",AQ47,MAX(AP51-AQ45,0)))) ->  | AR48: =IF(OR(AQ53=0,AQ53="")=TRUE,"",MIN(AQ53,IF(AR47<>"",AR47,MAX(AQ51-AR45,0)))) ->  | AS48: =IF(OR(AR53=0,AR53="")=TRUE,"",MIN(AR53,IF(AS47<>"",AS47,MAX(AR51-AS45,0)))) ->  | AT48: =IF(OR(AS53=0,AS53="")=TRUE,"",MIN(AS53,IF(AT47<>"",AT47,MAX(AS51-AT45,0)))) ->  | AU48: =IF(OR(AT53=0,AT53="")=TRUE,"",MIN(AT53,IF(AU47<>"",AU47,MAX(AT51-AU45,0)))) ->  | AV48: =IF(OR(AU53=0,AU53="")=TRUE,"",MIN(AU53,IF(AV47<>"",AV47,MAX(AU51-AV45,0)))) ->  | AW48: =IF(OR(AV53=0,AV53="")=TRUE,"",MIN(AV53,IF(AW47<>"",AW47,MAX(AV51-AW45,0)))) ->  | AX48: =IF(OR(AW53=0,AW53="")=TRUE,"",MIN(AW53,IF(AX47<>"",AX47,MAX(AW51-AX45,0)))) ->  | AY48: =IF(OR(AX53=0,AX53="")=TRUE,"",MIN(AX53,IF(AY47<>"",AY47,MAX(AX51-AY45,0)))) ->  | AZ48: =IF(OR(AY53=0,AY53="")=TRUE,"",MIN(AY53,IF(AZ47<>"",AZ47,MAX(AY51-AZ45,0)))) ->  | BA48: =IF(OR(AZ53=0,AZ53="")=TRUE,"",MIN(AZ53,IF(BA47<>"",BA47,MAX(AZ51-BA45,0)))) ->  | BB48: =IF(OR(BA53=0,BA53="")=TRUE,"",MIN(BA53,IF(BB47<>"",BB47,MAX(BA51-BB45,0)))) ->  | BC48: =IF(OR(BB53=0,BB53="")=TRUE,"",MIN(BB53,IF(BC47<>"",BC47,MAX(BB51-BC45,0)))) -> 
C49: entspricht Tilgungssatz von | F49: =IF(OR(F44=0,F44="")=TRUE,"",F48/F44) ->  | G49: =IF(OR(G44=0,G44="")=TRUE,"",G48/G44) ->  | Q49: =IF(OR(Q44=0,Q44="")=TRUE,"",Q48/Q44) -> 
C51: Kapitaldienst p.a. | F51: =IF(OR(F44="",F44=0)=TRUE,"",F44-F53+F45) ->  | G51: =IF(G44="","",G44-G53+G45) ->  | P51: =IF(P44="","",P44-P53+P45) ->  | Q51: =IF(Q44="","",Q44-Q53+Q45) -> 
C52: Einmalige Sondertilgung
C53: Restschuld zu Periodenende | F53: =IF('Ihre Übersicht'!D7>DATE('Ihre Kennzahlen im Verlauf'!F40,1,1),F44-Sheet3!T23-F52,F44-F48-F52) -> 0 | G53: =IF(G44="","",IF(G44-G48-G52<=0,0,G44-G48-G52)) ->  | Q53: =IF(Q44="","",IF(Q44-Q48-Q52<=0,0,Q44-Q48-Q52)) -> 
C54: Ø Kapitaldienst p.m. | F54: =IF(OR(F44=0,F44="")=TRUE,"",(F44-F53+F45)/Sheet3!R6) ->  | G54: =IF(G44="","",IF(G51<F51,(F54),(G44-G53+G45)/12)) ->  | H54: =IF(H44="","",IF(H51<G51,(G54),(H44-H53+H45)/12)) ->  | I54: =IF(I44="","",IF(I51<H51,(H54),(I44-I53+I45)/12)) ->  | J54: =IF(J44="","",IF(J51<I51,(I54),(J44-J53+J45)/12)) ->  | K54: =IF(K44="","",IF(K51<J51,(J54),(K44-K53+K45)/12)) ->  | L54: =IF(L44="","",IF(L51<K51,(K54),(L44-L53+L45)/12)) ->  | M54: =IF(M44="","",IF(M51<L51,(L54),(M44-M53+M45)/12)) ->  | N54: =IF(N44="","",IF(N51<M51,(M54),(N44-N53+N45)/12)) ->  | O54: =IF(O44="","",IF(O51<N51,(N54),(O44-O53+O45)/12)) ->  | P54: =IF(P44="","",IF(P51<O51,(O54),(P44-P53+P45)/12)) ->  | Q54: =IF(Q44="","",IF(Q51<P51,(P54),(Q44-Q53+Q45)/12)) ->  | R54: =IF(R44="","",IF(R51<Q51,(Q54),(R44-R53+R45)/12)) ->  | S54: =IF(S44="","",IF(S51<R51,(R54),(S44-S53+S45)/12)) ->  | T54: =IF(T44="","",IF(T51<S51,(S54),(T44-T53+T45)/12)) ->  | U54: =IF(U44="","",IF(U51<T51,(T54),(U44-U53+U45)/12)) ->  | V54: =IF(V44="","",IF(V51<U51,(U54),(V44-V53+V45)/12)) ->  | W54: =IF(W44="","",IF(W51<V51,(V54),(W44-W53+W45)/12)) ->  | X54: =IF(X44="","",IF(X51<W51,(W54),(X44-X53+X45)/12)) ->  | Y54: =IF(Y44="","",IF(Y51<X51,(X54),(Y44-Y53+Y45)/12)) ->  | Z54: =IF(Z44="","",IF(Z51<Y51,(Y54),(Z44-Z53+Z45)/12)) ->  | AA54: =IF(AA44="","",IF(AA51<Z51,(Z54),(AA44-AA53+AA45)/12)) ->  | AB54: =IF(AB44="","",IF(AB51<AA51,(AA54),(AB44-AB53+AB45)/12)) ->  | AC54: =IF(AC44="","",IF(AC51<AB51,(AB54),(AC44-AC53+AC45)/12)) ->  | AD54: =IF(AD44="","",IF(AD51<AC51,(AC54),(AD44-AD53+AD45)/12)) ->  | AE54: =IF(AE44="","",IF(AE51<AD51,(AD54),(AE44-AE53+AE45)/12)) ->  | AF54: =IF(AF44="","",IF(AF51<AE51,(AE54),(AF44-AF53+AF45)/12)) ->  | AG54: =IF(AG44="","",IF(AG51<AF51,(AF54),(AG44-AG53+AG45)/12)) ->  | AH54: =IF(AH44="","",IF(AH51<AG51,(AG54),(AH44-AH53+AH45)/12)) ->  | AI54: =IF(AI44="","",IF(AI51<AH51,(AH54),(AI44-AI53+AI45)/12)) ->  | AJ54: =IF(AJ44="","",IF(AJ51<AI51,(AI54),(AJ44-AJ53+AJ45)/12)) ->  | AK54: =IF(AK44="","",IF(AK51<AJ51,(AJ54),(AK44-AK53+AK45)/12)) ->  | AL54: =IF(AL44="","",IF(AL51<AK51,(AK54),(AL44-AL53+AL45)/12)) ->  | AM54: =IF(AM44="","",IF(AM51<AL51,(AL54),(AM44-AM53+AM45)/12)) ->  | AN54: =IF(AN44="","",IF(AN51<AM51,(AM54),(AN44-AN53+AN45)/12)) ->  | AO54: =IF(AO44="","",IF(AO51<AN51,(AN54),(AO44-AO53+AO45)/12)) ->  | AP54: =IF(AP44="","",IF(AP51<AO51,(AO54),(AP44-AP53+AP45)/12)) ->  | AQ54: =IF(AQ44="","",IF(AQ51<AP51,(AP54),(AQ44-AQ53+AQ45)/12)) ->  | AR54: =IF(AR44="","",IF(AR51<AQ51,(AQ54),(AR44-AR53+AR45)/12)) ->  | AS54: =IF(AS44="","",IF(AS51<AR51,(AR54),(AS44-AS53+AS45)/12)) ->  | AT54: =IF(AT44="","",IF(AT51<AS51,(AS54),(AT44-AT53+AT45)/12)) ->  | AU54: =IF(AU44="","",IF(AU51<AT51,(AT54),(AU44-AU53+AU45)/12)) ->  | AV54: =IF(AV44="","",IF(AV51<AU51,(AU54),(AV44-AV53+AV45)/12)) ->  | AW54: =IF(AW44="","",IF(AW51<AV51,(AV54),(AW44-AW53+AW45)/12)) ->  | AX54: =IF(AX44="","",IF(AX51<AW51,(AW54),(AX44-AX53+AX45)/12)) ->  | AY54: =IF(AY44="","",IF(AY51<AX51,(AX54),(AY44-AY53+AY45)/12)) ->  | AZ54: =IF(AZ44="","",IF(AZ51<AY51,(AY54),(AZ44-AZ53+AZ45)/12)) ->  | BA54: =IF(BA44="","",IF(BA51<AZ51,(AZ54),(BA44-BA53+BA45)/12)) ->  | BB54: =IF(BB44="","",IF(BB51<BA51,(BA54),(BB44-BB53+BB45)/12)) ->  | BC54: =IF(BC44="","",IF(BC51<BB51,(BB54),(BC44-BC53+BC45)/12)) -> 
C56: Darlehenswerte kumuliert
F57: =YEAR('Ihre Übersicht'!D$7) -> 2019 | G57: =F57+1 -> 2020 | H57: =G57+1 -> 2021 | I57: =H57+1 -> 2022 | J57: =I57+1 -> 2023 | K57: =J57+1 -> 2024 | L57: =K57+1 -> 2025 | M57: =L57+1 -> 2026 | N57: =M57+1 -> 2027 | O57: =N57+1 -> 2028 | P57: =O57+1 -> 2029 | Q57: =P57+1 -> 2030 | R57: =Q57+1 -> 2031 | S57: =R57+1 -> 2032 | T57: =S57+1 -> 2033 | U57: =T57+1 -> 2034 | V57: =U57+1 -> 2035 | W57: =V57+1 -> 2036 | X57: =W57+1 -> 2037 | Y57: =X57+1 -> 2038 | Z57: =Y57+1 -> 2039 | AA57: =Z57+1 -> 2040 | AB57: =AA57+1 -> 2041 | AC57: =AB57+1 -> 2042 | AD57: =AC57+1 -> 2043 | AE57: =AD57+1 -> 2044 | AF57: =AE57+1 -> 2045 | AG57: =AF57+1 -> 2046 | AH57: =AG57+1 -> 2047 | AI57: =AH57+1 -> 2048 | AJ57: =AI57+1 -> 2049 | AK57: =AJ57+1 -> 2050 | AL57: =AK57+1 -> 2051 | AM57: =AL57+1 -> 2052 | AN57: =AM57+1 -> 2053 | AO57: =AN57+1 -> 2054 | AP57: =AO57+1 -> 2055 | AQ57: =AP57+1 -> 2056 | AR57: =AQ57+1 -> 2057 | AS57: =AR57+1 -> 2058 | AT57: =AS57+1 -> 2059 | AU57: =AT57+1 -> 2060 | AV57: =AU57+1 -> 2061 | AW57: =AV57+1 -> 2062 | AX57: =AW57+1 -> 2063 | AY57: =AX57+1 -> 2064 | AZ57: =AY57+1 -> 2065 | BA57: =AZ57+1 -> 2066 | BB57: =BA57+1 -> 2067 | BC57: =BB57+1 -> 2068
C58: Restschuld bei Periodenbeginn | F58: =SUM(F44,F27,F10) -> 0 | G58: =IF(SUM(G44,G27,G10)=0,"",SUM(G44,G27,G10)) ->  | H58: =IF(SUM(H44,H27,H10)=0,"",SUM(H44,H27,H10)) -> 
C60: Zinsen | F60: =SUM(F45,F28,F11) -> 0 | G60: =IF(SUM(G45,G28,G11)=0,"",SUM(G45,G28,G11)) ->  | H60: =IF(SUM(H45,H28,H11)=0,"",SUM(H45,H28,H11)) -> 
C61: gewichteter Zinssatz aller Darlehen | F61: =IF(SUM(F10,F27,F44)=0,"",SUM(F44*F42,F27*F25,F10*F8)/SUM(F10,F27,F44)) ->  | G61: =IF(G58="","",G60/G58) ->  | H61: =IF(H58="","",H60/H58) -> 
C63: Tilgung | F63: =(F48+F31+F14)/12 -> 0 | G63: =IF(SUM(G48,G31,G14)=0,"",SUM(G48,G31,G14)) ->  | H63: =IF(SUM(H48,H31,H14)=0,"",SUM(H48,H31,H14)) -> 
C64: Tilgung über Jahre kummuliert | F64: =F63 -> 0 | G64: =IF(G63="","",G63+F64) ->  | H64: =IF(H63="","",H63+G64) ->  | BC64: =IF(BC63="","",BC63+BB64) -> 
C65: entspricht Tilgungssatz | F65: =IF(OR(F58=0,F58="")=TRUE,"",(F63*12)/F58) ->  | G65: =IF(G58="","",G63/G58) ->  | H65: =IF(H58="","",H63/H58) -> 
C67: Kapitaldienst p.a. | F67: =SUM(F51,F34,F17) -> 0 | G67: =IF(SUM(G51,G34,G17)=0,"",SUM(G51,G34,G17)) ->  | H67: =IF(SUM(H51,H34,H17)=0,"",SUM(H51,H34,H17)) -> 
C68: Restschuld bei Periodenende | F68: =SUM(F53,F36,F19) -> 0 | G68: =IF(SUM(G53,G36,G19)=0,"",SUM(G53,G36,G19)) ->  | H68: =IF(SUM(H53,H36,H19)=0,"",SUM(H53,H36,H19)) -> 
C69: Ø Kapitaldienst pro Monat | F69: =F67/Sheet3!$D$6 -> 0 | G69: =IF(G67="","",G67/12) ->  | H69: =IF(H67="","",H67/12) -> 
C71: WERTENTWICKLUNG DER IMMOBILIE
F72: =YEAR('Ihre Übersicht'!D$7) -> 2019 | G72: =F72+1 -> 2020 | H72: =G72+1 -> 2021 | I72: =H72+1 -> 2022 | J72: =I72+1 -> 2023 | K72: =J72+1 -> 2024 | L72: =K72+1 -> 2025 | M72: =L72+1 -> 2026 | N72: =M72+1 -> 2027 | O72: =N72+1 -> 2028 | P72: =O72+1 -> 2029 | Q72: =P72+1 -> 2030 | R72: =Q72+1 -> 2031 | S72: =R72+1 -> 2032 | T72: =S72+1 -> 2033 | U72: =T72+1 -> 2034 | V72: =U72+1 -> 2035 | W72: =V72+1 -> 2036 | X72: =W72+1 -> 2037 | Y72: =X72+1 -> 2038 | Z72: =Y72+1 -> 2039 | AA72: =Z72+1 -> 2040 | AB72: =AA72+1 -> 2041 | AC72: =AB72+1 -> 2042 | AD72: =AC72+1 -> 2043 | AE72: 2044 | AF72: =AE72+1 -> 2045 | AG72: =AF72+1 -> 2046 | AH72: =AG72+1 -> 2047 | AI72: =AH72+1 -> 2048 | AJ72: =AI72+1 -> 2049 | AK72: =AJ72+1 -> 2050 | AL72: =AK72+1 -> 2051 | AM72: =AL72+1 -> 2052 | AN72: =AM72+1 -> 2053 | AO72: =AN72+1 -> 2054 | AP72: =AO72+1 -> 2055 | AQ72: =AP72+1 -> 2056 | AR72: 2057 | AS72: =AR72+1 -> 2058 | AT72: =AS72+1 -> 2059 | AU72: =AT72+1 -> 2060 | AV72: =AU72+1 -> 2061 | AW72: =AV72+1 -> 2062 | AX72: =AW72+1 -> 2063 | AY72: =AX72+1 -> 2064 | AZ72: =AY72+1 -> 2065 | BA72: =AZ72+1 -> 2066 | BB72: =BA72+1 -> 2067 | BC72: =BB72+1 -> 2068
C73: Wert der Immobilie am Jahresanfang | F73: ='Ihre Übersicht'!L12 -> 0 | G73: =F75 -> 0 | H73: =G75 -> 0 | I73: 0 | J73: 0 | K73: 0 | L73: 0 | M73: 0 | N73: 0 | O73: 0 | P73: 0 | Q73: =P75 -> 0 | R73: =Q75 -> 0 | S73: =R75 -> 0 | T73: =S75 -> 0 | U73: =T75 -> 0 | V73: =U75 -> 0 | W73: =V75 -> 0 | X73: =W75 -> 0 | Y73: =X75 -> 0 | Z73: =Y75 -> 0 | AA73: =Z75 -> 0 | AB73: =AA75 -> 0 | AC73: =AB75 -> 0 | AD73: =AC75 -> 0 | AE73: =AD75 -> 0 | AF73: =AE75 -> 0 | AG73: =AF75 -> 0 | AH73: =AG75 -> 0 | AI73: =AH75 -> 0 | AJ73: =AI75 -> 0 | AK73: =AJ75 -> 0 | AL73: =AK75 -> 0 | AM73: =AL75 -> 0 | AN73: =AM75 -> 0 | AO73: =AN75 -> 0 | AP73: =AO75 -> 0 | AQ73: =AP75 -> 0 | AR73: =AQ75 -> 0 | AS73: =AR75 -> 0 | AT73: =AS75 -> 0 | AU73: =AT75 -> 0 | AV73: =AU75 -> 0 | AW73: =AV75 -> 0 | AX73: =AW75 -> 0 | AY73: =AX75 -> 0 | AZ73: =AY75 -> 0 | BA73: =AZ75 -> 0 | BB73: =BA75 -> 0 | BC73: =BB75 -> 0
C74: Wertentwicklung im Jahr | F74: =F73*'Ihre Übersicht'!$L$34 -> 0 | G74: =G73*'Ihre Übersicht'!$L$34 -> 0 | H74: =H73*'Ihre Übersicht'!$L$34 -> 0 | I74: =I73*'Ihre Übersicht'!$L$34 -> 0 | J74: =J73*'Ihre Übersicht'!$L$34 -> 0 | K74: =K73*'Ihre Übersicht'!$L$34 -> 0 | L74: =L73*'Ihre Übersicht'!$L$34 -> 0 | M74: =M73*'Ihre Übersicht'!$L$34 -> 0 | N74: =N73*'Ihre Übersicht'!$L$34 -> 0 | O74: =O73*'Ihre Übersicht'!$L$34 -> 0 | P74: =P73*'Ihre Übersicht'!$L$34 -> 0 | Q74: =Q73*'Ihre Übersicht'!$L$34 -> 0 | R74: =R73*'Ihre Übersicht'!$L$34 -> 0 | S74: =S73*'Ihre Übersicht'!$L$34 -> 0 | T74: =T73*'Ihre Übersicht'!$L$34 -> 0 | U74: =U73*'Ihre Übersicht'!$L$34 -> 0 | V74: =V73*'Ihre Übersicht'!$L$34 -> 0 | W74: =W73*'Ihre Übersicht'!$L$34 -> 0 | X74: =X73*'Ihre Übersicht'!$L$34 -> 0 | Y74: =Y73*'Ihre Übersicht'!$L$34 -> 0 | Z74: =Z73*'Ihre Übersicht'!$L$34 -> 0 | AA74: =AA73*'Ihre Übersicht'!$L$34 -> 0 | AB74: =AB73*'Ihre Übersicht'!$L$34 -> 0 | AC74: =AC73*'Ihre Übersicht'!$L$34 -> 0 | AD74: =AD73*'Ihre Übersicht'!$L$34 -> 0 | AE74: =AE73*'Ihre Übersicht'!$L$34 -> 0 | AF74: =AF73*'Ihre Übersicht'!$L$34 -> 0 | AG74: =AG73*'Ihre Übersicht'!$L$34 -> 0 | AH74: =AH73*'Ihre Übersicht'!$L$34 -> 0 | AI74: =AI73*'Ihre Übersicht'!$L$34 -> 0 | AJ74: =AJ73*'Ihre Übersicht'!$L$34 -> 0 | AK74: =AK73*'Ihre Übersicht'!$L$34 -> 0 | AL74: =AL73*'Ihre Übersicht'!$L$34 -> 0 | AM74: =AM73*'Ihre Übersicht'!$L$34 -> 0 | AN74: =AN73*'Ihre Übersicht'!$L$34 -> 0 | AO74: =AO73*'Ihre Übersicht'!$L$34 -> 0 | AP74: =AP73*'Ihre Übersicht'!$L$34 -> 0 | AQ74: =AQ73*'Ihre Übersicht'!$L$34 -> 0 | AR74: =AR73*'Ihre Übersicht'!$L$34 -> 0 | AS74: =AS73*'Ihre Übersicht'!$L$34 -> 0 | AT74: =AT73*'Ihre Übersicht'!$L$34 -> 0 | AU74: =AU73*'Ihre Übersicht'!$L$34 -> 0 | AV74: =AV73*'Ihre Übersicht'!$L$34 -> 0 | AW74: =AW73*'Ihre Übersicht'!$L$34 -> 0 | AX74: =AX73*'Ihre Übersicht'!$L$34 -> 0 | AY74: =AY73*'Ihre Übersicht'!$L$34 -> 0 | AZ74: =AZ73*'Ihre Übersicht'!$L$34 -> 0 | BA74: =BA73*'Ihre Übersicht'!$L$34 -> 0 | BB74: =BB73*'Ihre Übersicht'!$L$34 -> 0 | BC74: =BC73*'Ihre Übersicht'!$L$34 -> 0
C75: Wert der Immobilie am Jahresende | F75: =F73+F74 -> 0 | G75: =G73+G74 -> 0 | H75: =H73+H74 -> 0 | I75: 0 | J75: 0 | K75: 0 | L75: 0 | M75: 0 | N75: 0 | O75: 0 | P75: 0 | Q75: =Q73+Q74 -> 0 | R75: =R73+R74 -> 0 | S75: 0 | T75: 0 | U75: 0 | V75: 0 | W75: 0 | X75: 0 | Y75: 0 | Z75: 0 | AA75: 0 | AB75: 0 | AC75: 0 | AD75: 0 | AE75: 0 | AF75: 0 | AG75: 0 | AH75: 0 | AI75: 0 | AJ75: 0 | AK75: 0 | AL75: 0 | AM75: 0 | AN75: 0 | AO75: 0 | AP75: 0 | AQ75: 0 | AR75: 0 | AS75: 0 | AT75: 0 | AU75: 0 | AV75: 0 | AW75: 0 | AX75: 0 | AY75: 0 | AZ75: 0 | BA75: 0 | BB75: 0 | BC75: 0
C76: Nettovermögen Jahresende | F76: =IF(AND(F19="",F36="")=TRUE,F75,IF(F19="",F75-F36,IF(F36="",F75-F19,F75-F36-F19))) -> 0 | G76: 0 | H76: 0 | I76: 0 | J76: 0 | K76: 0 | L76: 0 | M76: 0 | N76: 0 | O76: 0 | P76: 0 | Q76: 0 | R76: 0 | S76: 0 | T76: 0 | U76: 0 | V76: 0 | W76: 0 | X76: 0 | Y76: 0 | Z76: 0 | AA76: 0 | AB76: 0 | AC76: 0 | AD76: 0 | AE76: 0 | AF76: 0 | AG76: 0 | AH76: 0 | AI76: 0 | AJ76: 0 | AK76: 0 | AL76: =IF(AND(AL19="",AL36="")=TRUE,AL75,IF(AL19="",AL75-AL36,IF(AL36="",AL75-AL19,AL75-AL36-AL19))) -> 0 | AM76: 0 | AN76: 0 | AO76: 0 | AP76: 0 | AQ76: 0 | AR76: 0 | AS76: 0 | AT76: 0 | AU76: 0 | AV76: 0 | AW76: 0 | AX76: 0 | AY76: 0 | AZ76: 0 | BA76: 0 | BB76: 0 | BC76: 0
C78: MIETENTWICKLUNG DER IMMOBILIE
F79: =YEAR('Ihre Übersicht'!D$7) -> 2019 | G79: =F79+1 -> 2020 | H79: =G79+1 -> 2021 | I79: =H79+1 -> 2022 | J79: =I79+1 -> 2023 | K79: =J79+1 -> 2024 | L79: =K79+1 -> 2025 | M79: =L79+1 -> 2026 | N79: =M79+1 -> 2027 | O79: =N79+1 -> 2028 | P79: =O79+1 -> 2029 | Q79: =P79+1 -> 2030 | R79: =Q79+1 -> 2031 | S79: =R79+1 -> 2032 | T79: =S79+1 -> 2033 | U79: =T79+1 -> 2034 | V79: =U79+1 -> 2035 | W79: =V79+1 -> 2036 | X79: =W79+1 -> 2037 | Y79: =X79+1 -> 2038 | Z79: =Y79+1 -> 2039 | AA79: =Z79+1 -> 2040 | AB79: =AA79+1 -> 2041 | AC79: =AB79+1 -> 2042 | AD79: =AC79+1 -> 2043 | AE79: 2044 | AF79: =AE79+1 -> 2045 | AG79: =AF79+1 -> 2046 | AH79: =AG79+1 -> 2047 | AI79: =AH79+1 -> 2048 | AJ79: =AI79+1 -> 2049 | AK79: =AJ79+1 -> 2050 | AL79: =AK79+1 -> 2051 | AM79: =AL79+1 -> 2052 | AN79: =AM79+1 -> 2053 | AO79: =AN79+1 -> 2054 | AP79: =AO79+1 -> 2055 | AQ79: =AP79+1 -> 2056 | AR79: 2057 | AS79: =AR79+1 -> 2058 | AT79: =AS79+1 -> 2059 | AU79: =AT79+1 -> 2060 | AV79: =AU79+1 -> 2061 | AW79: =AV79+1 -> 2062 | AX79: =AW79+1 -> 2063 | AY79: =AX79+1 -> 2064 | AZ79: =AY79+1 -> 2065 | BA79: =AZ79+1 -> 2066 | BB79: =BA79+1 -> 2067 | BC79: =BB79+1 -> 2068
C80: Nettokaltmiete | F80: =IF(Sheet3!$X$4="NEIN",'Ihre Übersicht'!F31,'Kalkulation Mehrfamilienhaus'!F9) -> 0 | G80: =IF(Sheet3!$X$4="NEIN",F80*(1+'Ihre Übersicht'!$L$33),'Kalkulation Mehrfamilienhaus'!F9) -> 0 | H80: =IF(Sheet3!$X$4="NEIN",G80*(1+'Ihre Übersicht'!$L$33),'Kalkulation Mehrfamilienhaus'!G9) -> 0 | I80: =IF(Sheet3!$X$4="NEIN",H80*(1+'Ihre Übersicht'!$L$33),'Kalkulation Mehrfamilienhaus'!H9) -> 0 | J80: =IF(Sheet3!$X$4="NEIN",I80*(1+'Ihre Übersicht'!$L$33),'Kalkulation Mehrfamilienhaus'!I9) -> 0 | K80: =IF(Sheet3!$X$4="NEIN",J80*(1+'Ihre Übersicht'!$L$33),'Kalkulation Mehrfamilienhaus'!J9) -> 0 | L80: =IF(Sheet3!$X$4="NEIN",K80*(1+'Ihre Übersicht'!$L$33),'Kalkulation Mehrfamilienhaus'!K9) -> 0 | M80: =IF(Sheet3!$X$4="NEIN",L80*(1+'Ihre Übersicht'!$L$33),'Kalkulation Mehrfamilienhaus'!L9) -> 0 | N80: =IF(Sheet3!$X$4="NEIN",M80*(1+'Ihre Übersicht'!$L$33),'Kalkulation Mehrfamilienhaus'!M9) -> 0 | O80: =IF(Sheet3!$X$4="NEIN",N80*(1+'Ihre Übersicht'!$L$33),'Kalkulation Mehrfamilienhaus'!N9) -> 0 | P80: =IF(Sheet3!$X$4="NEIN",O80*(1+'Ihre Übersicht'!$L$33),'Kalkulation Mehrfamilienhaus'!O9) -> 0 | Q80: =IF(Sheet3!$X$4="NEIN",P80*(1+'Ihre Übersicht'!$L$33),'Kalkulation Mehrfamilienhaus'!P9) -> 0 | R80: =IF(Sheet3!$X$4="NEIN",Q80*(1+'Ihre Übersicht'!$L$33),'Kalkulation Mehrfamilienhaus'!Q9) -> 0 | S80: =IF(Sheet3!$X$4="NEIN",R80*(1+'Ihre Übersicht'!$L$33),'Kalkulation Mehrfamilienhaus'!R9) -> 0 | T80: =IF(Sheet3!$X$4="NEIN",S80*(1+'Ihre Übersicht'!$L$33),'Kalkulation Mehrfamilienhaus'!S9) -> 0 | U80: =IF(Sheet3!$X$4="NEIN",T80*(1+'Ihre Übersicht'!$L$33),'Kalkulation Mehrfamilienhaus'!T9) -> 0 | V80: =IF(Sheet3!$X$4="NEIN",U80*(1+'Ihre Übersicht'!$L$33),'Kalkulation Mehrfamilienhaus'!U9) -> 0 | W80: =IF(Sheet3!$X$4="NEIN",V80*(1+'Ihre Übersicht'!$L$33),'Kalkulation Mehrfamilienhaus'!V9) -> 0 | X80: =IF(Sheet3!$X$4="NEIN",W80*(1+'Ihre Übersicht'!$L$33),'Kalkulation Mehrfamilienhaus'!W9) -> 0 | Y80: =IF(Sheet3!$X$4="NEIN",X80*(1+'Ihre Übersicht'!$L$33),'Kalkulation Mehrfamilienhaus'!X9) -> 0 | Z80: =IF(Sheet3!$X$4="NEIN",Y80*(1+'Ihre Übersicht'!$L$33),'Kalkulation Mehrfamilienhaus'!Y9) -> 0 | AA80: =IF(Sheet3!$X$4="NEIN",Z80*(1+'Ihre Übersicht'!$L$33),'Kalkulation Mehrfamilienhaus'!Z9) -> 0 | AB80: =IF(Sheet3!$X$4="NEIN",AA80*(1+'Ihre Übersicht'!$L$33),'Kalkulation Mehrfamilienhaus'!AA9) -> 0 | AC80: =IF(Sheet3!$X$4="NEIN",AB80*(1+'Ihre Übersicht'!$L$33),'Kalkulation Mehrfamilienhaus'!AB9) -> 0 | AD80: =IF(Sheet3!$X$4="NEIN",AC80*(1+'Ihre Übersicht'!$L$33),'Kalkulation Mehrfamilienhaus'!AC9) -> 0 | AE80: =IF(Sheet3!$X$4="NEIN",AD80*(1+'Ihre Übersicht'!$L$33),'Kalkulation Mehrfamilienhaus'!AD9) -> 0 | AF80: =IF(Sheet3!$X$4="NEIN",AE80*(1+'Ihre Übersicht'!$L$33),'Kalkulation Mehrfamilienhaus'!AE9) -> 0 | AG80: =IF(Sheet3!$X$4="NEIN",AF80*(1+'Ihre Übersicht'!$L$33),'Kalkulation Mehrfamilienhaus'!AF9) -> 0 | AH80: =IF(Sheet3!$X$4="NEIN",AG80*(1+'Ihre Übersicht'!$L$33),'Kalkulation Mehrfamilienhaus'!AG9) -> 0 | AI80: =IF(Sheet3!$X$4="NEIN",AH80*(1+'Ihre Übersicht'!$L$33),'Kalkulation Mehrfamilienhaus'!AH9) -> 0 | AJ80: =IF(Sheet3!$X$4="NEIN",AI80*(1+'Ihre Übersicht'!$L$33),'Kalkulation Mehrfamilienhaus'!AI9) -> 0 | AK80: =IF(Sheet3!$X$4="NEIN",AJ80*(1+'Ihre Übersicht'!$L$33),'Kalkulation Mehrfamilienhaus'!AJ9) -> 0 | AL80: =IF(Sheet3!$X$4="NEIN",AK80*(1+'Ihre Übersicht'!$L$33),'Kalkulation Mehrfamilienhaus'!AK9) -> 0 | AM80: =IF(Sheet3!$X$4="NEIN",AL80*(1+'Ihre Übersicht'!$L$33),'Kalkulation Mehrfamilienhaus'!AL9) -> 0 | AN80: =IF(Sheet3!$X$4="NEIN",AM80*(1+'Ihre Übersicht'!$L$33),'Kalkulation Mehrfamilienhaus'!AM9) -> 0 | AO80: =IF(Sheet3!$X$4="NEIN",AN80*(1+'Ihre Übersicht'!$L$33),'Kalkulation Mehrfamilienhaus'!AN9) -> 0 | AP80: =IF(Sheet3!$X$4="NEIN",AO80*(1+'Ihre Übersicht'!$L$33),'Kalkulation Mehrfamilienhaus'!AO9) -> 0 | AQ80: =IF(Sheet3!$X$4="NEIN",AP80*(1+'Ihre Übersicht'!$L$33),'Kalkulation Mehrfamilienhaus'!AP9) -> 0 | AR80: =IF(Sheet3!$X$4="NEIN",AQ80*(1+'Ihre Übersicht'!$L$33),'Kalkulation Mehrfamilienhaus'!AQ9) -> 0 | AS80: =IF(Sheet3!$X$4="NEIN",AR80*(1+'Ihre Übersicht'!$L$33),'Kalkulation Mehrfamilienhaus'!AR9) -> 0 | AT80: =IF(Sheet3!$X$4="NEIN",AS80*(1+'Ihre Übersicht'!$L$33),'Kalkulation Mehrfamilienhaus'!AS9) -> 0 | AU80: =IF(Sheet3!$X$4="NEIN",AT80*(1+'Ihre Übersicht'!$L$33),'Kalkulation Mehrfamilienhaus'!AT9) -> 0 | AV80: =IF(Sheet3!$X$4="NEIN",AU80*(1+'Ihre Übersicht'!$L$33),'Kalkulation Mehrfamilienhaus'!AU9) -> 0 | AW80: =IF(Sheet3!$X$4="NEIN",AV80*(1+'Ihre Übersicht'!$L$33),'Kalkulation Mehrfamilienhaus'!AV9) -> 0 | AX80: =IF(Sheet3!$X$4="NEIN",AW80*(1+'Ihre Übersicht'!$L$33),'Kalkulation Mehrfamilienhaus'!AW9) -> 0 | AY80: =IF(Sheet3!$X$4="NEIN",AX80*(1+'Ihre Übersicht'!$L$33),'Kalkulation Mehrfamilienhaus'!AX9) -> 0 | AZ80: =IF(Sheet3!$X$4="NEIN",AY80*(1+'Ihre Übersicht'!$L$33),'Kalkulation Mehrfamilienhaus'!AY9) -> 0 | BA80: =IF(Sheet3!$X$4="NEIN",AZ80*(1+'Ihre Übersicht'!$L$33),'Kalkulation Mehrfamilienhaus'!AZ9) -> 0 | BB80: =IF(Sheet3!$X$4="NEIN",BA80*(1+'Ihre Übersicht'!$L$33),'Kalkulation Mehrfamilienhaus'!BA9) -> 0 | BC80: =IF(Sheet3!$X$4="NEIN",BB80*(1+'Ihre Übersicht'!$L$33),'Kalkulation Mehrfamilienhaus'!BB9) -> 0
C81: umlagefähige Kosten | F81: ='Ihre Übersicht'!X27 -> 0 | G81: =F81*(1+'Ihre Übersicht'!$L$32) -> 0 | H81: =G81*(1+'Ihre Übersicht'!$L$32) -> 0 | I81: =H81*(1+'Ihre Übersicht'!$L$32) -> 0 | J81: =I81*(1+'Ihre Übersicht'!$L$32) -> 0 | K81: =J81*(1+'Ihre Übersicht'!$L$32) -> 0 | L81: =K81*(1+'Ihre Übersicht'!$L$32) -> 0 | M81: =L81*(1+'Ihre Übersicht'!$L$32) -> 0 | N81: =M81*(1+'Ihre Übersicht'!$L$32) -> 0 | O81: =N81*(1+'Ihre Übersicht'!$L$32) -> 0 | P81: =O81*(1+'Ihre Übersicht'!$L$32) -> 0 | Q81: =P81*(1+'Ihre Übersicht'!$L$32) -> 0 | R81: =Q81*(1+'Ihre Übersicht'!$L$32) -> 0 | S81: =R81*(1+'Ihre Übersicht'!$L$32) -> 0 | T81: =S81*(1+'Ihre Übersicht'!$L$32) -> 0 | U81: =T81*(1+'Ihre Übersicht'!$L$32) -> 0 | V81: =U81*(1+'Ihre Übersicht'!$L$32) -> 0 | W81: =V81*(1+'Ihre Übersicht'!$L$32) -> 0 | X81: =W81*(1+'Ihre Übersicht'!$L$32) -> 0 | Y81: =X81*(1+'Ihre Übersicht'!$L$32) -> 0 | Z81: =Y81*(1+'Ihre Übersicht'!$L$32) -> 0 | AA81: =Z81*(1+'Ihre Übersicht'!$L$32) -> 0 | AB81: =AA81*(1+'Ihre Übersicht'!$L$32) -> 0 | AC81: =AB81*(1+'Ihre Übersicht'!$L$32) -> 0 | AD81: =AC81*(1+'Ihre Übersicht'!$L$32) -> 0 | AE81: =AD81*(1+'Ihre Übersicht'!$L$32) -> 0 | AF81: =AE81*(1+'Ihre Übersicht'!$L$32) -> 0 | AG81: =AF81*(1+'Ihre Übersicht'!$L$32) -> 0 | AH81: =AG81*(1+'Ihre Übersicht'!$L$32) -> 0 | AI81: =AH81*(1+'Ihre Übersicht'!$L$32) -> 0 | AJ81: =AI81*(1+'Ihre Übersicht'!$L$32) -> 0 | AK81: =AJ81*(1+'Ihre Übersicht'!$L$32) -> 0 | AL81: =AK81*(1+'Ihre Übersicht'!$L$32) -> 0 | AM81: =AL81*(1+'Ihre Übersicht'!$L$32) -> 0 | AN81: =AM81*(1+'Ihre Übersicht'!$L$32) -> 0 | AO81: =AN81*(1+'Ihre Übersicht'!$L$32) -> 0 | AP81: =AO81*(1+'Ihre Übersicht'!$L$32) -> 0 | AQ81: =AP81*(1+'Ihre Übersicht'!$L$32) -> 0 | AR81: =AQ81*(1+'Ihre Übersicht'!$L$32) -> 0 | AS81: =AR81*(1+'Ihre Übersicht'!$L$32) -> 0 | AT81: =AS81*(1+'Ihre Übersicht'!$L$32) -> 0 | AU81: =AT81*(1+'Ihre Übersicht'!$L$32) -> 0 | AV81: =AU81*(1+'Ihre Übersicht'!$L$32) -> 0 | AW81: =AV81*(1+'Ihre Übersicht'!$L$32) -> 0 | AX81: =AW81*(1+'Ihre Übersicht'!$L$32) -> 0 | AY81: =AX81*(1+'Ihre Übersicht'!$L$32) -> 0 | AZ81: =AY81*(1+'Ihre Übersicht'!$L$32) -> 0 | BA81: =AZ81*(1+'Ihre Übersicht'!$L$32) -> 0 | BB81: =BA81*(1+'Ihre Übersicht'!$L$32) -> 0 | BC81: =BB81*(1+'Ihre Übersicht'!$L$32) -> 0
C82: Warmmiete | F82: =F80+F81 -> 0 | G82: =G80+G81 -> 0 | H82: 0 | I82: 0 | J82: 0 | K82: 0 | L82: 0 | M82: 0 | N82: 0 | O82: 0 | P82: 0 | Q82: =Q80+Q81 -> 0 | R82: =R80+R81 -> 0 | S82: 0 | T82: 0 | U82: 0 | V82: 0 | W82: 0 | X82: 0 | Y82: 0 | Z82: 0 | AA82: 0 | AB82: 0 | AC82: 0 | AD82: 0 | AE82: 0 | AF82: 0 | AG82: 0 | AH82: 0 | AI82: 0 | AJ82: 0 | AK82: 0 | AL82: 0 | AM82: 0 | AN82: 0 | AO82: 0 | AP82: 0 | AQ82: 0 | AR82: 0 | AS82: 0 | AT82: 0 | AU82: 0 | AV82: 0 | AW82: 0 | AX82: 0 | AY82: 0 | AZ82: 0 | BA82: 0 | BB82: 0 | BC82: 0
C84: ABSCHREIBUNG DER IMMOBILIE
F85: =YEAR('Ihre Übersicht'!D$7) -> 2019 | G85: =F85+1 -> 2020 | H85: =G85+1 -> 2021 | I85: =H85+1 -> 2022 | J85: =I85+1 -> 2023 | K85: =J85+1 -> 2024 | L85: =K85+1 -> 2025 | M85: =L85+1 -> 2026 | N85: =M85+1 -> 2027 | O85: =N85+1 -> 2028 | P85: =O85+1 -> 2029 | Q85: =P85+1 -> 2030 | R85: =Q85+1 -> 2031 | S85: =R85+1 -> 2032 | T85: =S85+1 -> 2033 | U85: =T85+1 -> 2034 | V85: =U85+1 -> 2035 | W85: =V85+1 -> 2036 | X85: =W85+1 -> 2037 | Y85: =X85+1 -> 2038 | Z85: =Y85+1 -> 2039 | AA85: =Z85+1 -> 2040 | AB85: =AA85+1 -> 2041 | AC85: =AB85+1 -> 2042 | AD85: =AC85+1 -> 2043 | AE85: 2044 | AF85: =AE85+1 -> 2045 | AG85: =AF85+1 -> 2046 | AH85: =AG85+1 -> 2047 | AI85: =AH85+1 -> 2048 | AJ85: =AI85+1 -> 2049 | AK85: =AJ85+1 -> 2050 | AL85: =AK85+1 -> 2051 | AM85: =AL85+1 -> 2052 | AN85: =AM85+1 -> 2053 | AO85: =AN85+1 -> 2054 | AP85: =AO85+1 -> 2055 | AQ85: =AP85+1 -> 2056 | AR85: 2057 | AS85: =AR85+1 -> 2058 | AT85: =AS85+1 -> 2059 | AU85: =AT85+1 -> 2060 | AV85: =AU85+1 -> 2061 | AW85: =AV85+1 -> 2062 | AX85: =AW85+1 -> 2063 | AY85: =AX85+1 -> 2064 | AZ85: =AY85+1 -> 2065 | BA85: =AZ85+1 -> 2066 | BB85: =BA85+1 -> 2067 | BC85: =BB85+1 -> 2068
C86: Basis für Abschreibung | F86: ='Ihre Übersicht'!L29 -> 0 | G86: =IF(G85<=F$85+1/'Ihre Übersicht'!$L$27,IF(G87="","",F86),"") -> 0 | H86: =IF(H85<=G$85+1/'Ihre Übersicht'!$L$27,IF(H87="","",G86),"") -> 0 | I86: =IF(I85<=H$85+1/'Ihre Übersicht'!$L$27,IF(I87="","",H86),"") -> 0 | J86: =IF(J85<=I$85+1/'Ihre Übersicht'!$L$27,IF(J87="","",I86),"") -> 0 | K86: =IF(K85<=J$85+1/'Ihre Übersicht'!$L$27,IF(K87="","",J86),"") -> 0 | L86: =IF(L85<=K$85+1/'Ihre Übersicht'!$L$27,IF(L87="","",K86),"") -> 0 | M86: =IF(M85<=L$85+1/'Ihre Übersicht'!$L$27,IF(M87="","",L86),"") -> 0 | N86: =IF(N85<=M$85+1/'Ihre Übersicht'!$L$27,IF(N87="","",M86),"") -> 0 | O86: =IF(O85<=N$85+1/'Ihre Übersicht'!$L$27,IF(O87="","",N86),"") -> 0 | P86: =IF(P85<=O$85+1/'Ihre Übersicht'!$L$27,IF(P87="","",O86),"") -> 0 | Q86: =IF(Q85<=P$85+1/'Ihre Übersicht'!$L$27,IF(Q87="","",P86),"") -> 0 | R86: =IF(R85<=Q$85+1/'Ihre Übersicht'!$L$27,IF(R87="","",Q86),"") -> 0 | S86: =IF(S85<=R$85+1/'Ihre Übersicht'!$L$27,IF(S87="","",R86),"") -> 0 | T86: =IF(T85<=S$85+1/'Ihre Übersicht'!$L$27,IF(T87="","",S86),"") -> 0 | U86: =IF(U85<=T$85+1/'Ihre Übersicht'!$L$27,IF(U87="","",T86),"") -> 0 | V86: =IF(V85<=U$85+1/'Ihre Übersicht'!$L$27,IF(V87="","",U86),"") -> 0 | W86: =IF(W85<=V$85+1/'Ihre Übersicht'!$L$27,IF(W87="","",V86),"") -> 0 | X86: =IF(X85<=W$85+1/'Ihre Übersicht'!$L$27,IF(X87="","",W86),"") -> 0 | Y86: =IF(Y85<=X$85+1/'Ihre Übersicht'!$L$27,IF(Y87="","",X86),"") -> 0 | Z86: =IF(Z85<=Y$85+1/'Ihre Übersicht'!$L$27,IF(Z87="","",Y86),"") -> 0 | AA86: =IF(AA85<=Z$85+1/'Ihre Übersicht'!$L$27,IF(AA87="","",Z86),"") -> 0 | AB86: =IF(AB85<=AA$85+1/'Ihre Übersicht'!$L$27,IF(AB87="","",AA86),"") -> 0 | AC86: =IF(AC85<=AB$85+1/'Ihre Übersicht'!$L$27,IF(AC87="","",AB86),"") -> 0 | AD86: =IF(AD85<=AC$85+1/'Ihre Übersicht'!$L$27,IF(AD87="","",AC86),"") -> 0 | AE86: =IF(AE85<=AD$85+1/'Ihre Übersicht'!$L$27,IF(AE87="","",AD86),"") -> 0 | AF86: =IF(AF85<=AE$85+1/'Ihre Übersicht'!$L$27,IF(AF87="","",AE86),"") -> 0 | AG86: =IF(AG85<=AF$85+1/'Ihre Übersicht'!$L$27,IF(AG87="","",AF86),"") -> 0 | AH86: =IF(AH85<=AG$85+1/'Ihre Übersicht'!$L$27,IF(AH87="","",AG86),"") -> 0 | AI86: =IF(AI85<=AH$85+1/'Ihre Übersicht'!$L$27,IF(AI87="","",AH86),"") -> 0 | AJ86: =IF(AJ85<=AI$85+1/'Ihre Übersicht'!$L$27,IF(AJ87="","",AI86),"") -> 0 | AK86: =IF(AK85<=AJ$85+1/'Ihre Übersicht'!$L$27,IF(AK87="","",AJ86),"") -> 0 | AL86: =IF(AL85<=AK$85+1/'Ihre Übersicht'!$L$27,IF(AL87="","",AK86),"") -> 0 | AM86: =IF(AM85<=AL$85+1/'Ihre Übersicht'!$L$27,IF(AM87="","",AL86),"") -> 0 | AN86: =IF(AN85<=AM$85+1/'Ihre Übersicht'!$L$27,IF(AN87="","",AM86),"") -> 0 | AO86: =IF(AO85<=AN$85+1/'Ihre Übersicht'!$L$27,IF(AO87="","",AN86),"") -> 0 | AP86: =IF(AP85<=AO$85+1/'Ihre Übersicht'!$L$27,IF(AP87="","",AO86),"") -> 0 | AQ86: =IF(AQ85<=AP$85+1/'Ihre Übersicht'!$L$27,IF(AQ87="","",AP86),"") -> 0 | AR86: =IF(AR85<=AQ$85+1/'Ihre Übersicht'!$L$27,IF(AR87="","",AQ86),"") -> 0 | AS86: =IF(AS85<=AR$85+1/'Ihre Übersicht'!$L$27,IF(AS87="","",AR86),"") -> 0 | AT86: =IF(AT85<=AS$85+1/'Ihre Übersicht'!$L$27,IF(AT87="","",AS86),"") -> 0 | AU86: =IF(AU85<=AT$85+1/'Ihre Übersicht'!$L$27,IF(AU87="","",AT86),"") -> 0 | AV86: =IF(AV85<=AU$85+1/'Ihre Übersicht'!$L$27,IF(AV87="","",AU86),"") -> 0 | AW86: =IF(AW85<=AV$85+1/'Ihre Übersicht'!$L$27,IF(AW87="","",AV86),"") -> 0 | AX86: =IF(AX85<=AW$85+1/'Ihre Übersicht'!$L$27,IF(AX87="","",AW86),"") -> 0 | AY86: =IF(AY85<=AX$85+1/'Ihre Übersicht'!$L$27,IF(AY87="","",AX86),"") -> 0 | AZ86: =IF(AZ85<=AY$85+1/'Ihre Übersicht'!$L$27,IF(AZ87="","",AY86),"") -> 0 | BA86: =IF(BA85<=AZ$85+1/'Ihre Übersicht'!$L$27,IF(BA87="","",AZ86),"") -> 0 | BB86: =IF(BB85<=BA$85+1/'Ihre Übersicht'!$L$27,IF(BB87="","",BA86),"") -> 0 | BC86: =IF(BC85<=BB$85+1/'Ihre Übersicht'!$L$27,IF(BC87="","",BB86),"") -> 0
C87: AfA-Satz | F87: ='Ihre Übersicht'!$L$27 -> 2.0% | G87: ='Ihre Übersicht'!$L$27 -> 2.0% | H87: ='Ihre Übersicht'!$L$27 -> 2.0% | I87: ='Ihre Übersicht'!$L$27 -> 2.0% | J87: ='Ihre Übersicht'!$L$27 -> 2.0% | K87: ='Ihre Übersicht'!$L$27 -> 2.0% | L87: ='Ihre Übersicht'!$L$27 -> 2.0% | M87: ='Ihre Übersicht'!$L$27 -> 2.0% | N87: ='Ihre Übersicht'!$L$27 -> 2.0% | O87: ='Ihre Übersicht'!$L$27 -> 2.0% | P87: ='Ihre Übersicht'!$L$27 -> 2.0% | Q87: ='Ihre Übersicht'!$L$27 -> 2.0% | R87: ='Ihre Übersicht'!$L$27 -> 2.0% | S87: ='Ihre Übersicht'!$L$27 -> 2.0% | T87: ='Ihre Übersicht'!$L$27 -> 2.0% | U87: ='Ihre Übersicht'!$L$27 -> 2.0% | V87: ='Ihre Übersicht'!$L$27 -> 2.0% | W87: ='Ihre Übersicht'!$L$27 -> 2.0% | X87: ='Ihre Übersicht'!$L$27 -> 2.0% | Y87: ='Ihre Übersicht'!$L$27 -> 2.0% | Z87: ='Ihre Übersicht'!$L$27 -> 2.0% | AA87: ='Ihre Übersicht'!$L$27 -> 2.0% | AB87: ='Ihre Übersicht'!$L$27 -> 2.0% | AC87: ='Ihre Übersicht'!$L$27 -> 2.0% | AD87: ='Ihre Übersicht'!$L$27 -> 2.0% | AE87: ='Ihre Übersicht'!$L$27 -> 2.0% | AF87: ='Ihre Übersicht'!$L$27 -> 2.0% | AG87: ='Ihre Übersicht'!$L$27 -> 2.0% | AH87: ='Ihre Übersicht'!$L$27 -> 2.0% | AI87: ='Ihre Übersicht'!$L$27 -> 2.0% | AJ87: ='Ihre Übersicht'!$L$27 -> 2.0% | AK87: ='Ihre Übersicht'!$L$27 -> 2.0% | AL87: ='Ihre Übersicht'!$L$27 -> 2.0% | AM87: ='Ihre Übersicht'!$L$27 -> 2.0% | AN87: ='Ihre Übersicht'!$L$27 -> 2.0% | AO87: ='Ihre Übersicht'!$L$27 -> 2.0% | AP87: ='Ihre Übersicht'!$L$27 -> 2.0% | AQ87: ='Ihre Übersicht'!$L$27 -> 2.0% | AR87: ='Ihre Übersicht'!$L$27 -> 2.0% | AS87: ='Ihre Übersicht'!$L$27 -> 2.0% | AT87: ='Ihre Übersicht'!$L$27 -> 2.0% | AU87: ='Ihre Übersicht'!$L$27 -> 2.0% | AV87: ='Ihre Übersicht'!$L$27 -> 2.0% | AW87: ='Ihre Übersicht'!$L$27 -> 2.0% | AX87: ='Ihre Übersicht'!$L$27 -> 2.0% | AY87: ='Ihre Übersicht'!$L$27 -> 2.0% | AZ87: ='Ihre Übersicht'!$L$27 -> 2.0% | BA87: ='Ihre Übersicht'!$L$27 -> 2.0% | BB87: ='Ihre Übersicht'!$L$27 -> 2.0% | BC87: ='Ihre Übersicht'!$L$27 -> 2.0%
C88: Abschreibung pro Jahr | F88: =F87*F86 -> 0 | G88: =G87*G86 -> 0 | H88: 0 | I88: 0 | J88: 0 | K88: 0 | L88: 0 | M88: 0 | N88: 0 | O88: 0 | P88: 0 | Q88: =Q87*Q86 -> 0 | R88: =R87*R86 -> 0 | S88: 0 | T88: 0 | U88: 0 | V88: 0 | W88: 0 | X88: 0 | Y88: 0 | Z88: 0 | AA88: 0 | AB88: 0 | AC88: 0 | AD88: 0 | AE88: 0 | AF88: 0 | AG88: 0 | AH88: 0 | AI88: 0 | AJ88: 0 | AK88: 0 | AL88: 0 | AM88: 0 | AN88: 0 | AO88: 0 | AP88: 0 | AQ88: 0 | AR88: 0 | AS88: 0 | AT88: 0 | AU88: 0 | AV88: 0 | AW88: 0 | AX88: 0 | AY88: 0 | AZ88: 0 | BA88: 0 | BB88: 0 | BC88: 0
C89: Abschreibung pro Monat | F89: =F88/12 -> 0 | G89: =G88/12 -> 0 | H89: 0 | I89: 0 | J89: 0 | K89: 0 | L89: 0 | M89: 0 | N89: 0 | O89: 0 | P89: 0 | Q89: =Q88/12 -> 0 | R89: =R88/12 -> 0 | S89: 0 | T89: 0 | U89: 0 | V89: 0 | W89: 0 | X89: 0 | Y89: 0 | Z89: 0 | AA89: 0 | AB89: 0 | AC89: 0 | AD89: 0 | AE89: 0 | AF89: 0 | AG89: 0 | AH89: 0 | AI89: 0 | AJ89: 0 | AK89: 0 | AL89: 0 | AM89: 0 | AN89: 0 | AO89: 0 | AP89: 0 | AQ89: 0 | AR89: 0 | AS89: 0 | AT89: 0 | AU89: 0 | AV89: 0 | AW89: 0 | AX89: 0 | AY89: 0 | AZ89: 0 | BA89: 0 | BB89: 0 | BC89: 0
C90: Kum. Abschreibung am Jahresende | F90: =F88 -> 0 | G90: =IF(G88="","",F90+G88) -> 0 | H90: =IF(H88="","",G90+H88) -> 0 | I90: 0 | J90: 0 | K90: 0 | L90: 0 | M90: 0 | N90: 0 | O90: 0 | P90: 0 | Q90: =IF(Q88="","",P90+Q88) -> 0 | R90: =IF(R88="","",Q90+R88) -> 0 | S90: =IF(S88="","",R90+S88) -> 0 | T90: =IF(T88="","",S90+T88) -> 0 | U90: =IF(U88="","",T90+U88) -> 0 | V90: =IF(V88="","",U90+V88) -> 0 | W90: =IF(W88="","",V90+W88) -> 0 | X90: =IF(X88="","",W90+X88) -> 0 | Y90: =IF(Y88="","",X90+Y88) -> 0 | Z90: =IF(Z88="","",Y90+Z88) -> 0 | AA90: =IF(AA88="","",Z90+AA88) -> 0 | AB90: =IF(AB88="","",AA90+AB88) -> 0 | AC90: =IF(AC88="","",AB90+AC88) -> 0 | AD90: =IF(AD88="","",AC90+AD88) -> 0 | AE90: =IF(AE88="","",AD90+AE88) -> 0 | AF90: =IF(AF88="","",AE90+AF88) -> 0 | AG90: =IF(AG88="","",AF90+AG88) -> 0 | AH90: =IF(AH88="","",AG90+AH88) -> 0 | AI90: =IF(AI88="","",AH90+AI88) -> 0 | AJ90: =IF(AJ88="","",AI90+AJ88) -> 0 | AK90: =IF(AK88="","",AJ90+AK88) -> 0 | AL90: =IF(AL88="","",AK90+AL88) -> 0 | AM90: =IF(AM88="","",AL90+AM88) -> 0 | AN90: =IF(AN88="","",AM90+AN88) -> 0 | AO90: =IF(AO88="","",AN90+AO88) -> 0 | AP90: =IF(AP88="","",AO90+AP88) -> 0 | AQ90: =IF(AQ88="","",AP90+AQ88) -> 0 | AR90: =IF(AR88="","",AQ90+AR88) -> 0 | AS90: =IF(AS88="","",AR90+AS88) -> 0 | AT90: =IF(AT88="","",AS90+AT88) -> 0 | AU90: =IF(AU88="","",AT90+AU88) -> 0 | AV90: =IF(AV88="","",AU90+AV88) -> 0 | AW90: =IF(AW88="","",AV90+AW88) -> 0 | AX90: =IF(AX88="","",AW90+AX88) -> 0 | AY90: =IF(AY88="","",AX90+AY88) -> 0 | AZ90: =IF(AZ88="","",AY90+AZ88) -> 0 | BA90: =IF(BA88="","",AZ90+BA88) -> 0 | BB90: =IF(BB88="","",BA90+BB88) -> 0 | BC90: =IF(BC88="","",BB90+BC88) -> 0
C92: monatlicher Cashflow
F93: =YEAR('Ihre Übersicht'!D$7) -> 2019 | G93: =F93+1 -> 2020 | H93: =G93+1 -> 2021 | I93: =H93+1 -> 2022 | J93: =I93+1 -> 2023 | K93: =J93+1 -> 2024 | L93: =K93+1 -> 2025 | M93: =L93+1 -> 2026 | N93: =M93+1 -> 2027 | O93: =N93+1 -> 2028 | P93: =O93+1 -> 2029 | Q93: =P93+1 -> 2030 | R93: =Q93+1 -> 2031 | S93: =R93+1 -> 2032 | T93: =S93+1 -> 2033 | U93: =T93+1 -> 2034 | V93: =U93+1 -> 2035 | W93: =V93+1 -> 2036 | X93: =W93+1 -> 2037 | Y93: =X93+1 -> 2038 | Z93: =Y93+1 -> 2039 | AA93: =Z93+1 -> 2040 | AB93: =AA93+1 -> 2041 | AC93: =AB93+1 -> 2042 | AD93: =AC93+1 -> 2043 | AE93: =AD93+1 -> 2044 | AF93: =AE93+1 -> 2045 | AG93: =AF93+1 -> 2046 | AH93: =AG93+1 -> 2047 | AI93: =AH93+1 -> 2048 | AJ93: =AI93+1 -> 2049 | AK93: =AJ93+1 -> 2050 | AL93: =AK93+1 -> 2051 | AM93: =AL93+1 -> 2052 | AN93: =AM93+1 -> 2053 | AO93: =AN93+1 -> 2054 | AP93: =AO93+1 -> 2055 | AQ93: =AP93+1 -> 2056 | AR93: =AQ93+1 -> 2057 | AS93: =AR93+1 -> 2058 | AT93: =AS93+1 -> 2059 | AU93: =AT93+1 -> 2060 | AV93: =AU93+1 -> 2061 | AW93: =AV93+1 -> 2062 | AX93: =AW93+1 -> 2063 | AY93: =AX93+1 -> 2064 | AZ93: =AY93+1 -> 2065 | BA93: =AZ93+1 -> 2066 | BB93: =BA93+1 -> 2067 | BC93: =BB93+1 -> 2068
C94: Warmmiete | F94: =F82 -> 0 | G94: =G82 -> 0 | H94: =H82 -> 0 | I94: 0 | J94: 0 | K94: 0 | L94: 0 | M94: 0 | N94: 0 | O94: 0 | P94: 0 | Q94: 0 | R94: 0 | S94: 0 | T94: 0 | U94: 0 | V94: 0 | W94: 0 | X94: 0 | Y94: 0 | Z94: 0 | AA94: 0 | AB94: 0 | AC94: 0 | AD94: 0 | AE94: 0 | AF94: 0 | AG94: 0 | AH94: 0 | AI94: 0 | AJ94: 0 | AK94: 0 | AL94: 0 | AM94: 0 | AN94: 0 | AO94: 0 | AP94: 0 | AQ94: 0 | AR94: 0 | AS94: 0 | AT94: 0 | AU94: 0 | AV94: 0 | AW94: 0 | AX94: 0 | AY94: 0 | AZ94: 0 | BA94: 0 | BB94: 0 | BC94: =BC82 -> 0
C95: Bewirtschaftungskosten exkl. eigene Rücklagen | F95: =-('Ihre Übersicht'!X30-'Ihre Übersicht'!R38-'Ihre Übersicht'!R39) -> 0 | G95: =F95*(1+'Ihre Übersicht'!$L$32) -> 0 | H95: =G95*(1+'Ihre Übersicht'!$L$32) -> 0 | I95: =H95*(1+'Ihre Übersicht'!$L$32) -> 0 | J95: =I95*(1+'Ihre Übersicht'!$L$32) -> 0 | K95: =J95*(1+'Ihre Übersicht'!$L$32) -> 0 | L95: =K95*(1+'Ihre Übersicht'!$L$32) -> 0 | M95: =L95*(1+'Ihre Übersicht'!$L$32) -> 0 | N95: =M95*(1+'Ihre Übersicht'!$L$32) -> 0 | O95: =N95*(1+'Ihre Übersicht'!$L$32) -> 0 | P95: =O95*(1+'Ihre Übersicht'!$L$32) -> 0 | Q95: =P95*(1+'Ihre Übersicht'!$L$32) -> 0 | R95: =Q95*(1+'Ihre Übersicht'!$L$32) -> 0 | S95: =R95*(1+'Ihre Übersicht'!$L$32) -> 0 | T95: =S95*(1+'Ihre Übersicht'!$L$32) -> 0 | U95: =T95*(1+'Ihre Übersicht'!$L$32) -> 0 | V95: =U95*(1+'Ihre Übersicht'!$L$32) -> 0 | W95: =V95*(1+'Ihre Übersicht'!$L$32) -> 0 | X95: =W95*(1+'Ihre Übersicht'!$L$32) -> 0 | Y95: =X95*(1+'Ihre Übersicht'!$L$32) -> 0 | Z95: =Y95*(1+'Ihre Übersicht'!$L$32) -> 0 | AA95: =Z95*(1+'Ihre Übersicht'!$L$32) -> 0 | AB95: =AA95*(1+'Ihre Übersicht'!$L$32) -> 0 | AC95: =AB95*(1+'Ihre Übersicht'!$L$32) -> 0 | AD95: =AC95*(1+'Ihre Übersicht'!$L$32) -> 0 | AE95: =AD95*(1+'Ihre Übersicht'!$L$32) -> 0 | AF95: =AE95*(1+'Ihre Übersicht'!$L$32) -> 0 | AG95: =AF95*(1+'Ihre Übersicht'!$L$32) -> 0 | AH95: =AG95*(1+'Ihre Übersicht'!$L$32) -> 0 | AI95: =AH95*(1+'Ihre Übersicht'!$L$32) -> 0 | AJ95: =AI95*(1+'Ihre Übersicht'!$L$32) -> 0 | AK95: =AJ95*(1+'Ihre Übersicht'!$L$32) -> 0 | AL95: =AK95*(1+'Ihre Übersicht'!$L$32) -> 0 | AM95: =AL95*(1+'Ihre Übersicht'!$L$32) -> 0 | AN95: =AM95*(1+'Ihre Übersicht'!$L$32) -> 0 | AO95: =AN95*(1+'Ihre Übersicht'!$L$32) -> 0 | AP95: =AO95*(1+'Ihre Übersicht'!$L$32) -> 0 | AQ95: =AP95*(1+'Ihre Übersicht'!$L$32) -> 0 | AR95: =AQ95*(1+'Ihre Übersicht'!$L$32) -> 0 | AS95: =AR95*(1+'Ihre Übersicht'!$L$32) -> 0 | AT95: =AS95*(1+'Ihre Übersicht'!$L$32) -> 0 | AU95: =AT95*(1+'Ihre Übersicht'!$L$32) -> 0 | AV95: =AU95*(1+'Ihre Übersicht'!$L$32) -> 0 | AW95: =AV95*(1+'Ihre Übersicht'!$L$32) -> 0 | AX95: =AW95*(1+'Ihre Übersicht'!$L$32) -> 0 | AY95: =AX95*(1+'Ihre Übersicht'!$L$32) -> 0 | AZ95: =AY95*(1+'Ihre Übersicht'!$L$32) -> 0 | BA95: =AZ95*(1+'Ihre Übersicht'!$L$32) -> 0 | BB95: =BA95*(1+'Ihre Übersicht'!$L$32) -> 0 | BC95: =BB95*(1+'Ihre Übersicht'!$L$32) -> 0
C96: Eigene Rücklagen inkl. für Mietausfall | F96: =-('Ihre Übersicht'!R38+'Ihre Übersicht'!R39) -> 0 | G96: =F96*(1+'Ihre Übersicht'!$L$32) -> 0 | H96: =G96*(1+'Ihre Übersicht'!$L$32) -> 0 | I96: =H96*(1+'Ihre Übersicht'!$L$32) -> 0 | J96: =I96*(1+'Ihre Übersicht'!$L$32) -> 0 | K96: =J96*(1+'Ihre Übersicht'!$L$32) -> 0 | L96: =K96*(1+'Ihre Übersicht'!$L$32) -> 0 | M96: =L96*(1+'Ihre Übersicht'!$L$32) -> 0 | N96: =M96*(1+'Ihre Übersicht'!$L$32) -> 0 | O96: =N96*(1+'Ihre Übersicht'!$L$32) -> 0 | P96: =O96*(1+'Ihre Übersicht'!$L$32) -> 0 | Q96: =P96*(1+'Ihre Übersicht'!$L$32) -> 0 | R96: =Q96*(1+'Ihre Übersicht'!$L$32) -> 0 | S96: =R96*(1+'Ihre Übersicht'!$L$32) -> 0 | T96: =S96*(1+'Ihre Übersicht'!$L$32) -> 0 | U96: =T96*(1+'Ihre Übersicht'!$L$32) -> 0 | V96: =U96*(1+'Ihre Übersicht'!$L$32) -> 0 | W96: =V96*(1+'Ihre Übersicht'!$L$32) -> 0 | X96: =W96*(1+'Ihre Übersicht'!$L$32) -> 0 | Y96: =X96*(1+'Ihre Übersicht'!$L$32) -> 0 | Z96: =Y96*(1+'Ihre Übersicht'!$L$32) -> 0 | AA96: =Z96*(1+'Ihre Übersicht'!$L$32) -> 0 | AB96: =AA96*(1+'Ihre Übersicht'!$L$32) -> 0 | AC96: =AB96*(1+'Ihre Übersicht'!$L$32) -> 0 | AD96: =AC96*(1+'Ihre Übersicht'!$L$32) -> 0 | AE96: =AD96*(1+'Ihre Übersicht'!$L$32) -> 0 | AF96: =AE96*(1+'Ihre Übersicht'!$L$32) -> 0 | AG96: =AF96*(1+'Ihre Übersicht'!$L$32) -> 0 | AH96: =AG96*(1+'Ihre Übersicht'!$L$32) -> 0 | AI96: =AH96*(1+'Ihre Übersicht'!$L$32) -> 0 | AJ96: =AI96*(1+'Ihre Übersicht'!$L$32) -> 0 | AK96: =AJ96*(1+'Ihre Übersicht'!$L$32) -> 0 | AL96: =AK96*(1+'Ihre Übersicht'!$L$32) -> 0 | AM96: =AL96*(1+'Ihre Übersicht'!$L$32) -> 0 | AN96: =AM96*(1+'Ihre Übersicht'!$L$32) -> 0 | AO96: =AN96*(1+'Ihre Übersicht'!$L$32) -> 0 | AP96: =AO96*(1+'Ihre Übersicht'!$L$32) -> 0 | AQ96: =AP96*(1+'Ihre Übersicht'!$L$32) -> 0 | AR96: =AQ96*(1+'Ihre Übersicht'!$L$32) -> 0 | AS96: =AR96*(1+'Ihre Übersicht'!$L$32) -> 0 | AT96: =AS96*(1+'Ihre Übersicht'!$L$32) -> 0 | AU96: =AT96*(1+'Ihre Übersicht'!$L$32) -> 0 | AV96: =AU96*(1+'Ihre Übersicht'!$L$32) -> 0 | AW96: =AV96*(1+'Ihre Übersicht'!$L$32) -> 0 | AX96: =AW96*(1+'Ihre Übersicht'!$L$32) -> 0 | AY96: =AX96*(1+'Ihre Übersicht'!$L$32) -> 0 | AZ96: =AY96*(1+'Ihre Übersicht'!$L$32) -> 0 | BA96: =AZ96*(1+'Ihre Übersicht'!$L$32) -> 0 | BB96: =BA96*(1+'Ihre Übersicht'!$L$32) -> 0 | BC96: =BB96*(1+'Ihre Übersicht'!$L$32) -> 0
C97: Bewirtschaftungskosten gesamt | F97: =SUM(F95:F96) -> 0 | G97: =SUM(G95:G96) -> 0 | H97: 0 | I97: 0 | J97: 0 | K97: 0 | L97: 0 | M97: 0 | N97: 0 | O97: 0 | P97: 0 | Q97: 0 | R97: 0 | S97: 0 | T97: 0 | U97: 0 | V97: 0 | W97: 0 | X97: 0 | Y97: 0 | Z97: 0 | AA97: 0 | AB97: 0 | AC97: 0 | AD97: 0 | AE97: 0 | AF97: 0 | AG97: 0 | AH97: 0 | AI97: 0 | AJ97: 0 | AK97: 0 | AL97: 0 | AM97: 0 | AN97: 0 | AO97: 0 | AP97: 0 | AQ97: 0 | AR97: 0 | AS97: 0 | AT97: 0 | AU97: 0 | AV97: 0 | AW97: 0 | AX97: 0 | AY97: 0 | AZ97: 0 | BA97: 0 | BB97: 0 | BC97: 0
C98: Ø Zinsen | F98: =-SUM(F60)/Sheet3!D6 -> 0 | G98: =-SUM(G60)/12 -> 0 | H98: =-SUM(H60)/12 -> 0 | I98: =-SUM(I60)/12 -> 0 | J98: 0 | K98: 0 | L98: 0 | M98: 0 | N98: 0 | O98: 0 | P98: 0 | Q98: 0 | R98: 0 | S98: 0 | T98: 0 | U98: 0 | V98: 0 | W98: 0 | X98: 0 | Y98: 0 | Z98: 0 | AA98: 0 | AB98: 0 | AC98: 0 | AD98: 0 | AE98: 0 | AF98: 0 | AG98: 0 | AH98: 0 | AI98: 0 | AJ98: 0 | AK98: 0 | AL98: 0 | AM98: 0 | AN98: 0 | AO98: 0 | AP98: 0 | AQ98: 0 | AR98: 0 | AS98: 0 | AT98: 0 | AU98: 0 | AV98: 0 | AW98: 0 | AX98: 0 | AY98: 0 | AZ98: 0 | BA98: 0 | BB98: 0 | BC98: =-SUM(BC60)/12 -> 0
C99: Ø Tilgung | F99: =-SUM(F63) -> 0 | G99: =-SUM(G63)/12 -> 0 | H99: =-SUM(H63)/12 -> 0 | I99: =-SUM(I63)/12 -> 0 | J99: 0 | K99: 0 | L99: 0 | M99: 0 | N99: 0 | O99: 0 | P99: 0 | Q99: 0 | R99: 0 | S99: 0 | T99: 0 | U99: 0 | V99: 0 | W99: 0 | X99: 0 | Y99: 0 | Z99: 0 | AA99: 0 | AB99: 0 | AC99: 0 | AD99: 0 | AE99: 0 | AF99: 0 | AG99: 0 | AH99: 0 | AI99: 0 | AJ99: 0 | AK99: 0 | AL99: 0 | AM99: 0 | AN99: 0 | AO99: 0 | AP99: 0 | AQ99: 0 | AR99: 0 | AS99: 0 | AT99: 0 | AU99: 0 | AV99: 0 | AW99: 0 | AX99: 0 | AY99: 0 | AZ99: 0 | BA99: 0 | BB99: 0 | BC99: =-SUM(BC63)/12 -> 0
C100: Ø operativer Cashflow | F100: =SUM(F97:F99,F94) -> 0 | G100: =SUM(G97:G99,G94) -> 0 | H100: 0 | I100: 0 | J100: 0 | K100: 0 | L100: 0 | M100: 0 | N100: 0 | O100: 0 | P100: 0 | Q100: 0 | R100: 0 | S100: 0 | T100: 0 | U100: 0 | V100: 0 | W100: 0 | X100: 0 | Y100: 0 | Z100: 0 | AA100: 0 | AB100: 0 | AC100: 0 | AD100: 0 | AE100: 0 | AF100: 0 | AG100: 0 | AH100: 0 | AI100: 0 | AJ100: 0 | AK100: 0 | AL100: 0 | AM100: 0 | AN100: 0 | AO100: 0 | AP100: 0 | AQ100: 0 | AR100: 0 | AS100: 0 | AT100: 0 | AU100: 0 | AV100: 0 | AW100: 0 | AX100: 0 | AY100: 0 | AZ100: 0 | BA100: 0 | BB100: 0 | BC100: 0
C101: Steuern | F101: =F114 -> 0 | G101: =G114 -> 0 | H101: 0 | I101: 0 | J101: 0 | K101: 0 | L101: 0 | M101: 0 | N101: 0 | O101: 0 | P101: 0 | Q101: 0 | R101: 0 | S101: 0 | T101: 0 | U101: 0 | V101: 0 | W101: 0 | X101: 0 | Y101: 0 | Z101: 0 | AA101: 0 | AB101: 0 | AC101: 0 | AD101: 0 | AE101: 0 | AF101: 0 | AG101: 0 | AH101: 0 | AI101: 0 | AJ101: 0 | AK101: 0 | AL101: 0 | AM101: 0 | AN101: 0 | AO101: 0 | AP101: 0 | AQ101: 0 | AR101: 0 | AS101: 0 | AT101: 0 | AU101: 0 | AV101: 0 | AW101: 0 | AX101: 0 | AY101: 0 | AZ101: 0 | BA101: 0 | BB101: 0 | BC101: 0
C102: Ø Cashflow nach Steuer | F102: =SUM(F100:F101) -> 0 | G102: =SUM(G100:G101) -> 0 | H102: =SUM(H100:H101) -> 0 | I102: 0 | J102: 0 | K102: 0 | L102: 0 | M102: 0 | N102: 0 | O102: 0 | P102: 0 | Q102: 0 | R102: 0 | S102: 0 | T102: 0 | U102: 0 | V102: 0 | W102: 0 | X102: 0 | Y102: 0 | Z102: 0 | AA102: 0 | AB102: 0 | AC102: 0 | AD102: 0 | AE102: 0 | AF102: 0 | AG102: 0 | AH102: 0 | AI102: 0 | AJ102: 0 | AK102: 0 | AL102: 0 | AM102: 0 | AN102: 0 | AO102: 0 | AP102: 0 | AQ102: 0 | AR102: 0 | AS102: 0 | AT102: 0 | AU102: 0 | AV102: 0 | AW102: 0 | AX102: 0 | AY102: 0 | AZ102: 0 | BA102: 0 | BB102: 0 | BC102: =SUM(BC100:BC101) -> 0
C103: Ø kum. Cashflow nach Steuer | F103: =F102*Sheet3!D6 -> 0 | G103: =F103+G102*12 -> 0 | H103: =G103+H102*12 -> 0 | I103: 0 | J103: 0 | K103: 0 | L103: 0 | M103: 0 | N103: 0 | O103: 0 | P103: 0 | Q103: 0 | R103: 0 | S103: 0 | T103: 0 | U103: 0 | V103: 0 | W103: 0 | X103: 0 | Y103: 0 | Z103: 0 | AA103: 0 | AB103: 0 | AC103: 0 | AD103: 0 | AE103: 0 | AF103: 0 | AG103: 0 | AH103: 0 | AI103: 0 | AJ103: 0 | AK103: 0 | AL103: 0 | AM103: 0 | AN103: 0 | AO103: 0 | AP103: 0 | AQ103: 0 | AR103: 0 | AS103: 0 | AT103: 0 | AU103: 0 | AV103: 0 | AW103: 0 | AX103: 0 | AY103: 0 | AZ103: 0 | BA103: 0 | BB103: 0 | BC103: =BB103+BC102*12 -> 0
C104: kum. Cashflow nach Steuer inkl. Eigenkapital | F104: =F103-'Ihre Übersicht'!$R$6 -> 0 | G104: =G103-'Ihre Übersicht'!$R$6 -> 0 | H104: =H103-'Ihre Übersicht'!$R$6 -> 0 | I104: =I103-'Ihre Übersicht'!$R$6 -> 0 | J104: =J103-'Ihre Übersicht'!$R$6 -> 0 | K104: =K103-'Ihre Übersicht'!$R$6 -> 0 | L104: =L103-'Ihre Übersicht'!$R$6 -> 0 | M104: =M103-'Ihre Übersicht'!$R$6 -> 0 | N104: =N103-'Ihre Übersicht'!$R$6 -> 0 | O104: =O103-'Ihre Übersicht'!$R$6 -> 0 | P104: =P103-'Ihre Übersicht'!$R$6 -> 0 | Q104: =Q103-'Ihre Übersicht'!$R$6 -> 0 | R104: =R103-'Ihre Übersicht'!$R$6 -> 0 | S104: =S103-'Ihre Übersicht'!$R$6 -> 0 | T104: =T103-'Ihre Übersicht'!$R$6 -> 0 | U104: =U103-'Ihre Übersicht'!$R$6 -> 0 | V104: =V103-'Ihre Übersicht'!$R$6 -> 0 | W104: =W103-'Ihre Übersicht'!$R$6 -> 0 | X104: =X103-'Ihre Übersicht'!$R$6 -> 0 | Y104: =Y103-'Ihre Übersicht'!$R$6 -> 0 | Z104: =Z103-'Ihre Übersicht'!$R$6 -> 0 | AA104: =AA103-'Ihre Übersicht'!$R$6 -> 0 | AB104: =AB103-'Ihre Übersicht'!$R$6 -> 0 | AC104: =AC103-'Ihre Übersicht'!$R$6 -> 0 | AD104: =AD103-'Ihre Übersicht'!$R$6 -> 0 | AE104: =AE103-'Ihre Übersicht'!$R$6 -> 0 | AF104: =AF103-'Ihre Übersicht'!$R$6 -> 0 | AG104: =AG103-'Ihre Übersicht'!$R$6 -> 0 | AH104: =AH103-'Ihre Übersicht'!$R$6 -> 0 | AI104: =AI103-'Ihre Übersicht'!$R$6 -> 0 | AJ104: =AJ103-'Ihre Übersicht'!$R$6 -> 0 | AK104: =AK103-'Ihre Übersicht'!$R$6 -> 0 | AL104: =AL103-'Ihre Übersicht'!$R$6 -> 0 | AM104: =AM103-'Ihre Übersicht'!$R$6 -> 0 | AN104: =AN103-'Ihre Übersicht'!$R$6 -> 0 | AO104: =AO103-'Ihre Übersicht'!$R$6 -> 0 | AP104: =AP103-'Ihre Übersicht'!$R$6 -> 0 | AQ104: =AQ103-'Ihre Übersicht'!$R$6 -> 0 | AR104: =AR103-'Ihre Übersicht'!$R$6 -> 0 | AS104: =AS103-'Ihre Übersicht'!$R$6 -> 0 | AT104: =AT103-'Ihre Übersicht'!$R$6 -> 0 | AU104: =AU103-'Ihre Übersicht'!$R$6 -> 0 | AV104: =AV103-'Ihre Übersicht'!$R$6 -> 0 | AW104: =AW103-'Ihre Übersicht'!$R$6 -> 0 | AX104: =AX103-'Ihre Übersicht'!$R$6 -> 0 | AY104: =AY103-'Ihre Übersicht'!$R$6 -> 0 | AZ104: =AZ103-'Ihre Übersicht'!$R$6 -> 0 | BA104: =BA103-'Ihre Übersicht'!$R$6 -> 0 | BB104: =BB103-'Ihre Übersicht'!$R$6 -> 0 | BC104: =BC103-'Ihre Übersicht'!$R$6 -> 0
C106: monatliche Steuern
F107: =YEAR('Ihre Übersicht'!D$7) -> 2019 | G107: =F107+1 -> 2020 | H107: =G107+1 -> 2021 | I107: =H107+1 -> 2022 | J107: =I107+1 -> 2023 | K107: =J107+1 -> 2024 | L107: =K107+1 -> 2025 | M107: =L107+1 -> 2026 | N107: =M107+1 -> 2027 | O107: =N107+1 -> 2028 | P107: =O107+1 -> 2029 | Q107: =P107+1 -> 2030 | R107: =Q107+1 -> 2031 | S107: =R107+1 -> 2032 | T107: =S107+1 -> 2033 | U107: =T107+1 -> 2034 | V107: =U107+1 -> 2035 | W107: =V107+1 -> 2036 | X107: =W107+1 -> 2037 | Y107: =X107+1 -> 2038 | Z107: =Y107+1 -> 2039 | AA107: =Z107+1 -> 2040 | AB107: =AA107+1 -> 2041 | AC107: =AB107+1 -> 2042 | AD107: =AC107+1 -> 2043 | AE107: =AD107+1 -> 2044 | AF107: =AE107+1 -> 2045 | AG107: =AF107+1 -> 2046 | AH107: =AG107+1 -> 2047 | AI107: =AH107+1 -> 2048 | AJ107: =AI107+1 -> 2049 | AK107: =AJ107+1 -> 2050 | AL107: =AK107+1 -> 2051 | AM107: =AL107+1 -> 2052 | AN107: =AM107+1 -> 2053 | AO107: =AN107+1 -> 2054 | AP107: =AO107+1 -> 2055 | AQ107: =AP107+1 -> 2056 | AR107: =AQ107+1 -> 2057 | AS107: =AR107+1 -> 2058 | AT107: =AS107+1 -> 2059 | AU107: =AT107+1 -> 2060 | AV107: =AU107+1 -> 2061 | AW107: =AV107+1 -> 2062 | AX107: =AW107+1 -> 2063 | AY107: =AX107+1 -> 2064 | AZ107: =AY107+1 -> 2065 | BA107: =AZ107+1 -> 2066 | BB107: =BA107+1 -> 2067 | BC107: =BB107+1 -> 2068
C108: Warmmiete | F108: =F94 -> 0 | G108: =G94 -> 0 | H108: =H94 -> 0 | I108: 0 | J108: 0 | K108: 0 | L108: 0 | M108: 0 | N108: 0 | O108: 0 | P108: 0 | Q108: 0 | R108: 0 | S108: 0 | T108: 0 | U108: 0 | V108: 0 | W108: 0 | X108: 0 | Y108: 0 | Z108: 0 | AA108: 0 | AB108: 0 | AC108: 0 | AD108: 0 | AE108: 0 | AF108: 0 | AG108: 0 | AH108: 0 | AI108: 0 | AJ108: 0 | AK108: 0 | AL108: 0 | AM108: 0 | AN108: 0 | AO108: 0 | AP108: 0 | AQ108: 0 | AR108: 0 | AS108: 0 | AT108: 0 | AU108: 0 | AV108: 0 | AW108: 0 | AX108: 0 | AY108: 0 | AZ108: 0 | BA108: 0 | BB108: 0 | BC108: 0
C109: Bewirtschaftungskosten exkl. eigene Rücklagen | F109: =-('Ihre Übersicht'!X30-'Ihre Übersicht'!R38-'Ihre Übersicht'!R39) -> 0 | G109: =F109*(1+'Ihre Übersicht'!$L$32) -> 0 | H109: =G109*(1+'Ihre Übersicht'!$L$32) -> 0 | I109: =H109*(1+'Ihre Übersicht'!$L$32) -> 0 | J109: =I109*(1+'Ihre Übersicht'!$L$32) -> 0 | K109: =J109*(1+'Ihre Übersicht'!$L$32) -> 0 | L109: =K109*(1+'Ihre Übersicht'!$L$32) -> 0 | M109: =L109*(1+'Ihre Übersicht'!$L$32) -> 0 | N109: =M109*(1+'Ihre Übersicht'!$L$32) -> 0 | O109: =N109*(1+'Ihre Übersicht'!$L$32) -> 0 | P109: =O109*(1+'Ihre Übersicht'!$L$32) -> 0 | Q109: =P109*(1+'Ihre Übersicht'!$L$32) -> 0 | R109: =Q109*(1+'Ihre Übersicht'!$L$32) -> 0 | S109: =R109*(1+'Ihre Übersicht'!$L$32) -> 0 | T109: =S109*(1+'Ihre Übersicht'!$L$32) -> 0 | U109: =T109*(1+'Ihre Übersicht'!$L$32) -> 0 | V109: =U109*(1+'Ihre Übersicht'!$L$32) -> 0 | W109: =V109*(1+'Ihre Übersicht'!$L$32) -> 0 | X109: =W109*(1+'Ihre Übersicht'!$L$32) -> 0 | Y109: =X109*(1+'Ihre Übersicht'!$L$32) -> 0 | Z109: =Y109*(1+'Ihre Übersicht'!$L$32) -> 0 | AA109: =Z109*(1+'Ihre Übersicht'!$L$32) -> 0 | AB109: =AA109*(1+'Ihre Übersicht'!$L$32) -> 0 | AC109: =AB109*(1+'Ihre Übersicht'!$L$32) -> 0 | AD109: =AC109*(1+'Ihre Übersicht'!$L$32) -> 0 | AE109: =AD109*(1+'Ihre Übersicht'!$L$32) -> 0 | AF109: =AE109*(1+'Ihre Übersicht'!$L$32) -> 0 | AG109: =AF109*(1+'Ihre Übersicht'!$L$32) -> 0 | AH109: =AG109*(1+'Ihre Übersicht'!$L$32) -> 0 | AI109: =AH109*(1+'Ihre Übersicht'!$L$32) -> 0 | AJ109: =AI109*(1+'Ihre Übersicht'!$L$32) -> 0 | AK109: =AJ109*(1+'Ihre Übersicht'!$L$32) -> 0 | AL109: =AK109*(1+'Ihre Übersicht'!$L$32) -> 0 | AM109: =AL109*(1+'Ihre Übersicht'!$L$32) -> 0 | AN109: =AM109*(1+'Ihre Übersicht'!$L$32) -> 0 | AO109: =AN109*(1+'Ihre Übersicht'!$L$32) -> 0 | AP109: =AO109*(1+'Ihre Übersicht'!$L$32) -> 0 | AQ109: =AP109*(1+'Ihre Übersicht'!$L$32) -> 0 | AR109: =AQ109*(1+'Ihre Übersicht'!$L$32) -> 0 | AS109: =AR109*(1+'Ihre Übersicht'!$L$32) -> 0 | AT109: =AS109*(1+'Ihre Übersicht'!$L$32) -> 0 | AU109: =AT109*(1+'Ihre Übersicht'!$L$32) -> 0 | AV109: =AU109*(1+'Ihre Übersicht'!$L$32) -> 0 | AW109: =AV109*(1+'Ihre Übersicht'!$L$32) -> 0 | AX109: =AW109*(1+'Ihre Übersicht'!$L$32) -> 0 | AY109: =AX109*(1+'Ihre Übersicht'!$L$32) -> 0 | AZ109: =AY109*(1+'Ihre Übersicht'!$L$32) -> 0 | BA109: =AZ109*(1+'Ihre Übersicht'!$L$32) -> 0 | BB109: =BA109*(1+'Ihre Übersicht'!$L$32) -> 0 | BC109: =BB109*(1+'Ihre Übersicht'!$L$32) -> 0
C110: Ø Zinsen | F110: =F98 -> 0 | G110: =F110*(1+'Ihre Übersicht'!$L$32) -> 0 | H110: =G110*(1+'Ihre Übersicht'!$L$32) -> 0 | I110: =H110*(1+'Ihre Übersicht'!$L$32) -> 0 | J110: =I110*(1+'Ihre Übersicht'!$L$32) -> 0 | K110: =J110*(1+'Ihre Übersicht'!$L$32) -> 0 | L110: =K110*(1+'Ihre Übersicht'!$L$32) -> 0 | M110: =L110*(1+'Ihre Übersicht'!$L$32) -> 0 | N110: =M110*(1+'Ihre Übersicht'!$L$32) -> 0 | O110: =N110*(1+'Ihre Übersicht'!$L$32) -> 0 | P110: =O110*(1+'Ihre Übersicht'!$L$32) -> 0 | Q110: =P110*(1+'Ihre Übersicht'!$L$32) -> 0 | R110: =Q110*(1+'Ihre Übersicht'!$L$32) -> 0 | S110: =R110*(1+'Ihre Übersicht'!$L$32) -> 0 | T110: =S110*(1+'Ihre Übersicht'!$L$32) -> 0 | U110: =T110*(1+'Ihre Übersicht'!$L$32) -> 0 | V110: =U110*(1+'Ihre Übersicht'!$L$32) -> 0 | W110: =V110*(1+'Ihre Übersicht'!$L$32) -> 0 | X110: =W110*(1+'Ihre Übersicht'!$L$32) -> 0 | Y110: =X110*(1+'Ihre Übersicht'!$L$32) -> 0 | Z110: =Y110*(1+'Ihre Übersicht'!$L$32) -> 0 | AA110: =Z110*(1+'Ihre Übersicht'!$L$32) -> 0 | AB110: =AA110*(1+'Ihre Übersicht'!$L$32) -> 0 | AC110: =AB110*(1+'Ihre Übersicht'!$L$32) -> 0 | AD110: =AC110*(1+'Ihre Übersicht'!$L$32) -> 0 | AE110: =AD110*(1+'Ihre Übersicht'!$L$32) -> 0 | AF110: =AE110*(1+'Ihre Übersicht'!$L$32) -> 0 | AG110: =AF110*(1+'Ihre Übersicht'!$L$32) -> 0 | AH110: =AG110*(1+'Ihre Übersicht'!$L$32) -> 0 | AI110: =AH110*(1+'Ihre Übersicht'!$L$32) -> 0 | AJ110: =AI110*(1+'Ihre Übersicht'!$L$32) -> 0 | AK110: =AJ110*(1+'Ihre Übersicht'!$L$32) -> 0 | AL110: =AK110*(1+'Ihre Übersicht'!$L$32) -> 0 | AM110: =AL110*(1+'Ihre Übersicht'!$L$32) -> 0 | AN110: =AM110*(1+'Ihre Übersicht'!$L$32) -> 0 | AO110: =AN110*(1+'Ihre Übersicht'!$L$32) -> 0 | AP110: =AO110*(1+'Ihre Übersicht'!$L$32) -> 0 | AQ110: =AP110*(1+'Ihre Übersicht'!$L$32) -> 0 | AR110: =AQ110*(1+'Ihre Übersicht'!$L$32) -> 0 | AS110: =AR110*(1+'Ihre Übersicht'!$L$32) -> 0 | AT110: =AS110*(1+'Ihre Übersicht'!$L$32) -> 0 | AU110: =AT110*(1+'Ihre Übersicht'!$L$32) -> 0 | AV110: =AU110*(1+'Ihre Übersicht'!$L$32) -> 0 | AW110: =AV110*(1+'Ihre Übersicht'!$L$32) -> 0 | AX110: =AW110*(1+'Ihre Übersicht'!$L$32) -> 0 | AY110: =AX110*(1+'Ihre Übersicht'!$L$32) -> 0 | AZ110: =AY110*(1+'Ihre Übersicht'!$L$32) -> 0 | BA110: =AZ110*(1+'Ihre Übersicht'!$L$32) -> 0 | BB110: =BA110*(1+'Ihre Übersicht'!$L$32) -> 0 | BC110: =BB110*(1+'Ihre Übersicht'!$L$32) -> 0
C111: Abschreibung nach Afa-Tabelle | F111: =-F89 -> 0 | G111: =-G89 -> 0 | H111: 0 | I111: 0 | J111: 0 | K111: 0 | L111: 0 | M111: 0 | N111: 0 | O111: 0 | P111: 0 | Q111: 0 | R111: 0 | S111: 0 | T111: 0 | U111: 0 | V111: 0 | W111: 0 | X111: 0 | Y111: 0 | Z111: 0 | AA111: 0 | AB111: 0 | AC111: 0 | AD111: 0 | AE111: 0 | AF111: 0 | AG111: 0 | AH111: 0 | AI111: 0 | AJ111: 0 | AK111: 0 | AL111: 0 | AM111: 0 | AN111: 0 | AO111: 0 | AP111: 0 | AQ111: 0 | AR111: 0 | AS111: 0 | AT111: 0 | AU111: 0 | AV111: 0 | AW111: 0 | AX111: 0 | AY111: 0 | AZ111: 0 | BA111: 0 | BB111: 0 | BC111: 0
C112: zu versteuernder Cashflow | F112: =SUM(F108:F111) -> 0 | G112: =SUM(G108:G111) -> 0 | H112: 0 | I112: 0 | J112: 0 | K112: 0 | L112: 0 | M112: 0 | N112: 0 | O112: 0 | P112: 0 | Q112: 0 | R112: 0 | S112: 0 | T112: 0 | U112: 0 | V112: 0 | W112: 0 | X112: 0 | Y112: 0 | Z112: 0 | AA112: 0 | AB112: 0 | AC112: 0 | AD112: 0 | AE112: 0 | AF112: 0 | AG112: 0 | AH112: 0 | AI112: 0 | AJ112: 0 | AK112: 0 | AL112: 0 | AM112: 0 | AN112: 0 | AO112: 0 | AP112: 0 | AQ112: 0 | AR112: 0 | AS112: 0 | AT112: 0 | AU112: 0 | AV112: 0 | AW112: 0 | AX112: 0 | AY112: 0 | AZ112: 0 | BA112: 0 | BB112: 0 | BC112: 0
C113: persönlicher Grenzsteuersatz | F113: ='Ihre Übersicht'!F65:G65 -> 40% | G113: =F113 -> 40% | H113: =G113 -> 40% | I113: 40% | J113: 40% | K113: 40% | L113: 40% | M113: 40% | N113: 40% | O113: 40% | P113: 40% | Q113: 40% | R113: 40% | S113: 40% | T113: 40% | U113: 40% | V113: 40% | W113: 40% | X113: 40% | Y113: 40% | Z113: 40% | AA113: 40% | AB113: 40% | AC113: 40% | AD113: 40% | AE113: 40% | AF113: 40% | AG113: 40% | AH113: 40% | AI113: 40% | AJ113: 40% | AK113: 40% | AL113: 40% | AM113: 40% | AN113: 40% | AO113: 40% | AP113: 40% | AQ113: 40% | AR113: 40% | AS113: 40% | AT113: 40% | AU113: 40% | AV113: 40% | AW113: 40% | AX113: 40% | AY113: 40% | AZ113: 40% | BA113: 40% | BB113: 40% | BC113: 40%
C114: Steuern | F114: =-F112*F113 -> 0 | G114: =-G112*G113 -> 0 | H114: 0 | I114: 0 | J114: 0 | K114: 0 | L114: 0 | M114: 0 | N114: 0 | O114: 0 | P114: 0 | Q114: 0 | R114: 0 | S114: 0 | T114: 0 | U114: 0 | V114: 0 | W114: 0 | X114: 0 | Y114: 0 | Z114: 0 | AA114: 0 | AB114: 0 | AC114: 0 | AD114: 0 | AE114: 0 | AF114: 0 | AG114: 0 | AH114: 0 | AI114: 0 | AJ114: 0 | AK114: 0 | AL114: 0 | AM114: 0 | AN114: 0 | AO114: 0 | AP114: 0 | AQ114: 0 | AR114: 0 | AS114: 0 | AT114: 0 | AU114: 0 | AV114: 0 | AW114: 0 | AX114: 0 | AY114: 0 | AZ114: 0 | BA114: 0 | BB114: 0 | BC114: 0
C115: Cashflow nach Steuer | F115: =SUM(F114,F112) -> 0 | G115: =SUM(G114,G112) -> 0 | H115: 0 | I115: 0 | J115: 0 | K115: 0 | L115: 0 | M115: 0 | N115: 0 | O115: 0 | P115: 0 | Q115: 0 | R115: 0 | S115: 0 | T115: 0 | U115: 0 | V115: 0 | W115: 0 | X115: 0 | Y115: 0 | Z115: 0 | AA115: 0 | AB115: 0 | AC115: 0 | AD115: 0 | AE115: 0 | AF115: 0 | AG115: 0 | AH115: 0 | AI115: 0 | AJ115: 0 | AK115: 0 | AL115: 0 | AM115: 0 | AN115: 0 | AO115: 0 | AP115: 0 | AQ115: 0 | AR115: 0 | AS115: 0 | AT115: 0 | AU115: 0 | AV115: 0 | AW115: 0 | AX115: 0 | AY115: 0 | AZ115: 0 | BA115: 0 | BB115: 0 | BC115: 0

Sheet Unterlagen für Ihre Bank
C3: Investitionsinformationen für die Bank
C5: ='Ihre Übersicht'!D6 -> Musterstraße 1, 12345 Musterstadt | O5: =TODAY() -> 2020-02-23
C7: INVESTITION | H7: FINANZIERUNG | M7: RENTABILITÄT
C9: DETAILS | H9: HAUPTDARLEHEN | M9: ERWARTETE MIETEINNAHMEN
C10: Wohnfläche | E10: ='Ihre Übersicht'!G8 -> 0 m² | H10: Summe | J10: ='Ihre Übersicht'!R15 -> 0 | M10: Nettokaltmiete | O10: ='Ihre Übersicht'!F31 -> 0
C11: Kaufpreis pro m² | E11: ='Ihre Übersicht'!E14 ->  | H11: Anfängliche Tilgung | J11: ='Ihre Übersicht'!R18 -> 0.00% | M11: Bruttomietrendite | O11: ='Ihre Übersicht'!O50 -> 
H12: Angenommener Zinssatz | J12: ='Ihre Übersicht'!R16 -> 0.00% | M12: Multiplikator | O12: ='Ihre Übersicht'!O51 -> 
C13: KAPITALBEDARF
C14: Kaufpreis | E14: ='Ihre Übersicht'!E13 -> 0 | H14: WEITERES DARLEHEN | M14: MONATLICHER CASHFLOW Stand: Heute | T14: Einnahme | U14: Ausgaben
C15: Kaufnebenkosten | E15: ='Ihre Übersicht'!J16 -> 0 | H15: Summe | J15: ='Ihre Übersicht'!X6 -> 0 | M15: Nettokaltmiete | O15: =O10 -> 0 | S15: Nettokaltmiete | T15: =O15 -> 0
C16: zusätzl. Investitionsbedarf | E16: ='Ihre Übersicht'!J11 -> 0 | H16: Anfängliche Tilgung | J16: ='Ihre Übersicht'!X9 -> 0.00% | M16: Laufende Kosten | O16: =-'Ihre Übersicht'!X28 -> 0 | S16: Laufende Kosten | U16: =-O16 -> 0
C17: Gesamtinvestition | E17: ='Ihre Übersicht'!K18 ->  | H17: Angenommener Zinssatz | J17: ='Ihre Übersicht'!X7 -> 0.00% | M17: Zinsen | O17: ='Ihre Übersicht'!F52 -> 0 | S17: Zinsen | U17: =-O17 -> 0
M18: Tilgung | O18: ='Ihre Übersicht'!F53 -> 0 | S18: Tilgung | U18: 0
H19: EIGENKAPITAL | M19: monatl. Cashflow | O19: =SUM(O15:P18) -> 0 | S19: Total | T19: =SUM(T15:T18) -> 0 | U19: =SUM(U15:U18) -> 0
H20: Summe | J20: ='Ihre Übersicht'!R6 -> 0
C24: FINANZIERUNGSSTRUKTUR | K24: MONATLICHER CASHFLOW Stand: Heute
C44: BILDMATERIAL VOM OBJEKT

Sheet Ihre Haushaltsrechnung
C3: HAUSHALTSRECHNUNG
C5: =IF(E9="","",E9) -> Max Mustermann | N5: ='Unterlagen für Ihre Bank'!O5 -> 2020-02-23
C8: ANGABEN ZUR PERSON
C9: Name: | E9: Max Mustermann | K9: Familienstand:
C10: Straße, Nr.: | E10: Musterstraße 123 | K10: Kinder:
C11: PLZ, Ort: | E11: 12345 Musterstadt | K11: Güterstand:
C12: Berufsbezeichnung: | E12: Musterberuf
C14: FINANZIELLE SITUATION
C16: Einkünfte (monatl.) | G16: Person | I16: Ehepartner/-in | K16: Gesamt | L16: Summe p.a. | M16: Kommentar
C17: Lohn/Gehalt/Bezüge (netto) Haupttätigkeit | K17: =I17+G17 -> 0 | L17: =K17*12 -> 0
C18: Lohn/Gehalt/Bezüge (netto) Nebentätigkeit | K18: =I18+G18 -> 0 | L18: =K18*12 -> 0
C19: Einkommen aus selbstständiger Tätigkeit | K19: 0 | L19: 0
C20: Rente/Pensionen/Versicherungsbeiträge | K20: 0 | L20: 0
C21: Kapitalerträge | K21: 0 | L21: 0
C22: Miet-/Pachteinnahmen | K22: 0 | L22: 0
C23: Einkünfte aus staatl. Leistungen | K23: 0 | L23: 0
C24: Einkünfte aus sonstigen Quellen | K24: 0 | L24: 0
C25: Summe | G25: =SUM(G17:H24) -> 0 | I25: =SUM(I17:J24) -> 0 | K25: =SUM(K17:K24) -> 0 | L25: =SUM(L17:L24) -> 0
C27: FINANZIELLE SITUATION
C29: Ausgaben (monatl.) | G29: Person | I29: Ehepartner/-in | K29: Gesamt | L29: Summe p.a. | M29: Kommentar
C30: Miete/Rate inkl. Nebenkosten | K30: =I30+G30 -> 0 | L30: =K30*12 -> 0
C31: Nahrungsmittel | K31: =I31+G31 -> 0 | L31: =K31*12 -> 0
C32: Konsumartikel | K32: 0 | L32: 0
C33: Hobby, Freizeit- und Kulturveranstaltungen | K33: 0 | L33: 0
C34: Urlaub | K34: 0 | L34: 0
C35: Mobilitätskosten | K35: 0 | L35: 0
C36: Kommunikationskosten | K36: 0 | L36: 0
C37: Spendenbeiträge | K37: 0 | L37: 0
C38: vorhandene Sparpläne/-verträge | K38: =I38+G38 -> 0 | L38: 0
C39: Altervorsorge | K39: 0 | L39: 0
C40: Privatversicherungen | K40: 0 | L40: 0
C41: Ausgaben aus selbstständiger Tätigkeit | K41: 0 | L41: 0
C42: Unterhaltszahlungen | K42: 0 | L42: 0
C43: Bewirtschaftungskosten vermieteter Immobilien | K43: 0 | L43: 0
C44: Kapitaldienst vermieteter Immobilien | K44: 0 | L44: 0
C45: Summe | G45: =SUM(G30:H44) -> 0 | I45: =SUM(I30:J44) -> 0 | K45: =SUM(K30:K44) -> 0 | L45: =SUM(L30:L44) -> 0
C47: FINANZIELLE SITUATION
C49: Überschussrechnung | G49: Person | I49: Ehepartner/-in | K49: Gesamt | L49: Summe p.a. | M49: Kommentar
C50: Einnahmen | G50: =G25 -> 0 | I50: =I25 -> 0 | K50: =K25 -> 0 | L50: =L25 -> 0
C51: Ausgaben | G51: =G45 -> 0 | I51: =I45 -> 0 | K51: =K45 -> 0 | L51: =L45 -> 0
C52: Summe | G52: =G50-G51 -> 0 | I52: =I50-I51 -> 0 | K52: =K50-K51 -> 0 | L52: =L50-L51 -> 0

Sheet Ihre Vermögensaufstellung
C3: VERMÖGENSAUFSTELLUNG
C5: =IF(E9="","",E9) -> Max Mustermann | M5: ='Unterlagen für Ihre Bank'!O5 -> 2020-02-23
C8: ANGABEN ZUR PERSON
C9: Name: | E9: =IF('Ihre Haushaltsrechnung'!E9:J9="","",'Ihre Haushaltsrechnung'!E9:J9) -> Max Mustermann | K9: Familienstand: | L9: =IF('Ihre Haushaltsrechnung'!M9="","",'Ihre Haushaltsrechnung'!M9) -> 
C10: Straße, Nr.: | E10: =IF('Ihre Haushaltsrechnung'!E10:J10="","",'Ihre Haushaltsrechnung'!E10:J10) -> Musterstraße 123 | K10: Kinder: | L10: =IF('Ihre Haushaltsrechnung'!M10="","",'Ihre Haushaltsrechnung'!M10) -> 
C11: PLZ, Ort: | E11: =IF('Ihre Haushaltsrechnung'!E11:J11="","",'Ihre Haushaltsrechnung'!E11:J11) -> 12345 Musterstadt | K11: Güterstand: | L11: =IF('Ihre Haushaltsrechnung'!M11="","",'Ihre Haushaltsrechnung'!M11) -> 
C12: Berufsbezeichnung: | E12: =IF('Ihre Haushaltsrechnung'!E12:J12="","",'Ihre Haushaltsrechnung'!E12:J12) -> Musterberuf
C14: FINANZIELLE SITUATION
C16: Vermögensgegenstände | G16: Person | I16: Ehepartner/-in | K16: Gesamt | L16: Bemerkungen
C17: Girokonto I | K17: =I17+G17 -> 0
C18: Girokonto II | K18: =I18+G18 -> 0
C19: Tagesgeldkonto | K19: 0
C20: Sparbuch | K20: =I20+G20 -> 0
C21: Wertpapier Depot | K21: 0
C22: Lebensversicherungen | K22: 0
C23: Bausparverträge | K23: 0
C24: Immobilienvermögen | K24: 0
C25: Summe | G25: =SUM(G17:H24) -> 0 | I25: =SUM(I17:J24) -> 0 | K25: =SUM(K17:K24) -> 0
C27: FINANZIELLE SITUATION
C29: Verbindlichkeiten | G29: Person | I29: Ehepartner/-in | K29: Gesamt | L29: Bemerkungen
C30: Dispositionskredite | K30: =I30+G30 -> 0
C31: Konsumkredite | K31: =I31+G31 -> 0
C32: Immobiliendarlehen | K32: 0
C33: Bürgschaften | K33: 0
C34: Steuerschulden | K34: 0
C35: Summe | G35: =SUM(G30:H34) -> 0 | I35: =SUM(I30:J34) -> 0 | K35: =SUM(K30:K34) -> 0
C37: FINANZIELLE SITUATION
C39: Vermögensgegenüberstellung | G39: Person | I39: Ehepartner/-in | K39: Gesamt | L39: Bemerkungen
C40: Vermögensgegenstände | G40: =G25 -> 0 | I40: =I25 -> 0 | K40: =K25 -> 0
C41: Verbindlichkeiten | G41: =G35 -> 0 | I41: =I35 -> 0 | K41: =K35 -> 0
C42: Bilanz | G42: =G40-G41 -> 0 | I42: =I40-I41 -> 0 | K42: =K40-K41 -> 0

Sheet Kalkulation Mehrfamilienhaus
C4: Summe aller Wohneinheiten
F5: =YEAR('Ihre Übersicht'!D$7) -> 2019 | G5: =F5+1 -> 2020 | H5: =G5+1 -> 2021 | I5: 2022 | J5: 2023 | K5: 2024 | L5: 2025 | M5: 2026 | N5: 2027 | O5: 2028 | P5: 2029 | Q5: 2030 | R5: 2031 | S5: 2032 | T5: 2033 | U5: 2034 | V5: 2035 | W5: 2036 | X5: 2037 | Y5: 2038 | Z5: 2039 | AA5: 2040 | AB5: 2041 | AC5: 2042 | AD5: 2043 | AE5: 2044 | AF5: 2045 | AG5: 2046 | AH5: 2047 | AI5: 2048 | AJ5: 2049 | AK5: 2050 | AL5: 2051 | AM5: 2052 | AN5: 2053 | AO5: 2054 | AP5: 2055 | AQ5: 2056 | AR5: 2057 | AS5: 2058 | AT5: 2059 | AU5: 2060 | AV5: 2061 | AW5: 2062 | AX5: 2063 | AY5: 2064 | AZ5: 2065 | BA5: 2066 | BB5: 2067 | BC5: 2068
C6: Wohnfläche | F6: =IF(SUMIF($C$12:F$516,$C6,F$12:F$516)=0,"",SUMIF($C$12:F$516,$C6,F$12:F$516)) ->  | G6: =IF(SUMIF($C$12:G$516,$C6,G$12:G$516)=0,"",SUMIF($C$12:G$516,$C6,G$12:G$516)) ->  | H6: =IF(SUMIF($C$12:H$516,$C6,H$12:H$516)=0,"",SUMIF($C$12:H$516,$C6,H$12:H$516)) ->  | I6: =IF(SUMIF($C$12:I$516,$C6,I$12:I$516)=0,"",SUMIF($C$12:I$516,$C6,I$12:I$516)) ->  | J6: =IF(SUMIF($C$12:J$516,$C6,J$12:J$516)=0,"",SUMIF($C$12:J$516,$C6,J$12:J$516)) ->  | K6: =IF(SUMIF($C$12:K$516,$C6,K$12:K$516)=0,"",SUMIF($C$12:K$516,$C6,K$12:K$516)) ->  | L6: =IF(SUMIF($C$12:L$516,$C6,L$12:L$516)=0,"",SUMIF($C$12:L$516,$C6,L$12:L$516)) ->  | M6: =IF(SUMIF($C$12:M$516,$C6,M$12:M$516)=0,"",SUMIF($C$12:M$516,$C6,M$12:M$516)) ->  | N6: =IF(SUMIF($C$12:N$516,$C6,N$12:N$516)=0,"",SUMIF($C$12:N$516,$C6,N$12:N$516)) ->  | O6: =IF(SUMIF($C$12:O$516,$C6,O$12:O$516)=0,"",SUMIF($C$12:O$516,$C6,O$12:O$516)) ->  | P6: =IF(SUMIF($C$12:P$516,$C6,P$12:P$516)=0,"",SUMIF($C$12:P$516,$C6,P$12:P$516)) ->  | Q6: =IF(SUMIF($C$12:Q$516,$C6,Q$12:Q$516)=0,"",SUMIF($C$12:Q$516,$C6,Q$12:Q$516)) ->  | R6: =IF(SUMIF($C$12:R$516,$C6,R$12:R$516)=0,"",SUMIF($C$12:R$516,$C6,R$12:R$516)) ->  | S6: =IF(SUMIF($C$12:S$516,$C6,S$12:S$516)=0,"",SUMIF($C$12:S$516,$C6,S$12:S$516)) ->  | T6: =IF(SUMIF($C$12:T$516,$C6,T$12:T$516)=0,"",SUMIF($C$12:T$516,$C6,T$12:T$516)) ->  | U6: =IF(SUMIF($C$12:U$516,$C6,U$12:U$516)=0,"",SUMIF($C$12:U$516,$C6,U$12:U$516)) ->  | V6: =IF(SUMIF($C$12:V$516,$C6,V$12:V$516)=0,"",SUMIF($C$12:V$516,$C6,V$12:V$516)) ->  | W6: =IF(SUMIF($C$12:W$516,$C6,W$12:W$516)=0,"",SUMIF($C$12:W$516,$C6,W$12:W$516)) ->  | X6: =IF(SUMIF($C$12:X$516,$C6,X$12:X$516)=0,"",SUMIF($C$12:X$516,$C6,X$12:X$516)) ->  | Y6: =IF(SUMIF($C$12:Y$516,$C6,Y$12:Y$516)=0,"",SUMIF($C$12:Y$516,$C6,Y$12:Y$516)) ->  | Z6: =IF(SUMIF($C$12:Z$516,$C6,Z$12:Z$516)=0,"",SUMIF($C$12:Z$516,$C6,Z$12:Z$516)) ->  | AA6: =IF(SUMIF($C$12:AA$516,$C6,AA$12:AA$516)=0,"",SUMIF($C$12:AA$516,$C6,AA$12:AA$516)) ->  | AB6: =IF(SUMIF($C$12:AB$516,$C6,AB$12:AB$516)=0,"",SUMIF($C$12:AB$516,$C6,AB$12:AB$516)) ->  | AC6: =IF(SUMIF($C$12:AC$516,$C6,AC$12:AC$516)=0,"",SUMIF($C$12:AC$516,$C6,AC$12:AC$516)) ->  | AD6: =IF(SUMIF($C$12:AD$516,$C6,AD$12:AD$516)=0,"",SUMIF($C$12:AD$516,$C6,AD$12:AD$516)) ->  | AE6: =IF(SUMIF($C$12:AE$516,$C6,AE$12:AE$516)=0,"",SUMIF($C$12:AE$516,$C6,AE$12:AE$516)) ->  | AF6: =IF(SUMIF($C$12:AF$516,$C6,AF$12:AF$516)=0,"",SUMIF($C$12:AF$516,$C6,AF$12:AF$516)) ->  | AG6: =IF(SUMIF($C$12:AG$516,$C6,AG$12:AG$516)=0,"",SUMIF($C$12:AG$516,$C6,AG$12:AG$516)) ->  | AH6: =IF(SUMIF($C$12:AH$516,$C6,AH$12:AH$516)=0,"",SUMIF($C$12:AH$516,$C6,AH$12:AH$516)) ->  | AI6: =IF(SUMIF($C$12:AI$516,$C6,AI$12:AI$516)=0,"",SUMIF($C$12:AI$516,$C6,AI$12:AI$516)) ->  | AJ6: =IF(SUMIF($C$12:AJ$516,$C6,AJ$12:AJ$516)=0,"",SUMIF($C$12:AJ$516,$C6,AJ$12:AJ$516)) ->  | AK6: =IF(SUMIF($C$12:AK$516,$C6,AK$12:AK$516)=0,"",SUMIF($C$12:AK$516,$C6,AK$12:AK$516)) ->  | AL6: =IF(SUMIF($C$12:AL$516,$C6,AL$12:AL$516)=0,"",SUMIF($C$12:AL$516,$C6,AL$12:AL$516)) ->  | AM6: =IF(SUMIF($C$12:AM$516,$C6,AM$12:AM$516)=0,"",SUMIF($C$12:AM$516,$C6,AM$12:AM$516)) ->  | AN6: =IF(SUMIF($C$12:AN$516,$C6,AN$12:AN$516)=0,"",SUMIF($C$12:AN$516,$C6,AN$12:AN$516)) ->  | AO6: =IF(SUMIF($C$12:AO$516,$C6,AO$12:AO$516)=0,"",SUMIF($C$12:AO$516,$C6,AO$12:AO$516)) ->  | AP6: =IF(SUMIF($C$12:AP$516,$C6,AP$12:AP$516)=0,"",SUMIF($C$12:AP$516,$C6,AP$12:AP$516)) ->  | AQ6: =IF(SUMIF($C$12:AQ$516,$C6,AQ$12:AQ$516)=0,"",SUMIF($C$12:AQ$516,$C6,AQ$12:AQ$516)) ->  | AR6: =IF(SUMIF($C$12:AR$516,$C6,AR$12:AR$516)=0,"",SUMIF($C$12:AR$516,$C6,AR$12:AR$516)) ->  | AS6: =IF(SUMIF($C$12:AS$516,$C6,AS$12:AS$516)=0,"",SUMIF($C$12:AS$516,$C6,AS$12:AS$516)) ->  | AT6: =IF(SUMIF($C$12:AT$516,$C6,AT$12:AT$516)=0,"",SUMIF($C$12:AT$516,$C6,AT$12:AT$516)) ->  | AU6: =IF(SUMIF($C$12:AU$516,$C6,AU$12:AU$516)=0,"",SUMIF($C$12:AU$516,$C6,AU$12:AU$516)) ->  | AV6: =IF(SUMIF($C$12:AV$516,$C6,AV$12:AV$516)=0,"",SUMIF($C$12:AV$516,$C6,AV$12:AV$516)) ->  | AW6: =IF(SUMIF($C$12:AW$516,$C6,AW$12:AW$516)=0,"",SUMIF($C$12:AW$516,$C6,AW$12:AW$516)) ->  | AX6: =IF(SUMIF($C$12:AX$516,$C6,AX$12:AX$516)=0,"",SUMIF($C$12:AX$516,$C6,AX$12:AX$516)) ->  | AY6: =IF(SUMIF($C$12:AY$516,$C6,AY$12:AY$516)=0,"",SUMIF($C$12:AY$516,$C6,AY$12:AY$516)) ->  | AZ6: =IF(SUMIF($C$12:AZ$516,$C6,AZ$12:AZ$516)=0,"",SUMIF($C$12:AZ$516,$C6,AZ$12:AZ$516)) ->  | BA6: =IF(SUMIF($C$12:BA$516,$C6,BA$12:BA$516)=0,"",SUMIF($C$12:BA$516,$C6,BA$12:BA$516)) ->  | BB6: =IF(SUMIF($C$12:BB$516,$C6,BB$12:BB$516)=0,"",SUMIF($C$12:BB$516,$C6,BB$12:BB$516)) ->  | BC6: =IF(SUMIF($C$12:BC$516,$C6,BC$12:BC$516)=0,"",SUMIF($C$12:BC$516,$C6,BC$12:BC$516)) -> 
C7: Kaltmiete (inkl. Stellplatz, Keller, Dachboden etc.) | F7: =IF(SUMIF($C$12:F$516,$C7,F$12:F$516)=0,"",SUMIF($C$12:F$516,$C7,F$12:F$516)) ->  | G7: =IFERROR(IF(SUMIF($C$12:G$516,$C7,G$12:G$516)=0,"",SUMIF($C$12:G$516,$C7,G$12:G$516)),"") ->  | H7: =IFERROR(IF(SUMIF($C$12:H$516,$C7,H$12:H$516)=0,"",SUMIF($C$12:H$516,$C7,H$12:H$516)),"") ->  | I7: =IFERROR(IF(SUMIF($C$12:I$516,$C7,I$12:I$516)=0,"",SUMIF($C$12:I$516,$C7,I$12:I$516)),"") ->  | J7: =IFERROR(IF(SUMIF($C$12:J$516,$C7,J$12:J$516)=0,"",SUMIF($C$12:J$516,$C7,J$12:J$516)),"") ->  | K7: =IFERROR(IF(SUMIF($C$12:K$516,$C7,K$12:K$516)=0,"",SUMIF($C$12:K$516,$C7,K$12:K$516)),"") ->  | L7: =IFERROR(IF(SUMIF($C$12:L$516,$C7,L$12:L$516)=0,"",SUMIF($C$12:L$516,$C7,L$12:L$516)),"") ->  | M7: =IFERROR(IF(SUMIF($C$12:M$516,$C7,M$12:M$516)=0,"",SUMIF($C$12:M$516,$C7,M$12:M$516)),"") ->  | N7: =IFERROR(IF(SUMIF($C$12:N$516,$C7,N$12:N$516)=0,"",SUMIF($C$12:N$516,$C7,N$12:N$516)),"") ->  | O7: =IFERROR(IF(SUMIF($C$12:O$516,$C7,O$12:O$516)=0,"",SUMIF($C$12:O$516,$C7,O$12:O$516)),"") ->  | P7: =IFERROR(IF(SUMIF($C$12:P$516,$C7,P$12:P$516)=0,"",SUMIF($C$12:P$516,$C7,P$12:P$516)),"") ->  | Q7: =IFERROR(IF(SUMIF($C$12:Q$516,$C7,Q$12:Q$516)=0,"",SUMIF($C$12:Q$516,$C7,Q$12:Q$516)),"") ->  | R7: =IFERROR(IF(SUMIF($C$12:R$516,$C7,R$12:R$516)=0,"",SUMIF($C$12:R$516,$C7,R$12:R$516)),"") ->  | S7: =IFERROR(IF(SUMIF($C$12:S$516,$C7,S$12:S$516)=0,"",SUMIF($C$12:S$516,$C7,S$12:S$516)),"") ->  | T7: =IFERROR(IF(SUMIF($C$12:T$516,$C7,T$12:T$516)=0,"",SUMIF($C$12:T$516,$C7,T$12:T$516)),"") ->  | U7: =IFERROR(IF(SUMIF($C$12:U$516,$C7,U$12:U$516)=0,"",SUMIF($C$12:U$516,$C7,U$12:U$516)),"") ->  | V7: =IFERROR(IF(SUMIF($C$12:V$516,$C7,V$12:V$516)=0,"",SUMIF($C$12:V$516,$C7,V$12:V$516)),"") ->  | W7: =IFERROR(IF(SUMIF($C$12:W$516,$C7,W$12:W$516)=0,"",SUMIF($C$12:W$516,$C7,W$12:W$516)),"") ->  | X7: =IFERROR(IF(SUMIF($C$12:X$516,$C7,X$12:X$516)=0,"",SUMIF($C$12:X$516,$C7,X$12:X$516)),"") ->  | Y7: =IFERROR(IF(SUMIF($C$12:Y$516,$C7,Y$12:Y$516)=0,"",SUMIF($C$12:Y$516,$C7,Y$12:Y$516)),"") ->  | Z7: =IFERROR(IF(SUMIF($C$12:Z$516,$C7,Z$12:Z$516)=0,"",SUMIF($C$12:Z$516,$C7,Z$12:Z$516)),"") ->  | AA7: =IFERROR(IF(SUMIF($C$12:AA$516,$C7,AA$12:AA$516)=0,"",SUMIF($C$12:AA$516,$C7,AA$12:AA$516)),"") ->  | AB7: =IFERROR(IF(SUMIF($C$12:AB$516,$C7,AB$12:AB$516)=0,"",SUMIF($C$12:AB$516,$C7,AB$12:AB$516)),"") ->  | AC7: =IFERROR(IF(SUMIF($C$12:AC$516,$C7,AC$12:AC$516)=0,"",SUMIF($C$12:AC$516,$C7,AC$12:AC$516)),"") ->  | AD7: =IFERROR(IF(SUMIF($C$12:AD$516,$C7,AD$12:AD$516)=0,"",SUMIF($C$12:AD$516,$C7,AD$12:AD$516)),"") ->  | AE7: =IFERROR(IF(SUMIF($C$12:AE$516,$C7,AE$12:AE$516)=0,"",SUMIF($C$12:AE$516,$C7,AE$12:AE$516)),"") ->  | AF7: =IFERROR(IF(SUMIF($C$12:AF$516,$C7,AF$12:AF$516)=0,"",SUMIF($C$12:AF$516,$C7,AF$12:AF$516)),"") ->  | AG7: =IFERROR(IF(SUMIF($C$12:AG$516,$C7,AG$12:AG$516)=0,"",SUMIF($C$12:AG$516,$C7,AG$12:AG$516)),"") ->  | AH7: =IFERROR(IF(SUMIF($C$12:AH$516,$C7,AH$12:AH$516)=0,"",SUMIF($C$12:AH$516,$C7,AH$12:AH$516)),"") ->  | AI7: =IFERROR(IF(SUMIF($C$12:AI$516,$C7,AI$12:AI$516)=0,"",SUMIF($C$12:AI$516,$C7,AI$12:AI$516)),"") ->  | AJ7: =IFERROR(IF(SUMIF($C$12:AJ$516,$C7,AJ$12:AJ$516)=0,"",SUMIF($C$12:AJ$516,$C7,AJ$12:AJ$516)),"") ->  | AK7: =IFERROR(IF(SUMIF($C$12:AK$516,$C7,AK$12:AK$516)=0,"",SUMIF($C$12:AK$516,$C7,AK$12:AK$516)),"") ->  | AL7: =IFERROR(IF(SUMIF($C$12:AL$516,$C7,AL$12:AL$516)=0,"",SUMIF($C$12:AL$516,$C7,AL$12:AL$516)),"") ->  | AM7: =IFERROR(IF(SUMIF($C$12:AM$516,$C7,AM$12:AM$516)=0,"",SUMIF($C$12:AM$516,$C7,AM$12:AM$516)),"") ->  | AN7: =IFERROR(IF(SUMIF($C$12:AN$516,$C7,AN$12:AN$516)=0,"",SUMIF($C$12:AN$516,$C7,AN$12:AN$516)),"") ->  | AO7: =IFERROR(IF(SUMIF($C$12:AO$516,$C7,AO$12:AO$516)=0,"",SUMIF($C$12:AO$516,$C7,AO$12:AO$516)),"") ->  | AP7: =IFERROR(IF(SUMIF($C$12:AP$516,$C7,AP$12:AP$516)=0,"",SUMIF($C$12:AP$516,$C7,AP$12:AP$516)),"") ->  | AQ7: =IFERROR(IF(SUMIF($C$12:AQ$516,$C7,AQ$12:AQ$516)=0,"",SUMIF($C$12:AQ$516,$C7,AQ$12:AQ$516)),"") ->  | AR7: =IFERROR(IF(SUMIF($C$12:AR$516,$C7,AR$12:AR$516)=0,"",SUMIF($C$12:AR$516,$C7,AR$12:AR$516)),"") ->  | AS7: =IFERROR(IF(SUMIF($C$12:AS$516,$C7,AS$12:AS$516)=0,"",SUMIF($C$12:AS$516,$C7,AS$12:AS$516)),"") ->  | AT7: =IFERROR(IF(SUMIF($C$12:AT$516,$C7,AT$12:AT$516)=0,"",SUMIF($C$12:AT$516,$C7,AT$12:AT$516)),"") ->  | AU7: =IFERROR(IF(SUMIF($C$12:AU$516,$C7,AU$12:AU$516)=0,"",SUMIF($C$12:AU$516,$C7,AU$12:AU$516)),"") ->  | AV7: =IFERROR(IF(SUMIF($C$12:AV$516,$C7,AV$12:AV$516)=0,"",SUMIF($C$12:AV$516,$C7,AV$12:AV$516)),"") ->  | AW7: =IFERROR(IF(SUMIF($C$12:AW$516,$C7,AW$12:AW$516)=0,"",SUMIF($C$12:AW$516,$C7,AW$12:AW$516)),"") ->  | AX7: =IFERROR(IF(SUMIF($C$12:AX$516,$C7,AX$12:AX$516)=0,"",SUMIF($C$12:AX$516,$C7,AX$12:AX$516)),"") ->  | AY7: =IFERROR(IF(SUMIF($C$12:AY$516,$C7,AY$12:AY$516)=0,"",SUMIF($C$12:AY$516,$C7,AY$12:AY$516)),"") ->  | AZ7: =IFERROR(IF(SUMIF($C$12:AZ$516,$C7,AZ$12:AZ$516)=0,"",SUMIF($C$12:AZ$516,$C7,AZ$12:AZ$516)),"") ->  | BA7: =IFERROR(IF(SUMIF($C$12:BA$516,$C7,BA$12:BA$516)=0,"",SUMIF($C$12:BA$516,$C7,BA$12:BA$516)),"") ->  | BB7: =IFERROR(IF(SUMIF($C$12:BB$516,$C7,BB$12:BB$516)=0,"",SUMIF($C$12:BB$516,$C7,BB$12:BB$516)),"") ->  | BC7: =IFERROR(IF(SUMIF($C$12:BC$516,$C7,BC$12:BC$516)=0,"",SUMIF($C$12:BC$516,$C7,BC$12:BC$516)),"") -> 
C8: geplante Mieterhöhung in Prozent | F8: =IFERROR(IF(F7="","",(F9/F7)-1),"") ->  | G8: =IFERROR(IF(G7="","",(G9/G7)-1),"") -> 
C9: Neue Kaltmiete ab 1. Januar des Folgejahres | F9: =IFERROR(IF(SUMIF($C$12:F$516,$C9,F$12:F$516)=0,"",SUMIF($C$12:F$516,$C9,F$12:F$516)),"") ->  | G9: =IFERROR(IF(SUMIF($C$12:G$516,$C9,G$12:G$516)=0,"",SUMIF($C$12:G$516,$C9,G$12:G$516)),"") ->  | H9: =IFERROR(IF(SUMIF($C$12:H$516,$C9,H$12:H$516)=0,"",SUMIF($C$12:H$516,$C9,H$12:H$516)),"") ->  | I9: =IFERROR(IF(SUMIF($C$12:I$516,$C9,I$12:I$516)=0,"",SUMIF($C$12:I$516,$C9,I$12:I$516)),"") ->  | J9: =IFERROR(IF(SUMIF($C$12:J$516,$C9,J$12:J$516)=0,"",SUMIF($C$12:J$516,$C9,J$12:J$516)),"") ->  | K9: =IFERROR(IF(SUMIF($C$12:K$516,$C9,K$12:K$516)=0,"",SUMIF($C$12:K$516,$C9,K$12:K$516)),"") ->  | L9: =IFERROR(IF(SUMIF($C$12:L$516,$C9,L$12:L$516)=0,"",SUMIF($C$12:L$516,$C9,L$12:L$516)),"") ->  | M9: =IFERROR(IF(SUMIF($C$12:M$516,$C9,M$12:M$516)=0,"",SUMIF($C$12:M$516,$C9,M$12:M$516)),"") ->  | N9: =IFERROR(IF(SUMIF($C$12:N$516,$C9,N$12:N$516)=0,"",SUMIF($C$12:N$516,$C9,N$12:N$516)),"") ->  | O9: =IFERROR(IF(SUMIF($C$12:O$516,$C9,O$12:O$516)=0,"",SUMIF($C$12:O$516,$C9,O$12:O$516)),"") ->  | P9: =IFERROR(IF(SUMIF($C$12:P$516,$C9,P$12:P$516)=0,"",SUMIF($C$12:P$516,$C9,P$12:P$516)),"") ->  | Q9: =IFERROR(IF(SUMIF($C$12:Q$516,$C9,Q$12:Q$516)=0,"",SUMIF($C$12:Q$516,$C9,Q$12:Q$516)),"") ->  | R9: =IFERROR(IF(SUMIF($C$12:R$516,$C9,R$12:R$516)=0,"",SUMIF($C$12:R$516,$C9,R$12:R$516)),"") ->  | S9: =IFERROR(IF(SUMIF($C$12:S$516,$C9,S$12:S$516)=0,"",SUMIF($C$12:S$516,$C9,S$12:S$516)),"") ->  | T9: =IFERROR(IF(SUMIF($C$12:T$516,$C9,T$12:T$516)=0,"",SUMIF($C$12:T$516,$C9,T$12:T$516)),"") ->  | U9: =IFERROR(IF(SUMIF($C$12:U$516,$C9,U$12:U$516)=0,"",SUMIF($C$12:U$516,$C9,U$12:U$516)),"") ->  | V9: =IFERROR(IF(SUMIF($C$12:V$516,$C9,V$12:V$516)=0,"",SUMIF($C$12:V$516,$C9,V$12:V$516)),"") ->  | W9: =IFERROR(IF(SUMIF($C$12:W$516,$C9,W$12:W$516)=0,"",SUMIF($C$12:W$516,$C9,W$12:W$516)),"") ->  | X9: =IFERROR(IF(SUMIF($C$12:X$516,$C9,X$12:X$516)=0,"",SUMIF($C$12:X$516,$C9,X$12:X$516)),"") ->  | Y9: =IFERROR(IF(SUMIF($C$12:Y$516,$C9,Y$12:Y$516)=0,"",SUMIF($C$12:Y$516,$C9,Y$12:Y$516)),"") ->  | Z9: =IFERROR(IF(SUMIF($C$12:Z$516,$C9,Z$12:Z$516)=0,"",SUMIF($C$12:Z$516,$C9,Z$12:Z$516)),"") ->  | AA9: =IFERROR(IF(SUMIF($C$12:AA$516,$C9,AA$12:AA$516)=0,"",SUMIF($C$12:AA$516,$C9,AA$12:AA$516)),"") ->  | AB9: =IFERROR(IF(SUMIF($C$12:AB$516,$C9,AB$12:AB$516)=0,"",SUMIF($C$12:AB$516,$C9,AB$12:AB$516)),"") ->  | AC9: =IFERROR(IF(SUMIF($C$12:AC$516,$C9,AC$12:AC$516)=0,"",SUMIF($C$12:AC$516,$C9,AC$12:AC$516)),"") ->  | AD9: =IFERROR(IF(SUMIF($C$12:AD$516,$C9,AD$12:AD$516)=0,"",SUMIF($C$12:AD$516,$C9,AD$12:AD$516)),"") ->  | AE9: =IFERROR(IF(SUMIF($C$12:AE$516,$C9,AE$12:AE$516)=0,"",SUMIF($C$12:AE$516,$C9,AE$12:AE$516)),"") ->  | AF9: =IFERROR(IF(SUMIF($C$12:AF$516,$C9,AF$12:AF$516)=0,"",SUMIF($C$12:AF$516,$C9,AF$12:AF$516)),"") ->  | AG9: =IFERROR(IF(SUMIF($C$12:AG$516,$C9,AG$12:AG$516)=0,"",SUMIF($C$12:AG$516,$C9,AG$12:AG$516)),"") ->  | AH9: =IFERROR(IF(SUMIF($C$12:AH$516,$C9,AH$12:AH$516)=0,"",SUMIF($C$12:AH$516,$C9,AH$12:AH$516)),"") ->  | AI9: =IFERROR(IF(SUMIF($C$12:AI$516,$C9,AI$12:AI$516)=0,"",SUMIF($C$12:AI$516,$C9,AI$12:AI$516)),"") ->  | AJ9: =IFERROR(IF(SUMIF($C$12:AJ$516,$C9,AJ$12:AJ$516)=0,"",SUMIF($C$12:AJ$516,$C9,AJ$12:AJ$516)),"") ->  | AK9: =IFERROR(IF(SUMIF($C$12:AK$516,$C9,AK$12:AK$516)=0,"",SUMIF($C$12:AK$516,$C9,AK$12:AK$516)),"") ->  | AL9: =IFERROR(IF(SUMIF($C$12:AL$516,$C9,AL$12:AL$516)=0,"",SUMIF($C$12:AL$516,$C9,AL$12:AL$516)),"") ->  | AM9: =IFERROR(IF(SUMIF($C$12:AM$516,$C9,AM$12:AM$516)=0,"",SUMIF($C$12:AM$516,$C9,AM$12:AM$516)),"") ->  | AN9: =IFERROR(IF(SUMIF($C$12:AN$516,$C9,AN$12:AN$516)=0,"",SUMIF($C$12:AN$516,$C9,AN$12:AN$516)),"") ->  | AO9: =IFERROR(IF(SUMIF($C$12:AO$516,$C9,AO$12:AO$516)=0,"",SUMIF($C$12:AO$516,$C9,AO$12:AO$516)),"") ->  | AP9: =IFERROR(IF(SUMIF($C$12:AP$516,$C9,AP$12:AP$516)=0,"",SUMIF($C$12:AP$516,$C9,AP$12:AP$516)),"") ->  | AQ9: =IFERROR(IF(SUMIF($C$12:AQ$516,$C9,AQ$12:AQ$516)=0,"",SUMIF($C$12:AQ$516,$C9,AQ$12:AQ$516)),"") ->  | AR9: =IFERROR(IF(SUMIF($C$12:AR$516,$C9,AR$12:AR$516)=0,"",SUMIF($C$12:AR$516,$C9,AR$12:AR$516)),"") ->  | AS9: =IFERROR(IF(SUMIF($C$12:AS$516,$C9,AS$12:AS$516)=0,"",SUMIF($C$12:AS$516,$C9,AS$12:AS$516)),"") ->  | AT9: =IFERROR(IF(SUMIF($C$12:AT$516,$C9,AT$12:AT$516)=0,"",SUMIF($C$12:AT$516,$C9,AT$12:AT$516)),"") ->  | AU9: =IFERROR(IF(SUMIF($C$12:AU$516,$C9,AU$12:AU$516)=0,"",SUMIF($C$12:AU$516,$C9,AU$12:AU$516)),"") ->  | AV9: =IFERROR(IF(SUMIF($C$12:AV$516,$C9,AV$12:AV$516)=0,"",SUMIF($C$12:AV$516,$C9,AV$12:AV$516)),"") ->  | AW9: =IFERROR(IF(SUMIF($C$12:AW$516,$C9,AW$12:AW$516)=0,"",SUMIF($C$12:AW$516,$C9,AW$12:AW$516)),"") ->  | AX9: =IFERROR(IF(SUMIF($C$12:AX$516,$C9,AX$12:AX$516)=0,"",SUMIF($C$12:AX$516,$C9,AX$12:AX$516)),"") ->  | AY9: =IFERROR(IF(SUMIF($C$12:AY$516,$C9,AY$12:AY$516)=0,"",SUMIF($C$12:AY$516,$C9,AY$12:AY$516)),"") ->  | AZ9: =IFERROR(IF(SUMIF($C$12:AZ$516,$C9,AZ$12:AZ$516)=0,"",SUMIF($C$12:AZ$516,$C9,AZ$12:AZ$516)),"") ->  | BA9: =IFERROR(IF(SUMIF($C$12:BA$516,$C9,BA$12:BA$516)=0,"",SUMIF($C$12:BA$516,$C9,BA$12:BA$516)),"") ->  | BB9: =IFERROR(IF(SUMIF($C$12:BB$516,$C9,BB$12:BB$516)=0,"",SUMIF($C$12:BB$516,$C9,BB$12:BB$516)),"") ->  | BC9: =IFERROR(IF(SUMIF($C$12:BC$516,$C9,BC$12:BC$516)=0,"",SUMIF($C$12:BC$516,$C9,BC$12:BC$516)),"") -> 
C10: entspricht €/m² | F10: =IFERROR(IF(F6="","",F7/F6),"") ->  | G10: =IFERROR(IF(G6="","",G7/G6),"") ->  | BC10: =IFERROR(IF(BC6="","",BC7/BC6),"") -> 
C12: Wohneinheit 1
F13: =YEAR('Ihre Übersicht'!D$7) -> 2019 | G13: =F13+1 -> 2020 | H13: =G13+1 -> 2021 | I13: 2022 | J13: 2023 | K13: 2024 | L13: 2025 | M13: 2026 | N13: 2027 | O13: 2028 | P13: 2029 | Q13: 2030 | R13: 2031 | S13: 2032 | T13: 2033 | U13: 2034 | V13: 2035 | W13: 2036 | X13: 2037 | Y13: 2038 | Z13: 2039 | AA13: 2040 | AB13: 2041 | AC13: 2042 | AD13: 2043 | AE13: 2044 | AF13: 2045 | AG13: 2046 | AH13: 2047 | AI13: 2048 | AJ13: 2049 | AK13: 2050 | AL13: 2051 | AM13: 2052 | AN13: 2053 | AO13: 2054 | AP13: 2055 | AQ13: 2056 | AR13: 2057 | AS13: 2058 | AT13: 2059 | AU13: 2060 | AV13: 2061 | AW13: 2062 | AX13: 2063 | AY13: 2064 | AZ13: 2065 | BA13: 2066 | BB13: 2067 | BC13: 2068
C14: Wohnfläche | G14: =IF(F14="","",F14) ->  | H14: =IF(G14="","",G14) -> 
C15: Kaltmiete (inkl. Stellplatz, Keller, Dachboden etc.) | G15: =F17 ->  | H15: =G17 -> 
C16: geplante Mieterhöhung in Prozent | F16: =IF(F14="","",'Ihre Übersicht'!$L$33) ->  | G16: =IF(G14="","",'Ihre Übersicht'!$L$33) ->  | H16: =IF(H14="","",'Ihre Übersicht'!$L$33) ->  | I16: =IF(I14="","",'Ihre Übersicht'!$L$33) ->  | J16: =IF(J14="","",'Ihre Übersicht'!$L$33) ->  | K16: =IF(K14="","",'Ihre Übersicht'!$L$33) ->  | L16: =IF(L14="","",'Ihre Übersicht'!$L$33) ->  | M16: =IF(M14="","",'Ihre Übersicht'!$L$33) ->  | N16: =IF(N14="","",'Ihre Übersicht'!$L$33) ->  | O16: =IF(O14="","",'Ihre Übersicht'!$L$33) ->  | P16: =IF(P14="","",'Ihre Übersicht'!$L$33) ->  | Q16: =IF(Q14="","",'Ihre Übersicht'!$L$33) ->  | R16: =IF(R14="","",'Ihre Übersicht'!$L$33) ->  | S16: =IF(S14="","",'Ihre Übersicht'!$L$33) ->  | T16: =IF(T14="","",'Ihre Übersicht'!$L$33) ->  | U16: =IF(U14="","",'Ihre Übersicht'!$L$33) ->  | V16: =IF(V14="","",'Ihre Übersicht'!$L$33) ->  | W16: =IF(W14="","",'Ihre Übersicht'!$L$33) ->  | X16: =IF(X14="","",'Ihre Übersicht'!$L$33) ->  | Y16: =IF(Y14="","",'Ihre Übersicht'!$L$33) ->  | Z16: =IF(Z14="","",'Ihre Übersicht'!$L$33) ->  | AA16: =IF(AA14="","",'Ihre Übersicht'!$L$33) ->  | AB16: =IF(AB14="","",'Ihre Übersicht'!$L$33) ->  | AC16: =IF(AC14="","",'Ihre Übersicht'!$L$33) ->  | AD16: =IF(AD14="","",'Ihre Übersicht'!$L$33) ->  | AE16: =IF(AE14="","",'Ihre Übersicht'!$L$33) ->  | AF16: =IF(AF14="","",'Ihre Übersicht'!$L$33) ->  | AG16: =IF(AG14="","",'Ihre Übersicht'!$L$33) ->  | AH16: =IF(AH14="","",'Ihre Übersicht'!$L$33) ->  | AI16: =IF(AI14="","",'Ihre Übersicht'!$L$33) ->  | AJ16: =IF(AJ14="","",'Ihre Übersicht'!$L$33) ->  | AK16: =IF(AK14="","",'Ihre Übersicht'!$L$33) ->  | AL16: =IF(AL14="","",'Ihre Übersicht'!$L$33) ->  | AM16: =IF(AM14="","",'Ihre Übersicht'!$L$33) ->  | AN16: =IF(AN14="","",'Ihre Übersicht'!$L$33) ->  | AO16: =IF(AO14="","",'Ihre Übersicht'!$L$33) ->  | AP16: =IF(AP14="","",'Ihre Übersicht'!$L$33) ->  | AQ16: =IF(AQ14="","",'Ihre Übersicht'!$L$33) ->  | AR16: =IF(AR14="","",'Ihre Übersicht'!$L$33) ->  | AS16: =IF(AS14="","",'Ihre Übersicht'!$L$33) ->  | AT16: =IF(AT14="","",'Ihre Übersicht'!$L$33) ->  | AU16: =IF(AU14="","",'Ihre Übersicht'!$L$33) ->  | AV16: =IF(AV14="","",'Ihre Übersicht'!$L$33) ->  | AW16: =IF(AW14="","",'Ihre Übersicht'!$L$33) ->  | AX16: =IF(AX14="","",'Ihre Übersicht'!$L$33) ->  | AY16: =IF(AY14="","",'Ihre Übersicht'!$L$33) ->  | AZ16: =IF(AZ14="","",'Ihre Übersicht'!$L$33) ->  | BA16: =IF(BA14="","",'Ihre Übersicht'!$L$33) ->  | BB16: =IF(BB14="","",'Ihre Übersicht'!$L$33) ->  | BC16: =IF(BC14="","",'Ihre Übersicht'!$L$33) -> 
C17: Neue Kaltmiete ab 1. Januar des Folgejahres | F17: =IFERROR(IF(F15="","",F15*(1+F16)),"") ->  | G17: =IF(G15="","",G15*(1+G16)) ->  | H17: =IF(H15="","",H15*(1+H16)) ->  | I17: =IF(I15="","",I15*(1+I16)) ->  | J17: =IF(J15="","",J15*(1+J16)) ->  | K17: =IF(K15="","",K15*(1+K16)) ->  | L17: =IF(L15="","",L15*(1+L16)) ->  | M17: =IF(M15="","",M15*(1+M16)) ->  | N17: =IF(N15="","",N15*(1+N16)) ->  | O17: =IF(O15="","",O15*(1+O16)) ->  | P17: =IF(P15="","",P15*(1+P16)) ->  | Q17: =IF(Q15="","",Q15*(1+Q16)) ->  | R17: =IF(R15="","",R15*(1+R16)) ->  | S17: =IF(S15="","",S15*(1+S16)) ->  | T17: =IF(T15="","",T15*(1+T16)) ->  | U17: =IF(U15="","",U15*(1+U16)) ->  | V17: =IF(V15="","",V15*(1+V16)) ->  | W17: =IF(W15="","",W15*(1+W16)) ->  | X17: =IF(X15="","",X15*(1+X16)) ->  | Y17: =IF(Y15="","",Y15*(1+Y16)) ->  | Z17: =IF(Z15="","",Z15*(1+Z16)) ->  | AA17: =IF(AA15="","",AA15*(1+AA16)) ->  | AB17: =IF(AB15="","",AB15*(1+AB16)) ->  | AC17: =IF(AC15="","",AC15*(1+AC16)) ->  | AD17: =IF(AD15="","",AD15*(1+AD16)) ->  | AE17: =IF(AE15="","",AE15*(1+AE16)) ->  | AF17: =IF(AF15="","",AF15*(1+AF16)) ->  | AG17: =IF(AG15="","",AG15*(1+AG16)) ->  | AH17: =IF(AH15="","",AH15*(1+AH16)) ->  | AI17: =IF(AI15="","",AI15*(1+AI16)) ->  | AJ17: =IF(AJ15="","",AJ15*(1+AJ16)) ->  | AK17: =IF(AK15="","",AK15*(1+AK16)) ->  | AL17: =IF(AL15="","",AL15*(1+AL16)) ->  | AM17: =IF(AM15="","",AM15*(1+AM16)) ->  | AN17: =IF(AN15="","",AN15*(1+AN16)) ->  | AO17: =IF(AO15="","",AO15*(1+AO16)) ->  | AP17: =IF(AP15="","",AP15*(1+AP16)) ->  | AQ17: =IF(AQ15="","",AQ15*(1+AQ16)) ->  | AR17: =IF(AR15="","",AR15*(1+AR16)) ->  | AS17: =IF(AS15="","",AS15*(1+AS16)) ->  | AT17: =IF(AT15="","",AT15*(1+AT16)) ->  | AU17: =IF(AU15="","",AU15*(1+AU16)) ->  | AV17: =IF(AV15="","",AV15*(1+AV16)) ->  | AW17: =IF(AW15="","",AW15*(1+AW16)) ->  | AX17: =IF(AX15="","",AX15*(1+AX16)) ->  | AY17: =IF(AY15="","",AY15*(1+AY16)) ->  | AZ17: =IF(AZ15="","",AZ15*(1+AZ16)) ->  | BA17: =IF(BA15="","",BA15*(1+BA16)) ->  | BB17: =IF(BB15="","",BB15*(1+BB16)) ->  | BC17: =IF(BC15="","",BC15*(1+BC16)) -> 
C18: entspricht €/m² | F18: =IFERROR(IF(F14="","",F15/F14),"") ->  | G18: =IFERROR(IF(G14="","",G15/G14),"") ->  | BC18: =IFERROR(IF(BC14="","",BC15/BC14),"") -> 
C20: Wohneinheit 2
F21: =YEAR('Ihre Übersicht'!D$7) -> 2019 | G21: =F21+1 -> 2020 | H21: =G21+1 -> 2021 | I21: 2022 | J21: 2023 | K21: 2024 | L21: 2025 | M21: 2026 | N21: 2027 | O21: 2028 | P21: 2029 | Q21: 2030 | R21: 2031 | S21: 2032 | T21: 2033 | U21: 2034 | V21: 2035 | W21: 2036 | X21: 2037 | Y21: 2038 | Z21: 2039 | AA21: 2040 | AB21: 2041 | AC21: 2042 | AD21: 2043 | AE21: 2044 | AF21: 2045 | AG21: 2046 | AH21: 2047 | AI21: 2048 | AJ21: 2049 | AK21: 2050 | AL21: 2051 | AM21: 2052 | AN21: 2053 | AO21: 2054 | AP21: 2055 | AQ21: 2056 | AR21: 2057 | AS21: 2058 | AT21: 2059 | AU21: 2060 | AV21: 2061 | AW21: 2062 | AX21: 2063 | AY21: 2064 | AZ21: 2065 | BA21: 2066 | BB21: 2067 | BC21: 2068
C22: Wohnfläche | G22: =IF(F22="","",F22) ->  | H22: =IF(G22="","",G22) -> 
C23: Kaltmiete (inkl. Stellplatz, Keller, Dachboden etc.) | G23: =F25 ->  | H23: =G25 -> 
C24: geplante Mieterhöhung in Prozent | F24: =IF(F22="","",'Ihre Übersicht'!$L$33) ->  | G24: =IF(G22="","",'Ihre Übersicht'!$L$33) ->  | H24: =IF(H22="","",'Ihre Übersicht'!$L$33) ->  | I24: =IF(I22="","",'Ihre Übersicht'!$L$33) ->  | J24: =IF(J22="","",'Ihre Übersicht'!$L$33) ->  | K24: =IF(K22="","",'Ihre Übersicht'!$L$33) ->  | L24: =IF(L22="","",'Ihre Übersicht'!$L$33) ->  | M24: =IF(M22="","",'Ihre Übersicht'!$L$33) ->  | N24: =IF(N22="","",'Ihre Übersicht'!$L$33) ->  | O24: =IF(O22="","",'Ihre Übersicht'!$L$33) ->  | P24: =IF(P22="","",'Ihre Übersicht'!$L$33) ->  | Q24: =IF(Q22="","",'Ihre Übersicht'!$L$33) ->  | R24: =IF(R22="","",'Ihre Übersicht'!$L$33) ->  | S24: =IF(S22="","",'Ihre Übersicht'!$L$33) ->  | T24: =IF(T22="","",'Ihre Übersicht'!$L$33) ->  | U24: =IF(U22="","",'Ihre Übersicht'!$L$33) ->  | V24: =IF(V22="","",'Ihre Übersicht'!$L$33) ->  | W24: =IF(W22="","",'Ihre Übersicht'!$L$33) ->  | X24: =IF(X22="","",'Ihre Übersicht'!$L$33) ->  | Y24: =IF(Y22="","",'Ihre Übersicht'!$L$33) ->  | Z24: =IF(Z22="","",'Ihre Übersicht'!$L$33) ->  | AA24: =IF(AA22="","",'Ihre Übersicht'!$L$33) ->  | AB24: =IF(AB22="","",'Ihre Übersicht'!$L$33) ->  | AC24: =IF(AC22="","",'Ihre Übersicht'!$L$33) ->  | AD24: =IF(AD22="","",'Ihre Übersicht'!$L$33) ->  | AE24: =IF(AE22="","",'Ihre Übersicht'!$L$33) ->  | AF24: =IF(AF22="","",'Ihre Übersicht'!$L$33) ->  | AG24: =IF(AG22="","",'Ihre Übersicht'!$L$33) ->  | AH24: =IF(AH22="","",'Ihre Übersicht'!$L$33) ->  | AI24: =IF(AI22="","",'Ihre Übersicht'!$L$33) ->  | AJ24: =IF(AJ22="","",'Ihre Übersicht'!$L$33) ->  | AK24: =IF(AK22="","",'Ihre Übersicht'!$L$33) ->  | AL24: =IF(AL22="","",'Ihre Übersicht'!$L$33) ->  | AM24: =IF(AM22="","",'Ihre Übersicht'!$L$33) ->  | AN24: =IF(AN22="","",'Ihre Übersicht'!$L$33) ->  | AO24: =IF(AO22="","",'Ihre Übersicht'!$L$33) ->  | AP24: =IF(AP22="","",'Ihre Übersicht'!$L$33) ->  | AQ24: =IF(AQ22="","",'Ihre Übersicht'!$L$33) ->  | AR24: =IF(AR22="","",'Ihre Übersicht'!$L$33) ->  | AS24: =IF(AS22="","",'Ihre Übersicht'!$L$33) ->  | AT24: =IF(AT22="","",'Ihre Übersicht'!$L$33) ->  | AU24: =IF(AU22="","",'Ihre Übersicht'!$L$33) ->  | AV24: =IF(AV22="","",'Ihre Übersicht'!$L$33) ->  | AW24: =IF(AW22="","",'Ihre Übersicht'!$L$33) ->  | AX24: =IF(AX22="","",'Ihre Übersicht'!$L$33) ->  | AY24: =IF(AY22="","",'Ihre Übersicht'!$L$33) ->  | AZ24: =IF(AZ22="","",'Ihre Übersicht'!$L$33) ->  | BA24: =IF(BA22="","",'Ihre Übersicht'!$L$33) ->  | BB24: =IF(BB22="","",'Ihre Übersicht'!$L$33) ->  | BC24: =IF(BC22="","",'Ihre Übersicht'!$L$33) -> 
C25: Neue Kaltmiete ab 1. Januar des Folgejahres | F25: =IFERROR(IF(F23="","",F23*(1+F24)),"") ->  | G25: =IF(G23="","",G23*(1+G24)) ->  | H25: =IF(H23="","",H23*(1+H24)) ->  | I25: =IF(I23="","",I23*(1+I24)) ->  | J25: =IF(J23="","",J23*(1+J24)) ->  | K25: =IF(K23="","",K23*(1+K24)) ->  | L25: =IF(L23="","",L23*(1+L24)) ->  | M25: =IF(M23="","",M23*(1+M24)) ->  | N25: =IF(N23="","",N23*(1+N24)) ->  | O25: =IF(O23="","",O23*(1+O24)) ->  | P25: =IF(P23="","",P23*(1+P24)) ->  | Q25: =IF(Q23="","",Q23*(1+Q24)) ->  | R25: =IF(R23="","",R23*(1+R24)) ->  | S25: =IF(S23="","",S23*(1+S24)) ->  | T25: =IF(T23="","",T23*(1+T24)) ->  | U25: =IF(U23="","",U23*(1+U24)) ->  | V25: =IF(V23="","",V23*(1+V24)) ->  | W25: =IF(W23="","",W23*(1+W24)) ->  | X25: =IF(X23="","",X23*(1+X24)) ->  | Y25: =IF(Y23="","",Y23*(1+Y24)) ->  | Z25: =IF(Z23="","",Z23*(1+Z24)) ->  | AA25: =IF(AA23="","",AA23*(1+AA24)) ->  | AB25: =IF(AB23="","",AB23*(1+AB24)) ->  | AC25: =IF(AC23="","",AC23*(1+AC24)) ->  | AD25: =IF(AD23="","",AD23*(1+AD24)) ->  | AE25: =IF(AE23="","",AE23*(1+AE24)) ->  | AF25: =IF(AF23="","",AF23*(1+AF24)) ->  | AG25: =IF(AG23="","",AG23*(1+AG24)) ->  | AH25: =IF(AH23="","",AH23*(1+AH24)) ->  | AI25: =IF(AI23="","",AI23*(1+AI24)) ->  | AJ25: =IF(AJ23="","",AJ23*(1+AJ24)) ->  | AK25: =IF(AK23="","",AK23*(1+AK24)) ->  | AL25: =IF(AL23="","",AL23*(1+AL24)) ->  | AM25: =IF(AM23="","",AM23*(1+AM24)) ->  | AN25: =IF(AN23="","",AN23*(1+AN24)) ->  | AO25: =IF(AO23="","",AO23*(1+AO24)) ->  | AP25: =IF(AP23="","",AP23*(1+AP24)) ->  | AQ25: =IF(AQ23="","",AQ23*(1+AQ24)) ->  | AR25: =IF(AR23="","",AR23*(1+AR24)) ->  | AS25: =IF(AS23="","",AS23*(1+AS24)) ->  | AT25: =IF(AT23="","",AT23*(1+AT24)) ->  | AU25: =IF(AU23="","",AU23*(1+AU24)) ->  | AV25: =IF(AV23="","",AV23*(1+AV24)) ->  | AW25: =IF(AW23="","",AW23*(1+AW24)) ->  | AX25: =IF(AX23="","",AX23*(1+AX24)) ->  | AY25: =IF(AY23="","",AY23*(1+AY24)) ->  | AZ25: =IF(AZ23="","",AZ23*(1+AZ24)) ->  | BA25: =IF(BA23="","",BA23*(1+BA24)) ->  | BB25: =IF(BB23="","",BB23*(1+BB24)) ->  | BC25: =IF(BC23="","",BC23*(1+BC24)) -> 
C26: entspricht €/m² | F26: =IFERROR(IF(F22="","",F23/F22),"") ->  | G26: =IFERROR(IF(G22="","",G23/G22),"") ->  | BC26: =IFERROR(IF(BC22="","",BC23/BC22),"") -> 
C28: Wohneinheit 3
F29: =YEAR('Ihre Übersicht'!D$7) -> 2019 | G29: =F29+1 -> 2020 | H29: =G29+1 -> 2021 | I29: 2022 | J29: 2023 | K29: 2024 | L29: 2025 | M29: 2026 | N29: 2027 | O29: 2028 | P29: 2029 | Q29: 2030 | R29: 2031 | S29: 2032 | T29: 2033 | U29: 2034 | V29: 2035 | W29: 2036 | X29: 2037 | Y29: 2038 | Z29: 2039 | AA29: 2040 | AB29: 2041 | AC29: 2042 | AD29: 2043 | AE29: 2044 | AF29: 2045 | AG29: 2046 | AH29: 2047 | AI29: 2048 | AJ29: 2049 | AK29: 2050 | AL29: 2051 | AM29: 2052 | AN29: 2053 | AO29: 2054 | AP29: 2055 | AQ29: 2056 | AR29: 2057 | AS29: 2058 | AT29: 2059 | AU29: 2060 | AV29: 2061 | AW29: 2062 | AX29: 2063 | AY29: 2064 | AZ29: 2065 | BA29: 2066 | BB29: 2067 | BC29: 2068
C30: Wohnfläche | G30: =IF(F30="","",F30) ->  | H30: =IF(G30="","",G30) -> 
C31: Kaltmiete (inkl. Stellplatz, Keller, Dachboden etc.) | G31: =F33 ->  | H31: =G33 -> 
C32: geplante Mieterhöhung in Prozent | F32: =IF(F30="","",'Ihre Übersicht'!$L$33) ->  | G32: =IF(G30="","",'Ihre Übersicht'!$L$33) ->  | H32: =IF(H30="","",'Ihre Übersicht'!$L$33) ->  | I32: =IF(I30="","",'Ihre Übersicht'!$L$33) ->  | J32: =IF(J30="","",'Ihre Übersicht'!$L$33) ->  | K32: =IF(K30="","",'Ihre Übersicht'!$L$33) ->  | L32: =IF(L30="","",'Ihre Übersicht'!$L$33) ->  | M32: =IF(M30="","",'Ihre Übersicht'!$L$33) ->  | N32: =IF(N30="","",'Ihre Übersicht'!$L$33) ->  | O32: =IF(O30="","",'Ihre Übersicht'!$L$33) ->  | P32: =IF(P30="","",'Ihre Übersicht'!$L$33) ->  | Q32: =IF(Q30="","",'Ihre Übersicht'!$L$33) ->  | R32: =IF(R30="","",'Ihre Übersicht'!$L$33) ->  | S32: =IF(S30="","",'Ihre Übersicht'!$L$33) ->  | T32: =IF(T30="","",'Ihre Übersicht'!$L$33) ->  | U32: =IF(U30="","",'Ihre Übersicht'!$L$33) ->  | V32: =IF(V30="","",'Ihre Übersicht'!$L$33) ->  | W32: =IF(W30="","",'Ihre Übersicht'!$L$33) ->  | X32: =IF(X30="","",'Ihre Übersicht'!$L$33) ->  | Y32: =IF(Y30="","",'Ihre Übersicht'!$L$33) ->  | Z32: =IF(Z30="","",'Ihre Übersicht'!$L$33) ->  | AA32: =IF(AA30="","",'Ihre Übersicht'!$L$33) ->  | AB32: =IF(AB30="","",'Ihre Übersicht'!$L$33) ->  | AC32: =IF(AC30="","",'Ihre Übersicht'!$L$33) ->  | AD32: =IF(AD30="","",'Ihre Übersicht'!$L$33) ->  | AE32: =IF(AE30="","",'Ihre Übersicht'!$L$33) ->  | AF32: =IF(AF30="","",'Ihre Übersicht'!$L$33) ->  | AG32: =IF(AG30="","",'Ihre Übersicht'!$L$33) ->  | AH32: =IF(AH30="","",'Ihre Übersicht'!$L$33) ->  | AI32: =IF(AI30="","",'Ihre Übersicht'!$L$33) ->  | AJ32: =IF(AJ30="","",'Ihre Übersicht'!$L$33) ->  | AK32: =IF(AK30="","",'Ihre Übersicht'!$L$33) ->  | AL32: =IF(AL30="","",'Ihre Übersicht'!$L$33) ->  | AM32: =IF(AM30="","",'Ihre Übersicht'!$L$33) ->  | AN32: =IF(AN30="","",'Ihre Übersicht'!$L$33) ->  | AO32: =IF(AO30="","",'Ihre Übersicht'!$L$33) ->  | AP32: =IF(AP30="","",'Ihre Übersicht'!$L$33) ->  | AQ32: =IF(AQ30="","",'Ihre Übersicht'!$L$33) ->  | AR32: =IF(AR30="","",'Ihre Übersicht'!$L$33) ->  | AS32: =IF(AS30="","",'Ihre Übersicht'!$L$33) ->  | AT32: =IF(AT30="","",'Ihre Übersicht'!$L$33) ->  | AU32: =IF(AU30="","",'Ihre Übersicht'!$L$33) ->  | AV32: =IF(AV30="","",'Ihre Übersicht'!$L$33) ->  | AW32: =IF(AW30="","",'Ihre Übersicht'!$L$33) ->  | AX32: =IF(AX30="","",'Ihre Übersicht'!$L$33) ->  | AY32: =IF(AY30="","",'Ihre Übersicht'!$L$33) ->  | AZ32: =IF(AZ30="","",'Ihre Übersicht'!$L$33) ->  | BA32: =IF(BA30="","",'Ihre Übersicht'!$L$33) ->  | BB32: =IF(BB30="","",'Ihre Übersicht'!$L$33) ->  | BC32: =IF(BC30="","",'Ihre Übersicht'!$L$33) -> 
C33: Neue Kaltmiete ab 1. Januar des Folgejahres | F33: =IFERROR(IF(F31="","",F31*(1+F32)),"") ->  | G33: =IF(G31="","",G31*(1+G32)) -> 
C34: entspricht €/m² | F34: =IFERROR(IF(F30="","",F31/F30),"") ->  | G34: =IFERROR(IF(G30="","",G31/G30),"") ->  | BC34: =IFERROR(IF(BC30="","",BC31/BC30),"") -> 
C36: Wohneinheit 4
F37: =YEAR('Ihre Übersicht'!D$7) -> 2019 | G37: =F37+1 -> 2020 | H37: =G37+1 -> 2021 | I37: 2022 | J37: 2023 | K37: 2024 | L37: 2025 | M37: 2026 | N37: 2027 | O37: 2028 | P37: 2029 | Q37: 2030 | R37: 2031 | S37: 2032 | T37: 2033 | U37: 2034 | V37: 2035 | W37: 2036 | X37: 2037 | Y37: 2038 | Z37: 2039 | AA37: 2040 | AB37: 2041 | AC37: 2042 | AD37: 2043 | AE37: 2044 | AF37: 2045 | AG37: 2046 | AH37: 2047 | AI37: 2048 | AJ37: 2049 | AK37: 2050 | AL37: 2051 | AM37: 2052 | AN37: 2053 | AO37: 2054 | AP37: 2055 | AQ37: 2056 | AR37: 2057 | AS37: 2058 | AT37: 2059 | AU37: 2060 | AV37: 2061 | AW37: 2062 | AX37: 2063 | AY37: 2064 | AZ37: 2065 | BA37: 2066 | BB37: 2067 | BC37: 2068
C38: Wohnfläche | G38: =IF(F38="","",F38) ->  | H38: =IF(G38="","",G38) -> 
C39: Kaltmiete (inkl. Stellplatz, Keller, Dachboden etc.) | G39: =F41 ->  | H39: =G41 -> 
C40: geplante Mieterhöhung in Prozent | F40: =IF(F38="","",'Ihre Übersicht'!$L$33) ->  | G40: =IF(G38="","",'Ihre Übersicht'!$L$33) ->  | H40: =IF(H38="","",'Ihre Übersicht'!$L$33) ->  | I40: =IF(I38="","",'Ihre Übersicht'!$L$33) ->  | J40: =IF(J38="","",'Ihre Übersicht'!$L$33) ->  | K40: =IF(K38="","",'Ihre Übersicht'!$L$33) ->  | L40: =IF(L38="","",'Ihre Übersicht'!$L$33) ->  | M40: =IF(M38="","",'Ihre Übersicht'!$L$33) ->  | N40: =IF(N38="","",'Ihre Übersicht'!$L$33) ->  | O40: =IF(O38="","",'Ihre Übersicht'!$L$33) ->  | P40: =IF(P38="","",'Ihre Übersicht'!$L$33) ->  | Q40: =IF(Q38="","",'Ihre Übersicht'!$L$33) ->  | R40: =IF(R38="","",'Ihre Übersicht'!$L$33) ->  | S40: =IF(S38="","",'Ihre Übersicht'!$L$33) ->  | T40: =IF(T38="","",'Ihre Übersicht'!$L$33) ->  | U40: =IF(U38="","",'Ihre Übersicht'!$L$33) ->  | V40: =IF(V38="","",'Ihre Übersicht'!$L$33) ->  | W40: =IF(W38="","",'Ihre Übersicht'!$L$33) ->  | X40: =IF(X38="","",'Ihre Übersicht'!$L$33) ->  | Y40: =IF(Y38="","",'Ihre Übersicht'!$L$33) ->  | Z40: =IF(Z38="","",'Ihre Übersicht'!$L$33) ->  | AA40: =IF(AA38="","",'Ihre Übersicht'!$L$33) ->  | AB40: =IF(AB38="","",'Ihre Übersicht'!$L$33) ->  | AC40: =IF(AC38="","",'Ihre Übersicht'!$L$33) ->  | AD40: =IF(AD38="","",'Ihre Übersicht'!$L$33) ->  | AE40: =IF(AE38="","",'Ihre Übersicht'!$L$33) ->  | AF40: =IF(AF38="","",'Ihre Übersicht'!$L$33) ->  | AG40: =IF(AG38="","",'Ihre Übersicht'!$L$33) ->  | AH40: =IF(AH38="","",'Ihre Übersicht'!$L$33) ->  | AI40: =IF(AI38="","",'Ihre Übersicht'!$L$33) ->  | AJ40: =IF(AJ38="","",'Ihre Übersicht'!$L$33) ->  | AK40: =IF(AK38="","",'Ihre Übersicht'!$L$33) ->  | AL40: =IF(AL38="","",'Ihre Übersicht'!$L$33) ->  | AM40: =IF(AM38="","",'Ihre Übersicht'!$L$33) ->  | AN40: =IF(AN38="","",'Ihre Übersicht'!$L$33) ->  | AO40: =IF(AO38="","",'Ihre Übersicht'!$L$33) ->  | AP40: =IF(AP38="","",'Ihre Übersicht'!$L$33) ->  | AQ40: =IF(AQ38="","",'Ihre Übersicht'!$L$33) ->  | AR40: =IF(AR38="","",'Ihre Übersicht'!$L$33) ->  | AS40: =IF(AS38="","",'Ihre Übersicht'!$L$33) ->  | AT40: =IF(AT38="","",'Ihre Übersicht'!$L$33) ->  | AU40: =IF(AU38="","",'Ihre Übersicht'!$L$33) ->  | AV40: =IF(AV38="","",'Ihre Übersicht'!$L$33) ->  | AW40: =IF(AW38="","",'Ihre Übersicht'!$L$33) ->  | AX40: =IF(AX38="","",'Ihre Übersicht'!$L$33) ->  | AY40: =IF(AY38="","",'Ihre Übersicht'!$L$33) ->  | AZ40: =IF(AZ38="","",'Ihre Übersicht'!$L$33) ->  | BA40: =IF(BA38="","",'Ihre Übersicht'!$L$33) ->  | BB40: =IF(BB38="","",'Ihre Übersicht'!$L$33) ->  | BC40: =IF(BC38="","",'Ihre Übersicht'!$L$33) -> 
C41: Neue Kaltmiete ab 1. Januar des Folgejahres | F41: =IFERROR(IF(F39="","",F39*(1+F40)),"") ->  | G41: =IF(G39="","",G39*(1+G40)) ->  | H41: =IF(H39="","",H39*(1+H40)) ->  | I41: =IF(I39="","",I39*(1+I40)) ->  | J41: =IF(J39="","",J39*(1+J40)) ->  | K41: =IF(K39="","",K39*(1+K40)) ->  | L41: =IF(L39="","",L39*(1+L40)) ->  | M41: =IF(M39="","",M39*(1+M40)) ->  | N41: =IF(N39="","",N39*(1+N40)) ->  | O41: =IF(O39="","",O39*(1+O40)) ->  | P41: =IF(P39="","",P39*(1+P40)) ->  | Q41: =IF(Q39="","",Q39*(1+Q40)) ->  | R41: =IF(R39="","",R39*(1+R40)) ->  | S41: =IF(S39="","",S39*(1+S40)) ->  | T41: =IF(T39="","",T39*(1+T40)) ->  | U41: =IF(U39="","",U39*(1+U40)) ->  | V41: =IF(V39="","",V39*(1+V40)) ->  | W41: =IF(W39="","",W39*(1+W40)) ->  | X41: =IF(X39="","",X39*(1+X40)) ->  | Y41: =IF(Y39="","",Y39*(1+Y40)) ->  | Z41: =IF(Z39="","",Z39*(1+Z40)) ->  | AA41: =IF(AA39="","",AA39*(1+AA40)) ->  | AB41: =IF(AB39="","",AB39*(1+AB40)) ->  | AC41: =IF(AC39="","",AC39*(1+AC40)) ->  | AD41: =IF(AD39="","",AD39*(1+AD40)) ->  | AE41: =IF(AE39="","",AE39*(1+AE40)) ->  | AF41: =IF(AF39="","",AF39*(1+AF40)) ->  | AG41: =IF(AG39="","",AG39*(1+AG40)) ->  | AH41: =IF(AH39="","",AH39*(1+AH40)) ->  | AI41: =IF(AI39="","",AI39*(1+AI40)) ->  | AJ41: =IF(AJ39="","",AJ39*(1+AJ40)) ->  | AK41: =IF(AK39="","",AK39*(1+AK40)) ->  | AL41: =IF(AL39="","",AL39*(1+AL40)) ->  | AM41: =IF(AM39="","",AM39*(1+AM40)) ->  | AN41: =IF(AN39="","",AN39*(1+AN40)) ->  | AO41: =IF(AO39="","",AO39*(1+AO40)) ->  | AP41: =IF(AP39="","",AP39*(1+AP40)) ->  | AQ41: =IF(AQ39="","",AQ39*(1+AQ40)) ->  | AR41: =IF(AR39="","",AR39*(1+AR40)) ->  | AS41: =IF(AS39="","",AS39*(1+AS40)) ->  | AT41: =IF(AT39="","",AT39*(1+AT40)) ->  | AU41: =IF(AU39="","",AU39*(1+AU40)) ->  | AV41: =IF(AV39="","",AV39*(1+AV40)) ->  | AW41: =IF(AW39="","",AW39*(1+AW40)) ->  | AX41: =IF(AX39="","",AX39*(1+AX40)) ->  | AY41: =IF(AY39="","",AY39*(1+AY40)) ->  | AZ41: =IF(AZ39="","",AZ39*(1+AZ40)) ->  | BA41: =IF(BA39="","",BA39*(1+BA40)) ->  | BB41: =IF(BB39="","",BB39*(1+BB40)) ->  | BC41: =IF(BC39="","",BC39*(1+BC40)) -> 
C42: entspricht €/m² | F42: =IFERROR(IF(F38="","",F39/F38),"") ->  | G42: =IFERROR(IF(G38="","",G39/G38),"") ->  | BC42: =IFERROR(IF(BC38="","",BC39/BC38),"") -> 
C44: Wohneinheit 5
F45: =YEAR('Ihre Übersicht'!D$7) -> 2019 | G45: =F45+1 -> 2020 | H45: =G45+1 -> 2021 | I45: 2022 | J45: 2023 | K45: 2024 | L45: 2025 | M45: 2026 | N45: 2027 | O45: 2028 | P45: 2029 | Q45: 2030 | R45: 2031 | S45: 2032 | T45: 2033 | U45: 2034 | V45: 2035 | W45: 2036 | X45: 2037 | Y45: 2038 | Z45: 2039 | AA45: 2040 | AB45: 2041 | AC45: 2042 | AD45: 2043 | AE45: 2044 | AF45: 2045 | AG45: 2046 | AH45: 2047 | AI45: 2048 | AJ45: 2049 | AK45: 2050 | AL45: 2051 | AM45: 2052 | AN45: 2053 | AO45: 2054 | AP45: 2055 | AQ45: 2056 | AR45: 2057 | AS45: 2058 | AT45: 2059 | AU45: 2060 | AV45: 2061 | AW45: 2062 | AX45: 2063 | AY45: 2064 | AZ45: 2065 | BA45: 2066 | BB45: 2067 | BC45: 2068
C46: Wohnfläche | G46: =IF(F46="","",F46) ->  | H46: =IF(G46="","",G46) -> 
C47: Kaltmiete (inkl. Stellplatz, Keller, Dachboden etc.) | G47: =F49 ->  | H47: =G49 -> 
C48: geplante Mieterhöhung in Prozent | F48: =IF(F46="","",'Ihre Übersicht'!$L$33) ->  | G48: =IF(G46="","",'Ihre Übersicht'!$L$33) ->  | H48: =IF(H46="","",'Ihre Übersicht'!$L$33) ->  | I48: =IF(I46="","",'Ihre Übersicht'!$L$33) ->  | J48: =IF(J46="","",'Ihre Übersicht'!$L$33) ->  | K48: =IF(K46="","",'Ihre Übersicht'!$L$33) ->  | L48: =IF(L46="","",'Ihre Übersicht'!$L$33) ->  | M48: =IF(M46="","",'Ihre Übersicht'!$L$33) ->  | N48: =IF(N46="","",'Ihre Übersicht'!$L$33) ->  | O48: =IF(O46="","",'Ihre Übersicht'!$L$33) ->  | P48: =IF(P46="","",'Ihre Übersicht'!$L$33) ->  | Q48: =IF(Q46="","",'Ihre Übersicht'!$L$33) ->  | R48: =IF(R46="","",'Ihre Übersicht'!$L$33) ->  | S48: =IF(S46="","",'Ihre Übersicht'!$L$33) ->  | T48: =IF(T46="","",'Ihre Übersicht'!$L$33) ->  | U48: =IF(U46="","",'Ihre Übersicht'!$L$33) ->  | V48: =IF(V46="","",'Ihre Übersicht'!$L$33) ->  | W48: =IF(W46="","",'Ihre Übersicht'!$L$33) ->  | X48: =IF(X46="","",'Ihre Übersicht'!$L$33) ->  | Y48: =IF(Y46="","",'Ihre Übersicht'!$L$33) ->  | Z48: =IF(Z46="","",'Ihre Übersicht'!$L$33) ->  | AA48: =IF(AA46="","",'Ihre Übersicht'!$L$33) ->  | AB48: =IF(AB46="","",'Ihre Übersicht'!$L$33) ->  | AC48: =IF(AC46="","",'Ihre Übersicht'!$L$33) ->  | AD48: =IF(AD46="","",'Ihre Übersicht'!$L$33) ->  | AE48: =IF(AE46="","",'Ihre Übersicht'!$L$33) ->  | AF48: =IF(AF46="","",'Ihre Übersicht'!$L$33) ->  | AG48: =IF(AG46="","",'Ihre Übersicht'!$L$33) ->  | AH48: =IF(AH46="","",'Ihre Übersicht'!$L$33) ->  | AI48: =IF(AI46="","",'Ihre Übersicht'!$L$33) ->  | AJ48: =IF(AJ46="","",'Ihre Übersicht'!$L$33) ->  | AK48: =IF(AK46="","",'Ihre Übersicht'!$L$33) ->  | AL48: =IF(AL46="","",'Ihre Übersicht'!$L$33) ->  | AM48: =IF(AM46="","",'Ihre Übersicht'!$L$33) ->  | AN48: =IF(AN46="","",'Ihre Übersicht'!$L$33) ->  | AO48: =IF(AO46="","",'Ihre Übersicht'!$L$33) ->  | AP48: =IF(AP46="","",'Ihre Übersicht'!$L$33) ->  | AQ48: =IF(AQ46="","",'Ihre Übersicht'!$L$33) ->  | AR48: =IF(AR46="","",'Ihre Übersicht'!$L$33) ->  | AS48: =IF(AS46="","",'Ihre Übersicht'!$L$33) ->  | AT48: =IF(AT46="","",'Ihre Übersicht'!$L$33) ->  | AU48: =IF(AU46="","",'Ihre Übersicht'!$L$33) ->  | AV48: =IF(AV46="","",'Ihre Übersicht'!$L$33) ->  | AW48: =IF(AW46="","",'Ihre Übersicht'!$L$33) ->  | AX48: =IF(AX46="","",'Ihre Übersicht'!$L$33) ->  | AY48: =IF(AY46="","",'Ihre Übersicht'!$L$33) ->  | AZ48: =IF(AZ46="","",'Ihre Übersicht'!$L$33) ->  | BA48: =IF(BA46="","",'Ihre Übersicht'!$L$33) ->  | BB48: =IF(BB46="","",'Ihre Übersicht'!$L$33) ->  | BC48: =IF(BC46="","",'Ihre Übersicht'!$L$33) -> 
C49: Neue Kaltmiete ab 1. Januar des Folgejahres | F49: =IFERROR(IF(F47="","",F47*(1+F48)),"") ->  | G49: =IF(G47="","",G47*(1+G48)) ->  | H49: =IF(H47="","",H47*(1+H48)) ->  | I49: =IF(I47="","",I47*(1+I48)) ->  | J49: =IF(J47="","",J47*(1+J48)) ->  | K49: =IF(K47="","",K47*(1+K48)) ->  | L49: =IF(L47="","",L47*(1+L48)) ->  | M49: =IF(M47="","",M47*(1+M48)) ->  | N49: =IF(N47="","",N47*(1+N48)) ->  | O49: =IF(O47="","",O47*(1+O48)) ->  | P49: =IF(P47="","",P47*(1+P48)) ->  | Q49: =IF(Q47="","",Q47*(1+Q48)) ->  | R49: =IF(R47="","",R47*(1+R48)) ->  | S49: =IF(S47="","",S47*(1+S48)) ->  | T49: =IF(T47="","",T47*(1+T48)) ->  | U49: =IF(U47="","",U47*(1+U48)) ->  | V49: =IF(V47="","",V47*(1+V48)) ->  | W49: =IF(W47="","",W47*(1+W48)) ->  | X49: =IF(X47="","",X47*(1+X48)) ->  | Y49: =IF(Y47="","",Y47*(1+Y48)) ->  | Z49: =IF(Z47="","",Z47*(1+Z48)) ->  | AA49: =IF(AA47="","",AA47*(1+AA48)) ->  | AB49: =IF(AB47="","",AB47*(1+AB48)) ->  | AC49: =IF(AC47="","",AC47*(1+AC48)) ->  | AD49: =IF(AD47="","",AD47*(1+AD48)) ->  | AE49: =IF(AE47="","",AE47*(1+AE48)) ->  | AF49: =IF(AF47="","",AF47*(1+AF48)) ->  | AG49: =IF(AG47="","",AG47*(1+AG48)) ->  | AH49: =IF(AH47="","",AH47*(1+AH48)) ->  | AI49: =IF(AI47="","",AI47*(1+AI48)) ->  | AJ49: =IF(AJ47="","",AJ47*(1+AJ48)) ->  | AK49: =IF(AK47="","",AK47*(1+AK48)) ->  | AL49: =IF(AL47="","",AL47*(1+AL48)) ->  | AM49: =IF(AM47="","",AM47*(1+AM48)) ->  | AN49: =IF(AN47="","",AN47*(1+AN48)) ->  | AO49: =IF(AO47="","",AO47*(1+AO48)) ->  | AP49: =IF(AP47="","",AP47*(1+AP48)) ->  | AQ49: =IF(AQ47="","",AQ47*(1+AQ48)) ->  | AR49: =IF(AR47="","",AR47*(1+AR48)) ->  | AS49: =IF(AS47="","",AS47*(1+AS48)) ->  | AT49: =IF(AT47="","",AT47*(1+AT48)) ->  | AU49: =IF(AU47="","",AU47*(1+AU48)) ->  | AV49: =IF(AV47="","",AV47*(1+AV48)) ->  | AW49: =IF(AW47="","",AW47*(1+AW48)) ->  | AX49: =IF(AX47="","",AX47*(1+AX48)) ->  | AY49: =IF(AY47="","",AY47*(1+AY48)) ->  | AZ49: =IF(AZ47="","",AZ47*(1+AZ48)) ->  | BA49: =IF(BA47="","",BA47*(1+BA48)) ->  | BB49: =IF(BB47="","",BB47*(1+BB48)) ->  | BC49: =IF(BC47="","",BC47*(1+BC48)) -> 
C50: entspricht €/m² | F50: =IFERROR(IF(F46="","",F47/F46),"") ->  | G50: =IFERROR(IF(G46="","",G47/G46),"") ->  | BC50: =IFERROR(IF(BC46="","",BC47/BC46),"") -> 

Sheet Sheet3 (hidden)
W3: Anzahl der Wohneinheiten | X3: 6
B4: Darlehen I | I4: Darlehen 2 | P4: Darlehen 3 | W4: Werte übernehmen | X4: NEIN
B5: Anfangsjahr | D5: =YEAR('Ihre Übersicht'!D$7) -> 2019 | E5: =DATE('Ihre Kennzahlen im Verlauf'!G$6,1,1) -> 2020-01-01 | I5: Anfangsjahr | K5: =YEAR('Ihre Übersicht'!D$7) -> 2019 | L5: =DATE('Ihre Kennzahlen im Verlauf'!G$23,1,1) -> 2020-01-01 | P5: Anfangsjahr | R5: =YEAR('Ihre Übersicht'!D$7) -> 2019 | S5: =DATE('Ihre Kennzahlen im Verlauf'!G$23,1,1) -> 2020-01-01
B6: Anzahl der Monate | D6: =DATEDIF(E$6,E$5,"m") -> 9 | E6: ='Ihre Übersicht'!D$7 -> 2019-04-01 | I6: Anzahl der Monate | K6: =DATEDIF(L$6,L$5,"m") -> 9 | L6: ='Ihre Übersicht'!D$7 -> 2019-04-01 | P6: Anzahl der Monate | R6: =DATEDIF(S$6,S$5,"m") -> 9 | S6: ='Ihre Übersicht'!D$7 -> 2019-04-01
B8: Zinssatz | C8: ='Ihre Kennzahlen im Verlauf'!F$8 ->  | I8: Zinssatz | J8: ='Ihre Kennzahlen im Verlauf'!F25 -> 0.00% | P8: Zinssatz | Q8: ='Ihre Kennzahlen im Verlauf'!F42 -> 0.00%
B9: Tilgung | C9: ='Ihre Kennzahlen im Verlauf'!F$15 ->  | I9: Tilgung | J9: ='Ihre Kennzahlen im Verlauf'!F32 ->  | P9: Tilgung | Q9: ='Ihre Kennzahlen im Verlauf'!F49 -> 
B10: Rate | D10: Darlehen | E10: Zinssatz | F10: Tilgung | G10: Berechnung? | I10: Rate | K10: Darlehen | L10: Zinssatz | M10: Tilgung | N10: Berechnung? | P10: Rate | R10: Darlehen | S10: Zinssatz | T10: Tilgung | U10: Berechnung?
B11: =IF(AND(E11="",F11="")=TRUE,"",E11+F11) ->  | C11: 1 | D11: ='Ihre Kennzahlen im Verlauf'!F10 -> 0 | E11: =IF(OR(C$8="",D11=0,D11="")=TRUE,"",D11*C$8/12) ->  | F11: =IF(OR(C$9="",D11=0,D11="")=TRUE,"",$C$9*D$11/12) ->  | G11: =IF(OR(D$11="",D$11=0)=TRUE,"",IF(C11<=D$6,"X","")) ->  | I11: =IF(AND(L11="",M11="")=TRUE,"",L11+M11) ->  | J11: 1 | K11: ='Ihre Kennzahlen im Verlauf'!F27 -> 0 | L11: =IF(OR(J$8="",K11=0,K11="")=TRUE,"",K11*J$8/12) ->  | M11: =IF(OR(J$9="",K$11=0,K$11="")=TRUE,"",$J$9*K$11/12) ->  | N11: =IF(OR(K$11="",K$11=0)=TRUE,"",IF(J11<=K$6,"X","")) ->  | P11: =IF(AND(S11="",T11="")=TRUE,"",S11+T11) ->  | Q11: 1 | R11: ='Ihre Kennzahlen im Verlauf'!F44 -> 0 | S11: =IF(OR(Q$8="",R11=0,R11="")=TRUE,"",R11*Q$8/12) ->  | T11: =IF(OR(Q$9="",R$11=0,R$11="")=TRUE,"",$Q$9*R$11/12) ->  | U11: =IF(OR(R$11="",R$11=0)=TRUE,"",IF(Q11<=R$6,"X","")) -> 
B12: =B11 ->  | C12: 2 | D12: =IF(G12="","",D11-F11) ->  | F12: =IF(OR(C$9="",D12=0,D12="")=TRUE,"",$C$9*D$11/12) ->  | G12: =IF(OR(D$11="",D$11=0)=TRUE,"",IF(C12<=D$6,"X","")) ->  | I12: =I11 ->  | J12: 2 | K12: =IF(N12="","",K11-M11) ->  | M12: =IF(OR(J$9="",K12=0,K12="")=TRUE,"",$J$9*K$11/12) ->  | N12: =IF(OR(K$11="",K$11=0)=TRUE,"",IF(J12<=K$6,"X","")) ->  | P12: =P11 ->  | Q12: 2 | R12: =IF(U12="","",R11-T11) ->  | S12: =IF(OR(Q$8="",R12=0,R12="")=TRUE,"",R12*Q$8/12) ->  | T12: =IF(OR(Q$9="",R12=0,R12="")=TRUE,"",$J$9*R$11/12) ->  | U12: =IF(OR(R$11="",R$11=0)=TRUE,"",IF(Q12<=R$6,"X","")) -> 
B13: =B12 ->  | C13: 3 | D13: =IF(G13="","",D12-F12) ->  | I13: =I12 ->  | J13: 3 | K13: =IF(N13="","",K12-M12) ->  | M13: =IF(OR(J$9="",K13=0,K13="")=TRUE,"",$J$9*K$11/12) ->  | P13: =P12 ->  | Q13: 3 | R13: =IF(U13="","",R12-T12) ->  | T13: =IF(OR(Q$9="",R13=0,R13="")=TRUE,"",$J$9*R$11/12) -> 
C14: 4 | J14: 4 | Q14: 4
C15: 5 | J15: 5 | Q15: 5
C16: 6 | J16: 6 | Q16: 6
C17: 7 | J17: 7 | Q17: 7
C18: 8 | J18: 8 | Q18: 8
C19: 9 | E19: =IF(OR(C$8="",D19=0,D19="")=TRUE,"",D19*C$8/12) ->  | J19: 9 | L19: =IF(OR(J$8="",K19=0,K19="")=TRUE,"",K19*J$8/12) ->  | Q19: 9 | S19: =IF(OR(Q$8="",R19=0,R19="")=TRUE,"",R19*Q$8/12) -> 
C20: 10 | E20: =IF(OR(C$8="",D20=0,D20="")=TRUE,"",D20*C$8/12) ->  | J20: 10 | L20: =IF(OR(J$8="",K20=0,K20="")=TRUE,"",K20*J$8/12) ->  | Q20: 10 | S20: =IF(OR(Q$8="",R20=0,R20="")=TRUE,"",R20*Q$8/12) -> 
C21: 11 | J21: 11 | Q21: 11
C22: 12 | J22: 12 | Q22: 12
C23: SUMME | E23: =SUM(E11:E22) -> 0 | F23: =SUM(F11:F22) -> 0 | J23: SUMME | L23: =SUM(L11:L22) -> 0 | M23: =SUM(M11:M22) -> 0 | Q23: SUMME | S23: =SUM(S11:S22) -> 0 | T23: =SUM(T11:T22) -> 0
B25: Darlehen I | I25: Darlehen 2 | P25: Darlehen 2
B26: Anfangsjahr | D26: =YEAR('Ihre Übersicht'!D$7) -> 2019 | E26: =DATE('Ihre Kennzahlen im Verlauf'!G$6,1,1) -> 2020-01-01 | I26: Anfangsjahr | K26: =YEAR('Ihre Übersicht'!D$7) -> 2019 | L26: =DATE('Ihre Kennzahlen im Verlauf'!G$23,1,1) -> 2020-01-01 | P26: Anfangsjahr | R26: =YEAR('Ihre Übersicht'!D$7) -> 2019 | S26: =DATE('Ihre Kennzahlen im Verlauf'!G$23,1,1) -> 2020-01-01
B27: Anzahl der Monate | D27: =DATEDIF(E$6,E$5,"m") -> 9 | E27: ='Ihre Übersicht'!D$7 -> 2019-04-01 | I27: Anzahl der Monate | K27: =DATEDIF(L$6,L$5,"m") -> 9 | L27: ='Ihre Übersicht'!D$7 -> 2019-04-01 | P27: Anzahl der Monate | R27: =DATEDIF(S$6,S$5,"m") -> 9 | S27: ='Ihre Übersicht'!D$7 -> 2019-04-01
B29: Zinssatz | C29: ='Ihre Kennzahlen im Verlauf'!F$8 ->  | I29: Zinssatz | P29: Zinssatz
B30: Tilgung | C30: ='Ihre Kennzahlen im Verlauf'!F$15 ->  | I30: Tilgung | P30: Tilgung
B31: Rate | D31: Darlehen | E31: Zinssatz | F31: Tilgung | G31: Berechnung? | I31: Rate | K31: Darlehen | L31: Zinssatz | M31: Tilgung | N31: Berechnung? | P31: Rate | R31: Darlehen | S31: Zinssatz | T31: Tilgung | U31: Berechnung?
B32: =IF(AND(E32="",F32="")=TRUE,"",E32+F32) ->  | C32: 1 | D32: ='Ihre Kennzahlen im Verlauf'!F10 -> 0 | E32: =IF(OR(C$8="",D32=0,D32="")=TRUE,"",D32*C$8/12) ->  | F32: =IF(OR(C$9="",D32=0,D32="")=TRUE,"",$C$9*D$11/12) ->  | G32: =IF(OR(D$11="",D$11=0)=TRUE,"",IF(C32<=D$6,"X","")) ->  | I32: =IF(AND(L32="",M32="")=TRUE,"",L32+M32) ->  | J32: 1 | K32: ='Ihre Kennzahlen im Verlauf'!F27 -> 0 | L32: =IF(OR(J$8="",K32=0,K32="")=TRUE,"",K32*J$8/12) ->  | M32: =IF(OR(J$9="",K$11=0,K$11="")=TRUE,"",$C$9*K$11/12) ->  | N32: =IF(OR(K$11="",K$11=0)=TRUE,"",IF(J32<=K$6,"X","")) ->  | P32: =IF(AND(S32="",T32="")=TRUE,"",S32+T32) ->  | Q32: 1 | R32: ='Ihre Kennzahlen im Verlauf'!F44 -> 0 | S32: =IF(OR(Q$8="",R32=0,R32="")=TRUE,"",R32*Q$8/12) ->  | T32: =IF(OR(Q$9="",R$11=0,R$11="")=TRUE,"",$Q$9*R$11/12) ->  | U32: =IF(OR(R$11="",R$11=0)=TRUE,"",IF(Q32<=R$6,"X","")) -> 
B33: =B32 ->  | C33: 2 | D33: =IF(G33="","",D32-F32) ->  | E33: =IF(OR(C$8="",D33=0,D33="")=TRUE,"",D33*C$8/12) ->  | F33: =IF(OR(C$9="",D33=0,D33="")=TRUE,"",$C$9*D$11/12) ->  | G33: =IF(OR(D$11="",D$11=0)=TRUE,"",IF(C33<=D$6,"X","")) ->  | I33: =I32 ->  | J33: 2 | K33: =IF(N33="","",K32-M32) ->  | L33: =IF(OR(J$8="",K33=0,K33="")=TRUE,"",K33*J$8/12) ->  | M33: =IF(OR(J$9="",K33=0,K33="")=TRUE,"",$J$9*K$11/12) ->  | N33: =IF(OR(K$11="",K$11=0)=TRUE,"",IF(J33<=K$6,"X","")) ->  | P33: =P32 ->  | Q33: 2 | R33: =IF(U33="","",R32-T32) ->  | S33: =IF(OR(Q$8="",R33=0,R33="")=TRUE,"",R33*Q$8/12) ->  | T33: =IF(OR(Q$9="",R33=0,R33="")=TRUE,"",$J$9*R$11/12) ->  | U33: =IF(OR(R$11="",R$11=0)=TRUE,"",IF(Q33<=R$6,"X","")) -> 
B34: =B33 ->  | C34: 3 | D34: =IF(G34="","",D33-F33) ->  | I34: =I33 ->  | J34: 3 | K34: =IF(N34="","",K33-M33) ->  | M34: =IF(OR(J$9="",K34=0,K34="")=TRUE,"",$J$9*K$11/12) ->  | P34: =P33 ->  | Q34: 3 | R34: =IF(U34="","",R33-T33) ->  | T34: =IF(OR(Q$9="",R34=0,R34="")=TRUE,"",$J$9*R$11/12) -> 
C35: 4 | J35: 4 | Q35: 4
C36: 5 | J36: 5 | Q36: 5
C37: 6 | J37: 6 | K37: =IF(N37="","",K36-M36) ->  | Q37: 6 | R37: =IF(U37="","",R36-T36) -> 
C38: 7 | J38: 7 | Q38: 7 | R38: =IF(U38="","",R37-T37) -> 
C39: 8 | J39: 8 | Q39: 8
C40: 9 | E40: =IF(OR(C$8="",D40=0,D40="")=TRUE,"",D40*C$8/12) ->  | J40: 9 | L40: =IF(OR(J$8="",K40=0,K40="")=TRUE,"",K40*J$8/12) ->  | Q40: 9 | S40: =IF(OR(Q$8="",R40=0,R40="")=TRUE,"",R40*Q$8/12) -> 
C41: 10 | E41: =IF(OR(C$8="",D41=0,D41="")=TRUE,"",D41*C$8/12) ->  | J41: 10 | L41: =IF(OR(J$8="",K41=0,K41="")=TRUE,"",K41*J$8/12) ->  | Q41: 10 | S41: =IF(OR(Q$8="",R41=0,R41="")=TRUE,"",R41*Q$8/12) -> 
C42: 11 | J42: 11 | Q42: 11
C43: 12 | J43: 12 | Q43: 12
C44: SUMME | E44: =SUM(E32:E43) -> 0 | F44: =SUM(F32:F43) -> 0 | J44: SUMME | L44: =SUM(L32:L43) -> 0 | M44: =SUM(M32:M43) -> 0 | Q44: SUMME | S44: =SUM(S32:S43) -> 0 | T44: =SUM(T32:T43) -> 0
